Authority,URI,Effective Date,Service/Dir,Supplier,Supplier ID,Payment Date,Net Amount,Irrecoverable VAT,Purpose of Spend
Borough Council of Kings Lynn and West Norfolk,E07000146,31/03/19,ICT                           ,VODAFONE LTD                            ,100275      ,25-Feb-19,3744.44,0,Communications                
Borough Council of Kings Lynn and West Norfolk,E07000146,31/03/19,Town Centre Manager           ,KINGS & BARNHAMS                        ,100875      ,11-Mar-19,3533.11,0,Christmas Lighting            
Borough Council of Kings Lynn and West Norfolk,E07000146,31/03/19,Parking Operations - Borough  ,PHS GROUP PLC                           ,101270      ,21-Mar-19,596.4,0,Tools And Equipment           
Borough Council of Kings Lynn and West Norfolk,E07000146,31/03/19,Oasis Flood Damamge M18FG04   ,DALES SPORTS SURFACES LTD               ,107746      ,18-Feb-19,8750,0,Rechargeable Works            
Borough Council of Kings Lynn and West Norfolk,E07000146,31/03/19,LILY PHASE 4                  ,WEST NORFOLK DEAF ASSOCIATION           ,112058      ,18-Mar-19,775,0,Lily Advisor Payments         
Borough Council of Kings Lynn and West Norfolk,E07000146,31/03/19,LILY PHASE 4                  ,WEST NORFOLK DEAF ASSOCIATION           ,112058      ,18-Mar-19,765,0,Lily Advisor Payments         
Borough Council of Kings Lynn and West Norfolk,E07000146,31/03/19,50132                         ,RICS                                    ,118547      ,07-Jan-19,529,0,Staff Professional Fees       
Borough Council of Kings Lynn and West Norfolk,E07000146,31/03/19,Property Services             ,RICS                                    ,118547      ,07-Jan-19,529,0,Staff Professional Fees       
Borough Council of Kings Lynn and West Norfolk,E07000146,31/03/19,Discover KL Distribution      ,TAKE ONE MEDIA LTD                      ,121327      ,25-Mar-19,2329.5,0,Discover KL Distribution      
Borough Council of Kings Lynn and West Norfolk,E07000146,31/03/19,Hunstanton Parks HLF          ,THE GOLDEN LION HOTEL                   ,122791      ,07-Jan-19,509.79,0,Special Events                
Borough Council of Kings Lynn and West Norfolk,E07000146,31/03/19,National Assist Act Burials   ,THORNALLEY FUNERAL SERVICES LTD         ,125811      ,10-Jan-19,1312,0,Burial Fees-Nat.Ass.Act       
Borough Council of Kings Lynn and West Norfolk,E07000146,31/03/19,50302                         ,HOUND ENVELOPES LTD                     ,129495      ,21-Feb-19,882.5,0,Stationery & Office Supplies  
Borough Council of Kings Lynn and West Norfolk,E07000146,31/03/19,Financial Services            ,HOUND ENVELOPES LTD                     ,129495      ,21-Feb-19,882.5,0,Stationery & Office Supplies  
Borough Council of Kings Lynn and West Norfolk,E07000146,31/03/19,Careline                      ,SUPRA UK LTD                            ,134960      ,31-Jan-19,1698,0,Items Purchased For Resale    
Borough Council of Kings Lynn and West Norfolk,E07000146,31/03/19,Welfare Reform Funding        ,CIPFA BUSINESS LTD                      ,135122      ,21-Feb-19,2120,0,Professional Fees             
Borough Council of Kings Lynn and West Norfolk,E07000146,31/03/19,Adapt Grant                   ,CLIVE CLARK PLUMBING & HEATING          ,133166      ,14-Feb-19,2618.28,0,Works                         
Borough Council of Kings Lynn and West Norfolk,E07000146,31/03/19,Adapt Grant                   ,CLIVE CLARK PLUMBING & HEATING          ,133166      ,25-Mar-19,4557.74,0,Works                         
Borough Council of Kings Lynn and West Norfolk,E07000146,31/03/19,Corporate                     ,EAST OF ENGLAND LGA                     ,136515      ,14-Mar-19,1250,0,Subscriptions                 
Borough Council of Kings Lynn and West Norfolk,E07000146,31/03/19,Resort Seafront               ,LUMISPHERE PRODUCTS LTD                 ,138108      ,10-Jan-19,982.5,0,Promenade Decor Lights        
Borough Council of Kings Lynn and West Norfolk,E07000146,31/03/19,Building Control - Non Fee    ,CNC BUILDING CONTROL                    ,137497      ,14-Mar-19,31138.5,0,Agency                        
Borough Council of Kings Lynn and West Norfolk,E07000146,31/03/19,Street Lighting               ,WESTCOTEC LTD                           ,141998      ,14-Mar-19,789.55,0,General Repairs               
Borough Council of Kings Lynn and West Norfolk,E07000146,31/03/19,Resort Seafront               ,KEEP BRITAIN TIDY                       ,134927      ,21-Feb-19,520,0,Beach Safety                  
Borough Council of Kings Lynn and West Norfolk,E07000146,31/03/19,Community Infrastructure Levy ,POS ENTERPRISES LTD                     ,134929      ,25-Feb-19,1500,0,Professional Fees             
Borough Council of Kings Lynn and West Norfolk,E07000146,31/03/19,ICT                           ,UC PRACTICE LTD                         ,141077      ,25-Feb-19,3250,0,Computer Software Maintenance 
Borough Council of Kings Lynn and West Norfolk,E07000146,31/03/19,Flitcham Industrial Est       ,SANDRINGHAM ESTATE                      ,101391      ,04-Mar-19,2630.85,0,Rent                          
Borough Council of Kings Lynn and West Norfolk,E07000146,31/03/19,Parking Operations - Borough  ,JBC ROOFING LTD                         ,121133      ,11-Feb-19,1067.53,0,Gen Rep St James              
Borough Council of Kings Lynn and West Norfolk,E07000146,31/03/19,Day visitor awareness         ,BEST 4 PROMOTIONS NORFOLK               ,136650      ,25-Mar-19,2358.75,0,Distribution                  
Borough Council of Kings Lynn and West Norfolk,E07000146,31/03/19,The Walks                     ,BARCHAM TREES PLC                       ,100144      ,25-Mar-19,806.25,0,Materials                     
Borough Council of Kings Lynn and West Norfolk,E07000146,31/03/19,Adapt Grant                   ,BROADLAND HOUSING GROUP                 ,100227      ,25-Mar-19,2702.86,0,Works                         
Borough Council of Kings Lynn and West Norfolk,E07000146,31/03/19,CCTV                          ,ASSA ABLOY LTD                          ,139155      ,14-Mar-19,2462,0,General Repairs               
Borough Council of Kings Lynn and West Norfolk,E07000146,31/03/19,Housing Options Programme     ,RUSSET HOUSE HOTEL LTD                  ,106144      ,14-Jan-19,1125,0,Temporary Accommodation       
Borough Council of Kings Lynn and West Norfolk,E07000146,31/03/19,Housing Options Programme     ,PROPERTY BUREAU                         ,133555      ,21-Feb-19,675,0,Homelessness Prevention Fund  
Borough Council of Kings Lynn and West Norfolk,E07000146,31/03/19,Corporate Communications      ,KL PUBLICATIONS LTD                     ,137190      ,21-Mar-19,745,0,Promotional Activities        
Borough Council of Kings Lynn and West Norfolk,E07000146,31/03/19,Kings Court Kings Lynn        ,ADCOCK REFRIGERATION AND AIR COND LTD   ,101708      ,04-Feb-19,4655,0,General Repairs               
Borough Council of Kings Lynn and West Norfolk,E07000146,31/03/19,GM Northern Area              ,ANGLIA MOWERS                           ,143745      ,21-Feb-19,1383.28,0,Materials                     
Borough Council of Kings Lynn and West Norfolk,E07000146,31/03/19,50121                         ,PRAXIS42 LIMITED                        ,144721      ,17-Jan-19,5578.4,0,E-learning                    
Borough Council of Kings Lynn and West Norfolk,E07000146,31/03/19,Personnel Services            ,PRAXIS42 LIMITED                        ,144721      ,17-Jan-19,5578.4,0,E-learning                    
Borough Council of Kings Lynn and West Norfolk,E07000146,31/03/19,Food Hygiene General          ,PUBLIC HEALTH ENGLAND                   ,141369      ,07-Feb-19,960,0,Shellfish Sampling            
Borough Council of Kings Lynn and West Norfolk,E07000146,31/03/19,Parkway - Gaywood             ,MOTT MACDONALD LIMITED                  ,101083      ,11-Mar-19,8345,0,External Fees/Consultancy     
Borough Council of Kings Lynn and West Norfolk,E07000146,31/03/19,Public Cleansing              ,LYNN COMMERCIALS  (1989) LTD            ,107430      ,04-Mar-19,824.33,0,Contract Repairs              
Borough Council of Kings Lynn and West Norfolk,E07000146,31/03/19,Careline-Replacement Alarm Uni,TUNSTALL HEALTHCARE (UK) LTD            ,101569      ,25-Mar-19,9900,0,Equipment/Materials           
Borough Council of Kings Lynn and West Norfolk,E07000146,31/03/19,Postage Services Kings Court  ,POSTAGE BY PHONE                        ,101299      ,25-Feb-19,5000,0,Postages                      
Borough Council of Kings Lynn and West Norfolk,E07000146,31/03/19,Townscape Heritage Initiative ,CLIVEDEN CONSERVATION                   ,146680      ,11-Feb-19,2007.5,0,THI Activities                
Borough Council of Kings Lynn and West Norfolk,E07000146,31/03/19,Apprenticeship Scheme         ,BEDFORD BOROUGH COUNCIL                 ,124800      ,21-Feb-19,4235,0,Apprentice Levi               
Borough Council of Kings Lynn and West Norfolk,E07000146,31/03/19,Apprenticeship Scheme         ,BEDFORD BOROUGH COUNCIL                 ,124800      ,21-Mar-19,4239,0,Apprentice Levi               
Borough Council of Kings Lynn and West Norfolk,E07000146,31/03/19,W Norfolk Property Ltd        ,SAVILLS (UK) LTD                        ,141427      ,10-Jan-19,3500,0,Professional Fees             
Borough Council of Kings Lynn and West Norfolk,E07000146,31/03/19,Project Mmgt / Marketing      ,AHR BUILDING CONSULTANCY LTD            ,146946      ,25-Mar-19,74945,0,Professional Fees             
Borough Council of Kings Lynn and West Norfolk,E07000146,31/03/19,Townscape Heritage Initiative ,PENISTON LTD                            ,128609      ,28-Jan-19,3149.87,0,THI Priority Grant Projects   
Borough Council of Kings Lynn and West Norfolk,E07000146,31/03/19,Investment & Place Marketing  ,ILIFFE MEDIA PUBLISHING LTD             ,146042      ,07-Jan-19,5250,0,Mayors Award                  
Borough Council of Kings Lynn and West Norfolk,E07000146,31/03/19,GM Northern Area              ,THURLOW NUNN STANDEN LTD                ,101547      ,14-Mar-19,974.4,0,Materials                     
Borough Council of Kings Lynn and West Norfolk,E07000146,31/03/19,Trafalgar (DM)  Industrial Est,COMPLETE ELECTRICAL SOLUTION NORFOLK LTD,146995      ,18-Mar-19,815.35,0,General Repairs               
Borough Council of Kings Lynn and West Norfolk,E07000146,31/03/19,Market Contribution Tesco     ,RAY LINGE MARKET STALLS LTD             ,147166      ,11-Mar-19,1360,0,Works                         
Borough Council of Kings Lynn and West Norfolk,E07000146,31/03/19,Disabled Facilties Grant      ,T M BROWNE LTD                          ,131470      ,28-Feb-19,1259.81,0,Works                         
Borough Council of Kings Lynn and West Norfolk,E07000146,31/03/19,Disabled Facilties Grant      ,STANNAH LIFT SERVICES LTD               ,101479      ,17-Jan-19,6996,0,Works                         
Borough Council of Kings Lynn and West Norfolk,E07000146,31/03/19,Phase -Lynnsport 4 /5 Contract,LOVELL PARTNERSHIPS LTD                 ,143432      ,07-Feb-19,538399.82,0,Works                         
Borough Council of Kings Lynn and West Norfolk,E07000146,31/03/19,Phase 3-Lynnsport 1-Contractor,LOVELL PARTNERSHIPS LTD                 ,143432      ,11-Mar-19,37016.46,0,Works                         
Borough Council of Kings Lynn and West Norfolk,E07000146,31/03/19,Phase -Lynnsport 4 /5 Contract,LOVELL PARTNERSHIPS LTD                 ,143432      ,11-Mar-19,14750.38,0,Works                         
Borough Council of Kings Lynn and West Norfolk,E07000146,31/03/19,NORA Phase 3                  ,LOVELL PARTNERSHIPS LTD                 ,143432      ,11-Mar-19,315807.15,0,Works                         
Borough Council of Kings Lynn and West Norfolk,E07000146,31/03/19,Depot Infestation Works       ,CORE TECHNOLOGY PROJECTS LTD            ,143597      ,25-Feb-19,1935,0,Rechargeable Works            
Borough Council of Kings Lynn and West Norfolk,E07000146,31/03/19,CCTV Multistorey              ,FOCUS SECURITY (EAST ANGLIA) LTD        ,136665      ,14-Mar-19,715.5,0,Works                         
Borough Council of Kings Lynn and West Norfolk,E07000146,31/03/19,Adapt Grant                   ,FREEBRIDGE COMMUNITY HOUSING            ,127987      ,18-Feb-19,2318.42,0,Works                         
Borough Council of Kings Lynn and West Norfolk,E07000146,31/03/19,Parking Operations - Borough  ,BEMROSE BOOTH PARAGON LTD               ,119101      ,04-Feb-19,1995,0,Stationery & Office Supplies  
Borough Council of Kings Lynn and West Norfolk,E07000146,31/03/19,LILY PHASE 4                  ,WEST NORFOLK CARERS ASSOCIATION         ,147361      ,07-Feb-19,1000,0,Lily Advisor Payments         
Borough Council of Kings Lynn and West Norfolk,E07000146,31/03/19,LILY PHASE 4                  ,WEST NORFOLK CARERS ASSOCIATION         ,147361      ,25-Mar-19,600,0,Lily Advisor Payments         
Borough Council of Kings Lynn and West Norfolk,E07000146,31/03/19,Mintlyn Crematorium           ,TELESHORE UK LTD T/A GEMINI CCS LTD     ,107802      ,24-Jan-19,520.8,0,Tools And Equipment           
Borough Council of Kings Lynn and West Norfolk,E07000146,31/03/19,"Manor House,52 HighSt,NWold NL",NORFOLK COUNTY COUNCIL                  ,101142      ,24-Jan-19,541.26,0,Rechargeable Works            
Borough Council of Kings Lynn and West Norfolk,E07000146,31/03/19,Trade Refuse                  ,NORFOLK COUNTY COUNCIL                  ,101142      ,04-Feb-19,27953.12,0,NCC Trade Waste Disposal      
Borough Council of Kings Lynn and West Norfolk,E07000146,31/03/19,Corporate Health & Safety     ,SKYGUARD LTD                            ,147174      ,21-Feb-19,825,0,Staff Health & Safety         
Borough Council of Kings Lynn and West Norfolk,E07000146,31/03/19,Townscape Heritage Initiative ,W SPICE BUILDING LTD                    ,145648      ,10-Jan-19,41174.86,0,THI Priority Grant Projects   
Borough Council of Kings Lynn and West Norfolk,E07000146,31/03/19,Dev & Estate Capital Receipts ,PARSONS CONSULTING ENGINEERS LTD        ,147424      ,18-Feb-19,1485,0,Disposal Cost Architect       
Borough Council of Kings Lynn and West Norfolk,E07000146,31/03/19,50302                         ,EMBRIDGE CONSULTING (UK) LTD            ,147624      ,25-Mar-19,10116,0,IT Developments/Enhancements  
Borough Council of Kings Lynn and West Norfolk,E07000146,31/03/19,Financial Services            ,EMBRIDGE CONSULTING (UK) LTD            ,147624      ,25-Mar-19,10116,0,IT Developments/Enhancements  
Borough Council of Kings Lynn and West Norfolk,E07000146,31/03/19,CCTV Crem                     ,QUALITY ESSENTIAL DISTRIBUTON LTD       ,147658      ,18-Mar-19,5709.38,0,Equipment/Materials           
Borough Council of Kings Lynn and West Norfolk,E07000146,31/03/19,ICT                           ,ADEPT TECHNOLOGY GROUP PLC              ,135085      ,28-Feb-19,4346.88,0,Telephones Recharged          
Borough Council of Kings Lynn and West Norfolk,E07000146,31/03/19,ICT                           ,ADEPT TECHNOLOGY GROUP PLC              ,135085      ,28-Feb-19,631.29,0,Telephones Recharged          
Borough Council of Kings Lynn and West Norfolk,E07000146,31/03/19,Cost of Collection - CTax     ,ROYAL MAIL GROUP LTD                    ,101369      ,28-Jan-19,589.26,0,Postages                      
Borough Council of Kings Lynn and West Norfolk,E07000146,31/03/19,Head of Legal Services        ,NORTH NORFOLK DISTRICT COUNCIL          ,101156      ,28-Jan-19,1050,0,Commissioning Ext. Legal fees 
Borough Council of Kings Lynn and West Norfolk,E07000146,31/03/19,Head of Legal Services        ,NORTH NORFOLK DISTRICT COUNCIL          ,101156      ,21-Feb-19,775,0,Commissioning Ext. Legal fees 
Borough Council of Kings Lynn and West Norfolk,E07000146,31/03/19,35 Premier Inn Hunstanton     ,SURVEY SOLUTIONS (EASTERN)              ,147316      ,11-Feb-19,1950,0,Planning Fees                 
Borough Council of Kings Lynn and West Norfolk,E07000146,31/03/19,Domestic Refuse               ,KIER SERVICES ENVIRONMENTAL             ,141535      ,07-Feb-19,4021.92,0,Delivery/Carriage Charge      
Borough Council of Kings Lynn and West Norfolk,E07000146,31/03/19,Food Waste                    ,KIER SERVICES ENVIRONMENTAL             ,141535      ,25-Mar-19,23018.6,0,Waste Processing Cost         
Borough Council of Kings Lynn and West Norfolk,E07000146,31/03/19,Recycling Composting          ,KIER SERVICES ENVIRONMENTAL             ,141535      ,25-Mar-19,15824.59,0,Waste Processing Cost         
Borough Council of Kings Lynn and West Norfolk,E07000146,31/03/19,Food Waste                    ,KIER SERVICES ENVIRONMENTAL             ,141535      ,25-Mar-19,1883.53,0,Contracted Services           
Borough Council of Kings Lynn and West Norfolk,E07000146,31/03/19,Food Waste                    ,KIER SERVICES ENVIRONMENTAL             ,141535      ,25-Mar-19,561.78,0,Contracted Services           
Borough Council of Kings Lynn and West Norfolk,E07000146,31/03/19,Recycling Commercial          ,KIER SERVICES ENVIRONMENTAL             ,141535      ,25-Mar-19,760.94,0,Contracted Services           
Borough Council of Kings Lynn and West Norfolk,E07000146,31/03/19,Kings Court Kings Lynn        ,ELECTRICAL INSPECTION SOLUTIONS LTD     ,142458      ,14-Feb-19,1400,0,General Repairs               
Borough Council of Kings Lynn and West Norfolk,E07000146,31/03/19,"St Nicholas Close, Gayton     ",TURLEY                                  ,147699      ,24-Jan-19,1588.83,0,Consultants Fees              
Borough Council of Kings Lynn and West Norfolk,E07000146,31/03/19,"St Nicholas Close, Gayton     ",TURLEY                                  ,147699      ,25-Mar-19,4555.27,0,Consultants Fees              
Borough Council of Kings Lynn and West Norfolk,E07000146,31/03/19,"St Nicholas Close, Gayton     ",TURLEY                                  ,147699      ,18-Mar-19,5877.5,0,Consultants Fees              
Borough Council of Kings Lynn and West Norfolk,E07000146,31/03/19,KL Arts Centre                ,ALIVE MANAGEMENT LTD                    ,143925      ,11-Feb-19,9397.9,0,Recharge Maint (Fr AML A910)  
Borough Council of Kings Lynn and West Norfolk,E07000146,31/03/19,Sports Grounds South          ,ALIVE MANAGEMENT LTD                    ,143925      ,11-Feb-19,546.19,0,Pavilion Recharge (fr AML)    
Borough Council of Kings Lynn and West Norfolk,E07000146,31/03/19,KL Arts Centre                ,ALIVE MANAGEMENT LTD                    ,143925      ,11-Feb-19,1568.56,0,Recharge Maint (Fr AML A910)  
Borough Council of Kings Lynn and West Norfolk,E07000146,31/03/19,Dutton Sports Pavillion       ,ALIVE MANAGEMENT LTD                    ,143925      ,11-Feb-19,1951.22,0,Pavilion Recharge (fr AML)    
Borough Council of Kings Lynn and West Norfolk,E07000146,31/03/19,Kingsway Sports Pavillion     ,ALIVE MANAGEMENT LTD                    ,143925      ,11-Feb-19,1032.96,0,Pavilion Recharge (fr AML)    
Borough Council of Kings Lynn and West Norfolk,E07000146,31/03/19,KL Arts Centre                ,ALIVE MANAGEMENT LTD                    ,143925      ,11-Feb-19,6214.6,0,Recharge Maint (Fr AML A910)  
Borough Council of Kings Lynn and West Norfolk,E07000146,31/03/19,South Lynn Community Centre   ,ALIVE MANAGEMENT LTD                    ,143925      ,11-Feb-19,1046.08,0,Comm Centres Staff (AML A915) 
Borough Council of Kings Lynn and West Norfolk,E07000146,31/03/19,Townscape Heritage Initiative ,JDS CONTSTRUCTION NORFOLK LTD           ,140389      ,07-Feb-19,3058.69,0,THI Priority Grant Projects   
Borough Council of Kings Lynn and West Norfolk,E07000146,31/03/19,Fairstead Community Centre    ,MCE HEATCOOL                            ,140420      ,07-Feb-19,3665,0,General Repairs               
Borough Council of Kings Lynn and West Norfolk,E07000146,31/03/19,Fairstead Community Centre    ,MCE HEATCOOL                            ,140420      ,07-Feb-19,995,0,General Repairs               
Borough Council of Kings Lynn and West Norfolk,E07000146,31/03/19,Public Conveniences           ,PICK & BANHAM                           ,101271      ,07-Feb-19,960,0,General Repairs               
Borough Council of Kings Lynn and West Norfolk,E07000146,31/03/19,Electricity Direct Recharge Ac,BRITISH GAS BUSINESS                    ,100216      ,07-Feb-19,8651.91,0,Electricity Bulk Billing      
Borough Council of Kings Lynn and West Norfolk,E07000146,31/03/19,King's Court - DWP Specific   ,T GILL & SON (NORWICH) LTD              ,146727      ,04-Mar-19,22324.39,0,Works                         
Borough Council of Kings Lynn and West Norfolk,E07000146,31/03/19,The Walks                     ,ENTERPRISE RENT-A-CAR (UK) LTD          ,100567      ,25-Mar-19,1070.44,0,Hire Car Charge (Enterprise)  
Borough Council of Kings Lynn and West Norfolk,E07000146,31/03/19,Kings Court Kings Lynn        ,MARLOWE FIRE & SECURITY LTD             ,141479      ,25-Mar-19,790,0,General Repairs               
Borough Council of Kings Lynn and West Norfolk,E07000146,31/03/19,Care & Repair - Home Impro Agy,SEVEN RESOURCING LTD                    ,145043      ,17-Jan-19,1080.88,0,Agency Staff                  
Borough Council of Kings Lynn and West Norfolk,E07000146,31/03/19,Care & Repair - Home Impro Agy,SEVEN RESOURCING LTD                    ,145043      ,21-Feb-19,1177.68,0,Agency Staff                  
Borough Council of Kings Lynn and West Norfolk,E07000146,31/03/19,Kings Court Kings Lynn        ,CORONA ENERGY RETAIL 4 LTD              ,131838      ,25-Mar-19,888.53,0,Gas                           
Borough Council of Kings Lynn and West Norfolk,E07000146,31/03/19,Corn Exchange                 ,CORONA ENERGY RETAIL 4 LTD              ,131838      ,25-Mar-19,1254.4,0,Gas                           
Borough Council of Kings Lynn and West Norfolk,E07000146,31/03/19,Public Cleansing              ,GROUNDSMAN TOOLS & SUPPLIES LLP         ,137687      ,17-Jan-19,650,0,Cleaning Materials & Equipment
Borough Council of Kings Lynn and West Norfolk,E07000146,31/03/19,Public Cleansing              ,JOHNSTON SWEEPERS LTD                   ,121881      ,14-Feb-19,562.34,0,Sweeper Consumables           
Borough Council of Kings Lynn and West Norfolk,E07000146,31/03/19,Public Cleansing              ,JOHNSTON SWEEPERS LTD                   ,121881      ,25-Mar-19,972.4,0,Contract Repairs              
Borough Council of Kings Lynn and West Norfolk,E07000146,31/03/19,Resort Seafront               ,1-2 CALL DRAINAGE & GROUNDWORK LTD      ,131800      ,14-Mar-19,2300,0,General Repairs               
Borough Council of Kings Lynn and West Norfolk,E07000146,31/03/19,Disabled Facilties Grant      ,CHAS D ALLFLATT LTD                     ,100315      ,10-Jan-19,19471.67,0,Works                         
Borough Council of Kings Lynn and West Norfolk,E07000146,31/03/19,Adapt Grant                   ,CHAS D ALLFLATT LTD                     ,100315      ,10-Jan-19,4005.61,0,Works                         
Borough Council of Kings Lynn and West Norfolk,E07000146,31/03/19,Disabled Facilties Grant      ,CHAS D ALLFLATT LTD                     ,100315      ,24-Jan-19,7778.43,0,Works                         
Borough Council of Kings Lynn and West Norfolk,E07000146,31/03/19,Adapt Grant                   ,CHAS D ALLFLATT LTD                     ,100315      ,24-Jan-19,1067.62,0,Works                         
Borough Council of Kings Lynn and West Norfolk,E07000146,31/03/19,Adapt Grant                   ,CHAS D ALLFLATT LTD                     ,100315      ,04-Feb-19,707.44,0,Works                         
Borough Council of Kings Lynn and West Norfolk,E07000146,31/03/19,Handyperson Scheme Kings Lynn ,CHAS D ALLFLATT LTD                     ,100315      ,11-Feb-19,600,0,Contractor Payments           
Borough Council of Kings Lynn and West Norfolk,E07000146,31/03/19,Adapt Grant                   ,CHAS D ALLFLATT LTD                     ,100315      ,04-Mar-19,1680.96,0,Works                         
Borough Council of Kings Lynn and West Norfolk,E07000146,31/03/19,Emergency Repair Grant        ,CHAS D ALLFLATT LTD                     ,100315      ,28-Feb-19,500,0,Works                         
Borough Council of Kings Lynn and West Norfolk,E07000146,31/03/19,Adapt Grant                   ,CHAS D ALLFLATT LTD                     ,100315      ,28-Feb-19,4010.05,0,Works                         
Borough Council of Kings Lynn and West Norfolk,E07000146,31/03/19,Adapt Grant                   ,CHAS D ALLFLATT LTD                     ,100315      ,07-Mar-19,2273.38,0,Works                         
Borough Council of Kings Lynn and West Norfolk,E07000146,31/03/19,Disabled Facilties Grant      ,CHAS D ALLFLATT LTD                     ,100315      ,11-Mar-19,500,0,Works                         
Borough Council of Kings Lynn and West Norfolk,E07000146,31/03/19,Disabled Facilties Grant      ,CHAS D ALLFLATT LTD                     ,100315      ,14-Mar-19,5818.76,0,Works                         
Borough Council of Kings Lynn and West Norfolk,E07000146,31/03/19,Adapt Grant                   ,CHAS D ALLFLATT LTD                     ,100315      ,25-Mar-19,3375.9,0,Works                         
Borough Council of Kings Lynn and West Norfolk,E07000146,31/03/19,Adapt Grant                   ,CHAS D ALLFLATT LTD                     ,100315      ,25-Mar-19,707.44,0,Works                         
Borough Council of Kings Lynn and West Norfolk,E07000146,31/03/19,CCTV Breckland                ,E AKERS                                 ,100500      ,14-Mar-19,600,0,Maint Plant & Equip           
Borough Council of Kings Lynn and West Norfolk,E07000146,31/03/19,Disabled Facilties Grant      ,BROAD OAK PROPERTIES LTD                ,147815      ,28-Feb-19,3982.07,0,Works                         
Borough Council of Kings Lynn and West Norfolk,E07000146,31/03/19,Housing Options Programme     ,THE GRANGE HOTEL                        ,124746      ,11-Mar-19,500,0,Temporary Accommodation       
Borough Council of Kings Lynn and West Norfolk,E07000146,31/03/19,Mintlyn Crematorium           ,FACULTATIEVE TECHNOLOGIESLTD            ,125759      ,10-Jan-19,914.82,0,Trade Waste                   
Borough Council of Kings Lynn and West Norfolk,E07000146,31/03/19,Mintlyn Crematorium           ,FACULTATIEVE TECHNOLOGIESLTD            ,125759      ,21-Feb-19,3043.31,0,Planned Maintenance           
Borough Council of Kings Lynn and West Norfolk,E07000146,31/03/19,Handyperson Scheme Kings Lynn ,A SMITH CONTRACTORS                     ,115351      ,04-Feb-19,585,0,Contractor Payments           
Borough Council of Kings Lynn and West Norfolk,E07000146,31/03/19,Handyperson Scheme Kings Lynn ,A SMITH CONTRACTORS                     ,115351      ,18-Feb-19,585,0,Contractor Payments           
Borough Council of Kings Lynn and West Norfolk,E07000146,31/03/19,Printing&Copying-Floor Copiers,CAPITA BUSINESS SERVICES LTD            ,100288      ,21-Feb-19,1785.22,0,Other Machine Lease           
Borough Council of Kings Lynn and West Norfolk,E07000146,31/03/19,Printing&Copying-Floor Copiers,CAPITA BUSINESS SERVICES LTD            ,100288      ,21-Feb-19,2005.75,0,Other Machine Lease           
Borough Council of Kings Lynn and West Norfolk,E07000146,31/03/19,Cashless Park YT(Gt Ya off St),GREAT YARMOUTH BOROUGH COUNCIL          ,100713      ,11-Feb-19,29057,0,Agency                        
Borough Council of Kings Lynn and West Norfolk,E07000146,31/03/19,Cashless Park YT(Gt Ya off St),GREAT YARMOUTH BOROUGH COUNCIL          ,100713      ,14-Feb-19,4841.5,0,Agency                        
Borough Council of Kings Lynn and West Norfolk,E07000146,31/03/19,Hunstanton TIC                ,HUNSTANTON TOWN COUNCIL                 ,100794      ,07-Jan-19,21840,0,Management Fee                
Borough Council of Kings Lynn and West Norfolk,E07000146,31/03/19,ICT                           ,HFX LIMITED                             ,104668      ,07-Feb-19,2740.39,0,Computer Software Maintenance 
Borough Council of Kings Lynn and West Norfolk,E07000146,31/03/19,ICT Development Programme     ,HFX LIMITED                             ,104668      ,07-Feb-19,20000,0,ICT Support/Maint/Training    
Borough Council of Kings Lynn and West Norfolk,E07000146,31/03/19,50121                         ,HFX LIMITED                             ,104668      ,07-Feb-19,6210,0,Subscriptions                 
Borough Council of Kings Lynn and West Norfolk,E07000146,31/03/19,Personnel Services            ,HFX LIMITED                             ,104668      ,07-Feb-19,6210,0,Subscriptions                 
Borough Council of Kings Lynn and West Norfolk,E07000146,31/03/19,Dev & Estate Capital Receipts ,NORFOLK WILDLIFE SERVICES LTD           ,110112      ,11-Feb-19,951.25,0,Disposal Cost Architect       
Borough Council of Kings Lynn and West Norfolk,E07000146,31/03/19,Improving Attainment          ,ST MARTHAS RC VA PRIMARY SCHOOL         ,118783      ,21-Feb-19,2000,0,Small Projects                
Borough Council of Kings Lynn and West Norfolk,E07000146,31/03/19,National Assist Act Burials   ,THORNALLEY FUNERAL SERVICES LTD         ,125811      ,18-Mar-19,1476,0,Burial Fees-Nat.Ass.Act       
Borough Council of Kings Lynn and West Norfolk,E07000146,31/03/19,Benefit Administration        ,HOUND ENVELOPES LTD                     ,129495      ,25-Mar-19,695,0,Stationery & Office Supplies  
Borough Council of Kings Lynn and West Norfolk,E07000146,31/03/19,Kings Court Kings Lynn        ,DREAMCLEAN                              ,133212      ,17-Jan-19,1750,0,Repairs - Services Charges    
Borough Council of Kings Lynn and West Norfolk,E07000146,31/03/19,Supplier Holding Account      ,RIX PETROLEUM (EAST ANGLIA) LTD         ,135739      ,17-Jan-19,2645,0,Derv.                         
Borough Council of Kings Lynn and West Norfolk,E07000146,31/03/19,50302                         ,HAYS SPECIALIST RECRUITMENT             ,137507      ,21-Mar-19,630,0,Agency Staff                  
Borough Council of Kings Lynn and West Norfolk,E07000146,31/03/19,Financial Services            ,HAYS SPECIALIST RECRUITMENT             ,137507      ,21-Mar-19,630,0,Agency Staff                  
Borough Council of Kings Lynn and West Norfolk,E07000146,31/03/19,Domestic Refuse               ,UK CONTAINER MAINTENANCE LTD            ,137174      ,31-Jan-19,534,0,Dayworks and Addnl Works      
Borough Council of Kings Lynn and West Norfolk,E07000146,31/03/19,Trade Refuse                  ,UK CONTAINER MAINTENANCE LTD            ,137174      ,31-Jan-19,623,0,General Repairs               
Borough Council of Kings Lynn and West Norfolk,E07000146,31/03/19,Street Lighting               ,WESTCOTEC LTD                           ,141998      ,24-Jan-19,867.54,0,General Repairs               
Borough Council of Kings Lynn and West Norfolk,E07000146,31/03/19,Partnerships                  ,VISIT EAST ANGLIA LTD                   ,140506      ,04-Feb-19,7200,0,Norfolk Tourism               
Borough Council of Kings Lynn and West Norfolk,E07000146,31/03/19,Printing & Copying - Printroom,KONICA MINOLTA BUSINESS SOLUTIONS       ,141349      ,24-Jan-19,10026.24,0,Other Machine Lease           
Borough Council of Kings Lynn and West Norfolk,E07000146,31/03/19,Printing & Copying - Printroom,KONICA MINOLTA BUSINESS SOLUTIONS       ,141349      ,24-Jan-19,5274.17,0,Konica Usage                  
Borough Council of Kings Lynn and West Norfolk,E07000146,31/03/19,Supplier Holding Account      ,NORTH STREET TYRES                      ,119959      ,17-Jan-19,787.15,0,Materials                     
Borough Council of Kings Lynn and West Norfolk,E07000146,31/03/19,Supplier Holding Account      ,NORTH STREET TYRES                      ,119959      ,14-Feb-19,816.04,0,Materials                     
Borough Council of Kings Lynn and West Norfolk,E07000146,31/03/19,North Lynn Industrial Est     ,DOWNHAM DOOR SERVICES                   ,100481      ,24-Jan-19,740,0,General Repairs               
Borough Council of Kings Lynn and West Norfolk,E07000146,31/03/19,Contract Procurement          ,EUNOMIA RESEARCH & CONSULTING           ,140549      ,25-Mar-19,4915,0,Project Costs                 
Borough Council of Kings Lynn and West Norfolk,E07000146,31/03/19,Day visitor awareness         ,BEST 4 PROMOTIONS NORFOLK               ,136650      ,11-Mar-19,2358.75,0,Distribution                  
Borough Council of Kings Lynn and West Norfolk,E07000146,31/03/19,50127                         ,GREEN DUCK LTD                          ,140200      ,25-Mar-19,825,0,In-House Training             
Borough Council of Kings Lynn and West Norfolk,E07000146,31/03/19,Training Holding Account      ,GREEN DUCK LTD                          ,140200      ,25-Mar-19,825,0,In-House Training             
Borough Council of Kings Lynn and West Norfolk,E07000146,31/03/19,Valentine Road Hunstanton     ,NORSE COMMERCIAL SERVICES LTD           ,134973      ,21-Jan-19,1524,0,General Repairs               
Borough Council of Kings Lynn and West Norfolk,E07000146,31/03/19,Town Hall Kings Lynn          ,D M ALCOTT                              ,138970      ,11-Mar-19,1320,0,Maintenance Contracts         
Borough Council of Kings Lynn and West Norfolk,E07000146,31/03/19,50127                         ,IDOX SOFTWARE LTD                       ,132346      ,25-Feb-19,1875,0,In-House Training             
Borough Council of Kings Lynn and West Norfolk,E07000146,31/03/19,Training Holding Account      ,IDOX SOFTWARE LTD                       ,132346      ,25-Feb-19,1875,0,In-House Training             
Borough Council of Kings Lynn and West Norfolk,E07000146,31/03/19,Urban Open Spaces             ,KL PUBLICATIONS LTD                     ,137190      ,11-Feb-19,576,0,Christmas Lighting            
Borough Council of Kings Lynn and West Norfolk,E07000146,31/03/19,50127                         ,UNIVERSITY OF DERBY                     ,122990      ,07-Mar-19,2100,0,Qualification Training        
Borough Council of Kings Lynn and West Norfolk,E07000146,31/03/19,Training Holding Account      ,UNIVERSITY OF DERBY                     ,122990      ,07-Mar-19,2100,0,Qualification Training        
Borough Council of Kings Lynn and West Norfolk,E07000146,31/03/19,GM Central Area               ,ANGLIA MOWERS                           ,143745      ,21-Mar-19,5057.13,0,Materials                     
Borough Council of Kings Lynn and West Norfolk,E07000146,31/03/19,Hunstanton Parks HLF          ,MEDALS FOR ALL LTD                      ,145089      ,28-Jan-19,574.88,0,Special Events                
Borough Council of Kings Lynn and West Norfolk,E07000146,31/03/19,Dev & Estate Capital Receipts ,DAVID TRUNDLEY DESIGN SERVS LTD         ,103063      ,24-Jan-19,1000,0,Disposal Cost Architect       
Borough Council of Kings Lynn and West Norfolk,E07000146,31/03/19,Assistive Technology Project  ,TUNSTALL HEALTHCARE (UK) LTD            ,101569      ,28-Jan-19,1275,0,Tools And Equipment           
Borough Council of Kings Lynn and West Norfolk,E07000146,31/03/19,Revs & Bens System Replacement,CIVICA  UK LTD                          ,128548      ,11-Mar-19,500,0,Computer Equip (Hardware)     
Borough Council of Kings Lynn and West Norfolk,E07000146,31/03/19,Dry Box Collection Scheme     ,NORSE ENVIRONMENTAL WASTE SVCS          ,102093      ,21-Mar-19,22367.64,0,Waste Processing Cost         
Borough Council of Kings Lynn and West Norfolk,E07000146,31/03/19,Disabled Facilties Grant      ,GASWISE SERVICES LTD.                   ,100677      ,10-Jan-19,7291.24,0,Works                         
Borough Council of Kings Lynn and West Norfolk,E07000146,31/03/19,Emergency Repair Grant        ,GASWISE SERVICES LTD.                   ,100677      ,31-Jan-19,2599,0,Works                         
Borough Council of Kings Lynn and West Norfolk,E07000146,31/03/19,Ceiling Repairs Town Hall     ,CLIVEDEN CONSERVATION                   ,146680      ,14-Jan-19,2571.5,0,Works                         
Borough Council of Kings Lynn and West Norfolk,E07000146,31/03/19,NORA                          ,GEODYNE LTD                             ,144399      ,21-Feb-19,5000,0,External Fees/Consultancy     
Borough Council of Kings Lynn and West Norfolk,E07000146,31/03/19,Apprenticeship Scheme         ,BEDFORD BOROUGH COUNCIL                 ,124800      ,11-Feb-19,4332,0,Apprentice Levi               
Borough Council of Kings Lynn and West Norfolk,E07000146,31/03/19,BCKLWN Control Account        ,NEWLYN PLC                              ,143655      ,14-Feb-19,1160.78,0,VAT Input (VAT Only Invoice)  
Borough Council of Kings Lynn and West Norfolk,E07000146,31/03/19,CCTV                          ,ZILICA LTD                              ,145297      ,21-Mar-19,590,0,General Repairs               
Borough Council of Kings Lynn and West Norfolk,E07000146,31/03/19,CCTV Multistorey              ,ZILICA LTD                              ,145297      ,21-Mar-19,590,0,Equipment/Materials           
Borough Council of Kings Lynn and West Norfolk,E07000146,31/03/19,Project Mmgt / Marketing      ,AHR BUILDING CONSULTANCY LTD            ,146946      ,11-Feb-19,3914,0,External Fees/Consultancy     
Borough Council of Kings Lynn and West Norfolk,E07000146,31/03/19,Mintlyn Crematorium           ,VIDA HEALTHCARE                         ,130101      ,07-Feb-19,2317.1,0,Professional Fees             
Borough Council of Kings Lynn and West Norfolk,E07000146,31/03/19,Stories of Lynn               ,CTS SECURITY LTD                        ,110565      ,14-Feb-19,527.5,0,Alarm Maintenance             
Borough Council of Kings Lynn and West Norfolk,E07000146,31/03/19,KC OFFICE ACCOMMODATION RENTAL,MANPOWER DIRECT UK                      ,147078      ,25-Mar-19,6015.6,0,Contract Security             
Borough Council of Kings Lynn and West Norfolk,E07000146,31/03/19,Resort Seafront               ,PENTY CONTRACTORS LTD                   ,101244      ,14-Feb-19,640,0,General Repairs               
Borough Council of Kings Lynn and West Norfolk,E07000146,31/03/19,Disabled Facilties Grant      ,STANNAH LIFT SERVICES LTD               ,101479      ,28-Feb-19,7226,0,Works                         
Borough Council of Kings Lynn and West Norfolk,E07000146,31/03/19,Adapt Grant                   ,STANNAH LIFT SERVICES LTD               ,101479      ,21-Mar-19,5578,0,Works                         
Borough Council of Kings Lynn and West Norfolk,E07000146,31/03/19,Adapt Grant                   ,STANNAH LIFT SERVICES LTD               ,101479      ,25-Mar-19,3529,0,Works                         
Borough Council of Kings Lynn and West Norfolk,E07000146,31/03/19,Parking Operations - Borough  ,FOCUS SECURITY (EAST ANGLIA) LTD        ,136665      ,24-Jan-19,780.54,0,Gen Rep KL P&D                
Borough Council of Kings Lynn and West Norfolk,E07000146,31/03/19,CCTV                          ,FOCUS SECURITY (EAST ANGLIA) LTD        ,136665      ,28-Feb-19,866.86,0,General Repairs               
Borough Council of Kings Lynn and West Norfolk,E07000146,31/03/19,Cashless Park KZ (KLWN off St),CHIPSIDE LTD                            ,146272      ,21-Feb-19,593.39,0,Bank Charges                  
Borough Council of Kings Lynn and West Norfolk,E07000146,31/03/19,Cashless Park KZ (KLWN off St),CHIPSIDE LTD                            ,146272      ,25-Mar-19,1109.17,0,Transaction Fee               
Borough Council of Kings Lynn and West Norfolk,E07000146,31/03/19,ICT                           ,AVANITE LIMITED                         ,144664      ,25-Mar-19,850,0,Computer Software Maintenance 
Borough Council of Kings Lynn and West Norfolk,E07000146,31/03/19,Disabled Facilties Grant      ,FREEBRIDGE COMMUNITY HOUSING            ,127987      ,11-Feb-19,7774.64,0,Works                         
Borough Council of Kings Lynn and West Norfolk,E07000146,31/03/19,Adapt Grant                   ,FREEBRIDGE COMMUNITY HOUSING            ,127987      ,11-Feb-19,5517.15,0,Works                         
Borough Council of Kings Lynn and West Norfolk,E07000146,31/03/19,Disabled Facilties Grant      ,FREEBRIDGE COMMUNITY HOUSING            ,127987      ,11-Feb-19,1003.03,0,Works                         
Borough Council of Kings Lynn and West Norfolk,E07000146,31/03/19,Adapt Grant                   ,FREEBRIDGE COMMUNITY HOUSING            ,127987      ,18-Feb-19,5066.79,0,Works                         
Borough Council of Kings Lynn and West Norfolk,E07000146,31/03/19,Adapt Grant                   ,FREEBRIDGE COMMUNITY HOUSING            ,127987      ,18-Feb-19,5184.52,0,Works                         
Borough Council of Kings Lynn and West Norfolk,E07000146,31/03/19,Disabled Facilties Grant      ,FREEBRIDGE COMMUNITY HOUSING            ,127987      ,18-Feb-19,12942.22,0,Works                         
Borough Council of Kings Lynn and West Norfolk,E07000146,31/03/19,LILY PHASE 4                  ,WEST NORFOLK CARERS ASSOCIATION         ,147361      ,14-Mar-19,995,0,Lily Advisor Payments         
Borough Council of Kings Lynn and West Norfolk,E07000146,31/03/19,Nora Phase 4 - BCKLWN Costs   ,P J THORY LTD                           ,147239      ,21-Jan-19,46018.14,0,Works                         
Borough Council of Kings Lynn and West Norfolk,E07000146,31/03/19,BCKLWN Control Account        ,ROSSENDALES LTD                         ,101364      ,24-Jan-19,1017.09,0,VAT Input (VAT Only Invoice)  
Borough Council of Kings Lynn and West Norfolk,E07000146,31/03/19,Depot Infestation Works       ,FINGERPRINT DIGITAL LTD                 ,138458      ,21-Feb-19,800,0,Rechargeable Works            
Borough Council of Kings Lynn and West Norfolk,E07000146,31/03/19,Dev & Estate Capital Receipts ,NORFOLK COUNTY COUNCIL                  ,101142      ,10-Jan-19,750,0,Disposal Cost Other           
Borough Council of Kings Lynn and West Norfolk,E07000146,31/03/19,Parking Operations - Borough  ,NORFOLK COUNTY COUNCIL                  ,101142      ,07-Mar-19,5565.78,0,Winter Maintenance            
Borough Council of Kings Lynn and West Norfolk,E07000146,31/03/19,Disabled Facilties Grant      ,NORFOLK COUNTY COUNCIL                  ,101142      ,21-Mar-19,1574.95,0,Works                         
Borough Council of Kings Lynn and West Norfolk,E07000146,31/03/19,Parking Operations - Borough  ,NORFOLK COUNTY COUNCIL                  ,101142      ,25-Mar-19,875,0,Rent                          
Borough Council of Kings Lynn and West Norfolk,E07000146,31/03/19,50302                         ,EMBRIDGE CONSULTING (UK) LTD            ,147624      ,21-Feb-19,17020.24,0,IT Developments/Enhancements  
Borough Council of Kings Lynn and West Norfolk,E07000146,31/03/19,Financial Services            ,EMBRIDGE CONSULTING (UK) LTD            ,147624      ,21-Feb-19,17020.24,0,IT Developments/Enhancements  
Borough Council of Kings Lynn and West Norfolk,E07000146,31/03/19,Nora Phase 4 - BCKLWN Costs   ,DRURYS ENVIRONMENTAL SERVICES           ,147628      ,25-Feb-19,593.48,0,Works                         
Borough Council of Kings Lynn and West Norfolk,E07000146,31/03/19,North Lynn Industrial Est     ,AMR ELECTRICAL SERVICES LTD             ,126614      ,04-Feb-19,502.4,0,General Repairs               
Borough Council of Kings Lynn and West Norfolk,E07000146,31/03/19,ICT                           ,ADEPT TECHNOLOGY GROUP PLC              ,135085      ,28-Jan-19,900,0,Communications                
Borough Council of Kings Lynn and West Norfolk,E07000146,31/03/19,Cashless Park JF(N Nfk off St),NORTH NORFOLK DISTRICT COUNCIL          ,101156      ,14-Jan-19,3095.6,0,Agency                        
Borough Council of Kings Lynn and West Norfolk,E07000146,31/03/19,Head of Legal Services        ,NORTH NORFOLK DISTRICT COUNCIL          ,101156      ,21-Feb-19,26295,0,Commissioning Ext. Legal fees 
Borough Council of Kings Lynn and West Norfolk,E07000146,31/03/19,Head of Legal Services        ,NORTH NORFOLK DISTRICT COUNCIL          ,101156      ,28-Feb-19,2545,0,Commissioning Ext. Legal fees 
Borough Council of Kings Lynn and West Norfolk,E07000146,31/03/19,Head of Legal Services        ,NORTH NORFOLK DISTRICT COUNCIL          ,101156      ,11-Mar-19,626,0,Commissioning Ext. Legal fees 
Borough Council of Kings Lynn and West Norfolk,E07000146,31/03/19,Flitcham Industrial Est       ,MITIE PROPERTY SERVICES (UK) LTD        ,115308      ,21-Jan-19,5507.03,0,General Repairs               
Borough Council of Kings Lynn and West Norfolk,E07000146,31/03/19,LILY PHASE 4                  ,FAMILY ACTION                           ,147337      ,07-Feb-19,1000,0,Lily Advisor Payments         
Borough Council of Kings Lynn and West Norfolk,E07000146,31/03/19,Dry Box Collection Scheme     ,KIER SERVICES ENVIRONMENTAL             ,141535      ,31-Jan-19,10492.61,0,Contracted Services           
Borough Council of Kings Lynn and West Norfolk,E07000146,31/03/19,The Walks                     ,GOLDEN TREE SURGEONS LTD                ,145155      ,10-Jan-19,2040,0,Tree Surgery                  
Borough Council of Kings Lynn and West Norfolk,E07000146,31/03/19,Parks & Open Spaces           ,GOLDEN TREE SURGEONS LTD                ,145155      ,24-Jan-19,2550,0,Tree Work/Storm Damage etc    
Borough Council of Kings Lynn and West Norfolk,E07000146,31/03/19,Parks & Open Spaces           ,GOLDEN TREE SURGEONS LTD                ,145155      ,24-Jan-19,680,0,Tree Work/Storm Damage etc    
Borough Council of Kings Lynn and West Norfolk,E07000146,31/03/19,Mintlyn Crematorium           ,GOLDEN TREE SURGEONS LTD                ,145155      ,07-Feb-19,680,0,Planned Maintenance           
Borough Council of Kings Lynn and West Norfolk,E07000146,31/03/19,NORA                          ,GOLDEN TREE SURGEONS LTD                ,145155      ,07-Feb-19,13500,0,External Fees/Consultancy     
Borough Council of Kings Lynn and West Norfolk,E07000146,31/03/19,NORA                          ,GOLDEN TREE SURGEONS LTD                ,145155      ,07-Feb-19,4500,0,External Fees/Consultancy     
Borough Council of Kings Lynn and West Norfolk,E07000146,31/03/19,"St Nicholas Close, Gayton     ",TURLEY                                  ,147699      ,07-Jan-19,978.4,0,Consultants Fees              
Borough Council of Kings Lynn and West Norfolk,E07000146,31/03/19,Community Infrastructure Levy ,REGENTS MEAD LTD                        ,147707      ,10-Jan-19,69864,0,CIL Income                    
Borough Council of Kings Lynn and West Norfolk,E07000146,31/03/19,Downham Market Sports Centre  ,ALIVE MANAGEMENT LTD                    ,143925      ,07-Feb-19,16154.61,0,Recharge Maint (Fr AML A910)  
Borough Council of Kings Lynn and West Norfolk,E07000146,31/03/19,Lynnsport General Account     ,ALIVE MANAGEMENT LTD                    ,143925      ,07-Feb-19,19253.31,0,Recharge Maint (Fr AML A910)  
Borough Council of Kings Lynn and West Norfolk,E07000146,31/03/19,Oasis General Account         ,ALIVE MANAGEMENT LTD                    ,143925      ,07-Feb-19,32215.89,0,Recharge Maint (Fr AML A910)  
Borough Council of Kings Lynn and West Norfolk,E07000146,31/03/19,St James General Account      ,ALIVE MANAGEMENT LTD                    ,143925      ,07-Feb-19,6461.3,0,Recharge Maint (Fr AML A910)  
Borough Council of Kings Lynn and West Norfolk,E07000146,31/03/19,Corn Exchange                 ,ALIVE MANAGEMENT LTD                    ,143925      ,07-Feb-19,10082.6,0,Recharge Maint (Fr AML A910)  
Borough Council of Kings Lynn and West Norfolk,E07000146,31/03/19,Emergency Repair Grant        ,PICK & BANHAM                           ,101271      ,07-Feb-19,500,0,Works                         
Borough Council of Kings Lynn and West Norfolk,E07000146,31/03/19,Care & Repair - Home Impro Agy,SEVEN RESOURCING LTD                    ,145043      ,28-Feb-19,861.62,0,Agency Staff                  
Borough Council of Kings Lynn and West Norfolk,E07000146,31/03/19,Development Control           ,PORTAL/PLANQUEST LTD                    ,147508      ,10-Jan-19,2772,0,Planning Fees                 
Borough Council of Kings Lynn and West Norfolk,E07000146,31/03/19,KL Arts Centre                ,CORONA ENERGY RETAIL 4 LTD              ,131838      ,24-Jan-19,1201.31,0,Gas                           
Borough Council of Kings Lynn and West Norfolk,E07000146,31/03/19,Kings Court Kings Lynn        ,CORONA ENERGY RETAIL 4 LTD              ,131838      ,24-Jan-19,1015.45,0,Gas                           
Borough Council of Kings Lynn and West Norfolk,E07000146,31/03/19,Corn Exchange                 ,CORONA ENERGY RETAIL 4 LTD              ,131838      ,24-Jan-19,1363.21,0,Gas                           
Borough Council of Kings Lynn and West Norfolk,E07000146,31/03/19,Valentine Road Hunstanton     ,CORONA ENERGY RETAIL 4 LTD              ,131838      ,25-Feb-19,716.13,0,Gas                           
Borough Council of Kings Lynn and West Norfolk,E07000146,31/03/19,Mintlyn Crematorium           ,CORONA ENERGY RETAIL 4 LTD              ,131838      ,25-Feb-19,4024.09,0,Gas                           
Borough Council of Kings Lynn and West Norfolk,E07000146,31/03/19,Lynnsport General Account     ,CORONA ENERGY RETAIL 4 LTD              ,131838      ,25-Mar-19,1475.6,0,Gas                           
Borough Council of Kings Lynn and West Norfolk,E07000146,31/03/19,Public Cleansing              ,JOHNSTON SWEEPERS LTD                   ,121881      ,24-Jan-19,774.34,0,Sweeper Consumables           
Borough Council of Kings Lynn and West Norfolk,E07000146,31/03/19,Open Cemeteries               ,1-2 CALL DRAINAGE & GROUNDWORK LTD      ,131800      ,18-Feb-19,1480,0,General Repairs               
Borough Council of Kings Lynn and West Norfolk,E07000146,31/03/19,Disabled Facilties Grant      ,CHAS D ALLFLATT LTD                     ,100315      ,10-Jan-19,2162.97,0,Works                         
Borough Council of Kings Lynn and West Norfolk,E07000146,31/03/19,Handyperson Scheme Kings Lynn ,CHAS D ALLFLATT LTD                     ,100315      ,10-Jan-19,2200.31,0,Contractor Payments           
Borough Council of Kings Lynn and West Norfolk,E07000146,31/03/19,Adapt Grant                   ,CHAS D ALLFLATT LTD                     ,100315      ,17-Jan-19,933.06,0,Works                         
Borough Council of Kings Lynn and West Norfolk,E07000146,31/03/19,Adapt Grant                   ,CHAS D ALLFLATT LTD                     ,100315      ,04-Mar-19,3421.11,0,Works                         
Borough Council of Kings Lynn and West Norfolk,E07000146,31/03/19,Disabled Facilties Grant      ,CHAS D ALLFLATT LTD                     ,100315      ,07-Mar-19,11459.8,0,Works                         
Borough Council of Kings Lynn and West Norfolk,E07000146,31/03/19,Disabled Facilties Grant      ,CHAS D ALLFLATT LTD                     ,100315      ,11-Mar-19,3964.69,0,Works                         
Borough Council of Kings Lynn and West Norfolk,E07000146,31/03/19,Disabled Facilties Grant      ,CHAS D ALLFLATT LTD                     ,100315      ,21-Mar-19,2340,0,Works                         
Borough Council of Kings Lynn and West Norfolk,E07000146,31/03/19,Adapt Grant                   ,CHAS D ALLFLATT LTD                     ,100315      ,21-Mar-19,1857.5,0,Works                         
Borough Council of Kings Lynn and West Norfolk,E07000146,31/03/19,Adapt Grant                   ,CHAS D ALLFLATT LTD                     ,100315      ,21-Mar-19,1409.57,0,Works                         
Borough Council of Kings Lynn and West Norfolk,E07000146,31/03/19,Adapt Grant                   ,CHAS D ALLFLATT LTD                     ,100315      ,21-Mar-19,1980.2,0,Works                         
Borough Council of Kings Lynn and West Norfolk,E07000146,31/03/19,Adapt Grant                   ,CHAS D ALLFLATT LTD                     ,100315      ,25-Mar-19,4174.86,0,Works                         
Borough Council of Kings Lynn and West Norfolk,E07000146,31/03/19,CCTV Multistorey              ,E AKERS                                 ,100500      ,14-Mar-19,1020,0,Works                         
Borough Council of Kings Lynn and West Norfolk,E07000146,31/03/19,Open Cemeteries               ,B FORSTER                               ,147751      ,23-Jan-19,902,0,Interment Fees                
Borough Council of Kings Lynn and West Norfolk,E07000146,31/03/19,Townscape Heritage Initiative ,NORFOLK BUILDING CO                     ,147786      ,11-Feb-19,12500,0,THI Small Grants              
Borough Council of Kings Lynn and West Norfolk,E07000146,31/03/19,Cost of Collection - CTax     ,ROYAL MAIL GROUP LTD                    ,101369      ,11-Mar-19,1578.88,0,Postages                      
Borough Council of Kings Lynn and West Norfolk,E07000146,31/03/19,Benefit Administration        ,ROYAL MAIL GROUP LTD                    ,101369      ,11-Mar-19,528.38,0,Postages                      
Borough Council of Kings Lynn and West Norfolk,E07000146,31/03/19,Oasis General Account         ,ALIVE MANAGEMENT LTD                    ,143925      ,14-Mar-19,6839.24,0,Recharge Maint (Fr AML A910)  
Borough Council of Kings Lynn and West Norfolk,E07000146,31/03/19,Downham Market Sports Centre  ,ALIVE MANAGEMENT LTD                    ,143925      ,14-Mar-19,4067.62,0,Recharge Maint (Fr AML A910)  
Borough Council of Kings Lynn and West Norfolk,E07000146,31/03/19,Lynnsport General Account     ,ALIVE MANAGEMENT LTD                    ,143925      ,14-Mar-19,26617.2,0,Recharge Maint (Fr AML A910)  
Borough Council of Kings Lynn and West Norfolk,E07000146,31/03/19,St James General Account      ,ALIVE MANAGEMENT LTD                    ,143925      ,14-Mar-19,6961.9,0,Recharge Maint (Fr AML A910)  
Borough Council of Kings Lynn and West Norfolk,E07000146,31/03/19,Corn Exchange                 ,ALIVE MANAGEMENT LTD                    ,143925      ,14-Mar-19,2373.59,0,Recharge Maint (Fr AML A910)  
Borough Council of Kings Lynn and West Norfolk,E07000146,31/03/19,Printing&Copying-Floor Copiers,CAPITA BUSINESS SERVICES LTD            ,100288      ,21-Feb-19,1717.42,0,Other Machine Lease           
Borough Council of Kings Lynn and West Norfolk,E07000146,31/03/19,Printing&Copying-Floor Copiers,CAPITA BUSINESS SERVICES LTD            ,100288      ,21-Feb-19,2005.75,0,Other Machine Lease           
Borough Council of Kings Lynn and West Norfolk,E07000146,31/03/19,Vehicle Recharge On Account   ,FREIGHT TRANSPORT ASSOCIATION LTD       ,100659      ,21-Mar-19,1063,0,Veh/Plant Licences            
Borough Council of Kings Lynn and West Norfolk,E07000146,31/03/19,Community Projects CRS        ,NORTH END TRUST                         ,101771      ,21-Feb-19,2545,0,Service Level Agreements      
Borough Council of Kings Lynn and West Norfolk,E07000146,31/03/19,Domestic Abuse Funding        ,LEEWAY DOMESTIC VIOLENCE & ABUSE SERVICE,124931      ,10-Jan-19,4782.96,0,Grants                        
Borough Council of Kings Lynn and West Norfolk,E07000146,31/03/19,Recycling Composting          ,GREENWORLD SALES LTD T/A GREENWORLD     ,127400      ,24-Jan-19,760.93,0,Waste Processing Cost         
Borough Council of Kings Lynn and West Norfolk,E07000146,31/03/19,Land Acquisitions             ,HMRC                                    ,128812      ,10-Jan-19,17007,0,Land & Buildings              
Borough Council of Kings Lynn and West Norfolk,E07000146,31/03/19,Careline                      ,SUPRA UK LTD                            ,134960      ,25-Feb-19,1698,0,Items Purchased For Resale    
Borough Council of Kings Lynn and West Norfolk,E07000146,31/03/19,Parks & Open Spaces           ,NORFOLK TREES                           ,134365      ,25-Feb-19,800,0,Tree Work/Storm Damage etc    
Borough Council of Kings Lynn and West Norfolk,E07000146,31/03/19,Tek- Main                     ,TRAFFIC ENFORCEMENT CENTRE              ,139856      ,14-Jan-19,10000,0,Tek Fund                      
Borough Council of Kings Lynn and West Norfolk,E07000146,31/03/19,50127                         ,SHELTER TRAINING                        ,141102      ,14-Mar-19,997.92,0,In-House Training             
Borough Council of Kings Lynn and West Norfolk,E07000146,31/03/19,Training Holding Account      ,SHELTER TRAINING                        ,141102      ,14-Mar-19,997.92,0,In-House Training             
Borough Council of Kings Lynn and West Norfolk,E07000146,31/03/19,50127                         ,SHELTER TRAINING                        ,141102      ,21-Mar-19,995.89,0,In-House Training             
Borough Council of Kings Lynn and West Norfolk,E07000146,31/03/19,Training Holding Account      ,SHELTER TRAINING                        ,141102      ,21-Mar-19,995.89,0,In-House Training             
Borough Council of Kings Lynn and West Norfolk,E07000146,31/03/19,Parish/Borough Coun. Elections,SHAW AND SONS LTD                       ,101420      ,25-Mar-19,1702.8,0,Stationery & Office Supplies  
Borough Council of Kings Lynn and West Norfolk,E07000146,31/03/19,ICT                           ,MPS  NETWORKSPLC                        ,136347      ,31-Jan-19,1200,0,Maint Plant & Equip           
Borough Council of Kings Lynn and West Norfolk,E07000146,31/03/19,CCTV                          ,NET-CTRL LTD                            ,142211      ,10-Jan-19,1722.72,0,General Repairs               
Borough Council of Kings Lynn and West Norfolk,E07000146,31/03/19,LILY PHASE 4                  ,WEST NORFOLK MIND                       ,120828      ,25-Mar-19,765,0,Lily Advisor Payments         
Borough Council of Kings Lynn and West Norfolk,E07000146,31/03/19,Resort Seafront               ,ROLAND DG (UK) LTD                      ,126784      ,25-Feb-19,1943,0,Maintenance Contracts         
Borough Council of Kings Lynn and West Norfolk,E07000146,31/03/19,Corporate Insurance           ,ZURICH INSURANCE PLC                    ,101688      ,25-Mar-19,51807.84,0,ZM Shops & Factory            
Borough Council of Kings Lynn and West Norfolk,E07000146,31/03/19,Environmental Monitoring      ,AIR MONITORS LTD                        ,144122      ,14-Mar-19,980,0,Works                         
Borough Council of Kings Lynn and West Norfolk,E07000146,31/03/19,50127                         ,UNIVERSITY OF DERBY                     ,122990      ,07-Mar-19,2100,0,Qualification Training        
Borough Council of Kings Lynn and West Norfolk,E07000146,31/03/19,Training Holding Account      ,UNIVERSITY OF DERBY                     ,122990      ,07-Mar-19,2100,0,Qualification Training        
Borough Council of Kings Lynn and West Norfolk,E07000146,31/03/19,50127                         ,UNIVERSITY OF DERBY                     ,122990      ,07-Mar-19,2100,0,Qualification Training        
Borough Council of Kings Lynn and West Norfolk,E07000146,31/03/19,Training Holding Account      ,UNIVERSITY OF DERBY                     ,122990      ,07-Mar-19,2100,0,Qualification Training        
Borough Council of Kings Lynn and West Norfolk,E07000146,31/03/19,Disabled Facilties Grant      ,RICHARD MASHAM BUILDING SERVICES        ,139415      ,20-Mar-19,18978,0,Works                         
Borough Council of Kings Lynn and West Norfolk,E07000146,31/03/19,Heacham Beach                 ,KINGS LYNN SIGNS                        ,100887      ,31-Jan-19,2378,0,General Repairs               
Borough Council of Kings Lynn and West Norfolk,E07000146,31/03/19,"Lspt - Toilet (Hock,Tenn, Gym)",DAVID TRUNDLEY DESIGN SERVS LTD         ,103063      ,21-Jan-19,2250,0,External Fees/Consultancy     
Borough Council of Kings Lynn and West Norfolk,E07000146,31/03/19,Dev & Estate Capital Receipts ,DAVID TRUNDLEY DESIGN SERVS LTD         ,103063      ,24-Jan-19,1000,0,Disposal Cost Architect       
Borough Council of Kings Lynn and West Norfolk,E07000146,31/03/19,KL Arts Centre                ,T LEE                                   ,145996      ,28-Jan-19,8199.17,0,Hirings Ticketed              
Borough Council of Kings Lynn and West Norfolk,E07000146,31/03/19,BCKLWN Control Account        ,T LEE                                   ,145996      ,28-Jan-19,1639.83,0,VAT Output                    
Borough Council of Kings Lynn and West Norfolk,E07000146,31/03/19,Domestic Refuse               ,NORSE ENVIRONMENTAL WASTE SVCS          ,102093      ,31-Jan-19,24531.08,0,Waste Processing Cost         
Borough Council of Kings Lynn and West Norfolk,E07000146,31/03/19,Domestic Refuse               ,NORSE ENVIRONMENTAL WASTE SVCS          ,102093      ,31-Jan-19,30776.34,0,Waste Processing Cost         
Borough Council of Kings Lynn and West Norfolk,E07000146,31/03/19,Dry Box Collection Scheme     ,NORSE ENVIRONMENTAL WASTE SVCS          ,102093      ,31-Jan-19,30368.37,0,Waste Processing Cost         
Borough Council of Kings Lynn and West Norfolk,E07000146,31/03/19,Domestic Refuse               ,NORSE ENVIRONMENTAL WASTE SVCS          ,102093      ,07-Feb-19,25241.72,0,Waste Processing Cost         
Borough Council of Kings Lynn and West Norfolk,E07000146,31/03/19,Postage Services Kings Court  ,POSTAGE BY PHONE                        ,101299      ,25-Mar-19,5001.91,0,Postages                      
Borough Council of Kings Lynn and West Norfolk,E07000146,31/03/19,Broad St conversion to Houses ,SMITH BUILDING SERVICES LTD             ,101443      ,14-Feb-19,9925,0,Works                         
Borough Council of Kings Lynn and West Norfolk,E07000146,31/03/19,Nora Phase 4 - BCKLWN Costs   ,WSP UK LTD                              ,146574      ,04-Mar-19,1825,0,External Fees/Consultancy     
Borough Council of Kings Lynn and West Norfolk,E07000146,31/03/19,NORA Phase 3                  ,WSP UK LTD                              ,146574      ,04-Mar-19,600,0,External Fees/Consultancy     
Borough Council of Kings Lynn and West Norfolk,E07000146,31/03/19,North Lynn Industrial Est     ,CADENT GAS LTD                          ,146650      ,07-Feb-19,1890,0,General Repairs               
Borough Council of Kings Lynn and West Norfolk,E07000146,31/03/19,Housing Options Programme     ,THE BRIDGE FOR HEROES                   ,145201      ,07-Feb-19,700,0,Temporary Accommodation       
Borough Council of Kings Lynn and West Norfolk,E07000146,31/03/19,Vehicle Recharge On Account   ,WORLDLINE IT SERVICESUK LTD RE FUELGENIE,135817      ,17-Jan-19,9786.1,0,Petrol                        
Borough Council of Kings Lynn and West Norfolk,E07000146,31/03/19,BCKLWN Control Account        ,NEWLYN PLC                              ,143655      ,07-Mar-19,1903.55,0,VAT Input (VAT Only Invoice)  
Borough Council of Kings Lynn and West Norfolk,E07000146,31/03/19,Townscape Heritage Initiative ,PENISTON LTD                            ,128609      ,14-Feb-19,2816.56,0,THI Priority Grant Projects   
Borough Council of Kings Lynn and West Norfolk,E07000146,31/03/19,CREDITORS HOLDING ACCOUNT     ,WAVE                                    ,100086      ,04-Mar-19,30652.85,0,Water Services                
Borough Council of Kings Lynn and West Norfolk,E07000146,31/03/19,Explorer Trails Project       ,NORFOLKBROADS.COM LTD                   ,146844      ,11-Mar-19,4888.75,0,Website traffic marketing     
Borough Council of Kings Lynn and West Norfolk,E07000146,31/03/19,Adapt Grant                   ,T M BROWNE LTD                          ,131470      ,17-Jan-19,1744.54,0,Works                         
Borough Council of Kings Lynn and West Norfolk,E07000146,31/03/19,Disabled Facilties Grant      ,T M BROWNE LTD                          ,131470      ,04-Mar-19,4557.52,0,Works                         
Borough Council of Kings Lynn and West Norfolk,E07000146,31/03/19,Public Cleansing              ,UK FUELS LTD                            ,139584      ,11-Feb-19,517.75,0,Derv.                         
Borough Council of Kings Lynn and West Norfolk,E07000146,31/03/19,Roads / Infrastructure        ,PENTY CONTRACTORS LTD                   ,101244      ,18-Mar-19,960,0,External Fees/Consultancy     
Borough Council of Kings Lynn and West Norfolk,E07000146,31/03/19,Disabled Facilties Grant      ,STANNAH LIFT SERVICES LTD               ,101479      ,04-Feb-19,5749,0,Works                         
Borough Council of Kings Lynn and West Norfolk,E07000146,31/03/19,Phase 1 -  Marsh Lane         ,LOVELL PARTNERSHIPS LTD                 ,143432      ,07-Feb-19,452391.58,0,Works                         
Borough Council of Kings Lynn and West Norfolk,E07000146,31/03/19,St Jam Pol-Filter media change,STERLING HYDROTECH LTD                  ,137682      ,24-Jan-19,19982,0,Works                         
Borough Council of Kings Lynn and West Norfolk,E07000146,31/03/19,Mintlyn Crematorium           ,FOCUS SECURITY (EAST ANGLIA) LTD        ,136665      ,11-Feb-19,513.73,0,General Repairs               
Borough Council of Kings Lynn and West Norfolk,E07000146,31/03/19,Mintlyn Crematorium           ,FOCUS SECURITY (EAST ANGLIA) LTD        ,136665      ,14-Mar-19,614.26,0,Planned Maintenance           
Borough Council of Kings Lynn and West Norfolk,E07000146,31/03/19,Phase 1-Lynnsport 3-BCKLWN    ,C G GODFREY LIMITED                     ,101717      ,14-Feb-19,4065,0,Works                         
Borough Council of Kings Lynn and West Norfolk,E07000146,31/03/19,Disabled Facilties Grant      ,FREEBRIDGE COMMUNITY HOUSING            ,127987      ,11-Feb-19,5762.65,0,Works                         
Borough Council of Kings Lynn and West Norfolk,E07000146,31/03/19,Disabled Facilties Grant      ,FREEBRIDGE COMMUNITY HOUSING            ,127987      ,11-Feb-19,7337.06,0,Works                         
Borough Council of Kings Lynn and West Norfolk,E07000146,31/03/19,NNDC Carpark Operation        ,BEMROSE BOOTH PARAGON LTD               ,119101      ,14-Feb-19,2313.75,0,Stationery & Office Supplies  
Borough Council of Kings Lynn and West Norfolk,E07000146,31/03/19,Parking Operations - Borough  ,BEMROSE BOOTH PARAGON LTD               ,119101      ,14-Mar-19,1995,0,Stationery & Office Supplies  
Borough Council of Kings Lynn and West Norfolk,E07000146,31/03/19,Leisure Options               ,THE BIG PICTURE                         ,147376      ,21-Mar-19,6250,0,Professional Fees             
Borough Council of Kings Lynn and West Norfolk,E07000146,31/03/19,One Vu Project                ,HUDSON ARCHITECTS                       ,147409      ,04-Mar-19,6930,0,START UP PROGRAMME            
Borough Council of Kings Lynn and West Norfolk,E07000146,31/03/19,Explorer Trails Project       ,WOLF DIGITAL MARKETING                  ,147258      ,25-Mar-19,4500,0,Social media marketing        
Borough Council of Kings Lynn and West Norfolk,E07000146,31/03/19,BCKLWN Control Account        ,ROSSENDALES LTD                         ,101364      ,14-Feb-19,1075.14,0,VAT Input (VAT Only Invoice)  
Borough Council of Kings Lynn and West Norfolk,E07000146,31/03/19,BCKLWN Control Account        ,ROSSENDALES LTD                         ,101364      ,07-Mar-19,781.1,0,VAT Input (VAT Only Invoice)  
Borough Council of Kings Lynn and West Norfolk,E07000146,31/03/19,Trade Refuse                  ,NORFOLK COUNTY COUNCIL                  ,101142      ,04-Feb-19,20094.16,0,NCC Trade Waste Disposal      
Borough Council of Kings Lynn and West Norfolk,E07000146,31/03/19,BCKLWN Control Account        ,NORFOLK COUNTY COUNCIL                  ,101142      ,07-Feb-19,800,0,VAT Input (VAT Only Invoice)  
Borough Council of Kings Lynn and West Norfolk,E07000146,31/03/19,Forties Event from 2018       ,NORFOLK COUNTY COUNCIL                  ,101142      ,25-Mar-19,5393.45,0,Professional Fees             
Borough Council of Kings Lynn and West Norfolk,E07000146,31/03/19,Kings Lynn Bus Station        ,E AKERS                                 ,100500      ,07-Jan-19,824,0,General Repairs               
Borough Council of Kings Lynn and West Norfolk,E07000146,31/03/19,DMLC External Drain & Sump Pum,COUGAR PUMP REPAIRS LTD                 ,147576      ,24-Jan-19,2700,0,Works                         
Borough Council of Kings Lynn and West Norfolk,E07000146,31/03/19,DMLC External Drain & Sump Pum,COUGAR PUMP REPAIRS LTD                 ,147576      ,24-Jan-19,6565,0,Works                         
Borough Council of Kings Lynn and West Norfolk,E07000146,31/03/19,Kings Court Kings Lynn        ,JD COOLING SYSTEMS LTD                  ,119491      ,07-Jan-19,1218.36,0,Maintenance Contracts         
Borough Council of Kings Lynn and West Norfolk,E07000146,31/03/19,CCTV Multistorey              ,QUALITY ESSENTIAL DISTRIBUTON LTD       ,147658      ,14-Jan-19,9510,0,Works                         
Borough Council of Kings Lynn and West Norfolk,E07000146,31/03/19,CCTV Depot                    ,QUALITY ESSENTIAL DISTRIBUTON LTD       ,147658      ,14-Jan-19,2858,0,Works                         
Borough Council of Kings Lynn and West Norfolk,E07000146,31/03/19,CCTV                          ,QUALITY ESSENTIAL DISTRIBUTON LTD       ,147658      ,14-Jan-19,46640.2,0,General Repairs               
Borough Council of Kings Lynn and West Norfolk,E07000146,31/03/19,CCTV Crem                     ,QUALITY ESSENTIAL DISTRIBUTON LTD       ,147658      ,14-Jan-19,4424,0,Works                         
Borough Council of Kings Lynn and West Norfolk,E07000146,31/03/19,CCTV Breckland                ,QUALITY ESSENTIAL DISTRIBUTON LTD       ,147658      ,14-Jan-19,2976,0,Maint Plant & Equip           
Borough Council of Kings Lynn and West Norfolk,E07000146,31/03/19,CCTV                          ,QUALITY ESSENTIAL DISTRIBUTON LTD       ,147658      ,14-Jan-19,12000,0,Maint Of Equipment            
Borough Council of Kings Lynn and West Norfolk,E07000146,31/03/19,Disabled Facilties Grant      ,FOSTER PROPERTY MAINTENANCE LTD         ,124851      ,25-Mar-19,8994.73,0,Works                         
Borough Council of Kings Lynn and West Norfolk,E07000146,31/03/19,Disabled Facilties Grant      ,FOSTER PROPERTY MAINTENANCE LTD         ,124851      ,25-Mar-19,6590.2,0,Works                         
Borough Council of Kings Lynn and West Norfolk,E07000146,31/03/19,Cost of Collection - CTax     ,ROYAL MAIL GROUP LTD                    ,101369      ,10-Jan-19,632.48,0,Postages                      
Borough Council of Kings Lynn and West Norfolk,E07000146,31/03/19,Head of Legal Services        ,NORTH NORFOLK DISTRICT COUNCIL          ,101156      ,11-Feb-19,6000,0,Commissioning Ext. Legal fees 
Borough Council of Kings Lynn and West Norfolk,E07000146,31/03/19,Contaminated Land Act         ,HAVAS PEOPLE LIMITED                    ,100966      ,14-Feb-19,1011.08,0,Recruitment                   
Borough Council of Kings Lynn and West Norfolk,E07000146,31/03/19,Domestic Refuse               ,KIER SERVICES ENVIRONMENTAL             ,141535      ,31-Jan-19,618.56,0,Dayworks and Addnl Works      
Borough Council of Kings Lynn and West Norfolk,E07000146,31/03/19,Nelson Quay Redevelopment     ,URBAN DELIVERY LTD                      ,145443      ,10-Jan-19,3600,0,External Fees/Consultancy     
Borough Council of Kings Lynn and West Norfolk,E07000146,31/03/19,Mintlyn Crem - Extend Car Park,GOLDEN TREE SURGEONS LTD                ,145155      ,04-Mar-19,2160,0,Works                         
Borough Council of Kings Lynn and West Norfolk,E07000146,31/03/19,Parks & Open Spaces           ,GOLDEN TREE SURGEONS LTD                ,145155      ,11-Mar-19,680,0,Tree Work/Storm Damage etc    
Borough Council of Kings Lynn and West Norfolk,E07000146,31/03/19,CCTV Multistorey              ,BALLICOM INTERNATIONAL                  ,147689      ,21-Mar-19,2082,0,Equipment/Materials           
Borough Council of Kings Lynn and West Norfolk,E07000146,31/03/19,Mintlyn Crematorium           ,VIVEDIA LTD                             ,147700      ,25-Mar-19,9000,0,Planned Maintenance           
Borough Council of Kings Lynn and West Norfolk,E07000146,31/03/19,Council Tax Support Admin     ,POLICY IN PRACTICE LTD                  ,147727      ,14-Jan-19,10700,0,Professional Fees             
Borough Council of Kings Lynn and West Norfolk,E07000146,31/03/19,Dog Warden and Services       ,DOGOTEL KENNELS & CATTERY               ,140387      ,18-Feb-19,714.06,0,Contracted Services           
Borough Council of Kings Lynn and West Norfolk,E07000146,31/03/19,Dog Warden and Services       ,DOGOTEL KENNELS & CATTERY               ,140387      ,18-Feb-19,600,0,Contracted Services           
Borough Council of Kings Lynn and West Norfolk,E07000146,31/03/19,Care & Repair - Home Impro Agy,SEVEN RESOURCING LTD                    ,145043      ,10-Jan-19,762.8,0,Agency Staff                  
Borough Council of Kings Lynn and West Norfolk,E07000146,31/03/19,Care & Repair - Home Impro Agy,SEVEN RESOURCING LTD                    ,145043      ,31-Jan-19,817.59,0,Agency Staff                  
Borough Council of Kings Lynn and West Norfolk,E07000146,31/03/19,Care & Repair - Home Impro Agy,SEVEN RESOURCING LTD                    ,145043      ,25-Mar-19,832.63,0,Agency Staff                  
Borough Council of Kings Lynn and West Norfolk,E07000146,31/03/19,St James General Account      ,CORONA ENERGY RETAIL 4 LTD              ,131838      ,24-Jan-19,2651.83,0,Gas                           
Borough Council of Kings Lynn and West Norfolk,E07000146,31/03/19,Lynnsport General Account     ,CORONA ENERGY RETAIL 4 LTD              ,131838      ,24-Jan-19,1634.15,0,Gas                           
Borough Council of Kings Lynn and West Norfolk,E07000146,31/03/19,Downham Market Sports Centre  ,CORONA ENERGY RETAIL 4 LTD              ,131838      ,25-Mar-19,1435.82,0,Gas                           
Borough Council of Kings Lynn and West Norfolk,E07000146,31/03/19,ICT                           ,ORACLE CORPORATION UK LTD               ,133436      ,07-Feb-19,2043.06,0,Computer Hardware Maintenance 
Borough Council of Kings Lynn and West Norfolk,E07000146,31/03/19,Playareas Kings Lynn          ,FENLAND LEISURE PRODUCTS LTD            ,117418      ,17-Jan-19,1308.05,0,Play Area Maintenance         
Borough Council of Kings Lynn and West Norfolk,E07000146,31/03/19,Playareas Kings Lynn          ,FENLAND LEISURE PRODUCTS LTD            ,117418      ,17-Jan-19,969.95,0,Play Area Maintenance         
Borough Council of Kings Lynn and West Norfolk,E07000146,31/03/19,Playareas Kings Lynn          ,FENLAND LEISURE PRODUCTS LTD            ,117418      ,17-Jan-19,832.29,0,Play Area Maintenance         
Borough Council of Kings Lynn and West Norfolk,E07000146,31/03/19,Playareas Kings Lynn          ,FENLAND LEISURE PRODUCTS LTD            ,117418      ,17-Jan-19,576.57,0,Play Area Maintenance         
Borough Council of Kings Lynn and West Norfolk,E07000146,31/03/19,Public Cleansing              ,JOHNSTON SWEEPERS LTD                   ,121881      ,07-Mar-19,972.4,0,Contract Repairs              
Borough Council of Kings Lynn and West Norfolk,E07000146,31/03/19,Disabled Facilties Grant      ,CHAS D ALLFLATT LTD                     ,100315      ,17-Jan-19,1632.89,0,Works                         
Borough Council of Kings Lynn and West Norfolk,E07000146,31/03/19,Adapt Grant                   ,CHAS D ALLFLATT LTD                     ,100315      ,24-Jan-19,3052.62,0,Works                         
Borough Council of Kings Lynn and West Norfolk,E07000146,31/03/19,Adapt Grant                   ,CHAS D ALLFLATT LTD                     ,100315      ,24-Jan-19,802.39,0,Works                         
Borough Council of Kings Lynn and West Norfolk,E07000146,31/03/19,Adapt Grant                   ,CHAS D ALLFLATT LTD                     ,100315      ,11-Feb-19,2052.16,0,Works                         
Borough Council of Kings Lynn and West Norfolk,E07000146,31/03/19,Handyperson Scheme Kings Lynn ,CHAS D ALLFLATT LTD                     ,100315      ,28-Feb-19,988.66,0,Contractor Payments           
Borough Council of Kings Lynn and West Norfolk,E07000146,31/03/19,Disabled Facilties Grant      ,CHAS D ALLFLATT LTD                     ,100315      ,04-Mar-19,7793.74,0,Works                         
Borough Council of Kings Lynn and West Norfolk,E07000146,31/03/19,Adapt Grant                   ,CHAS D ALLFLATT LTD                     ,100315      ,21-Mar-19,3757.67,0,Works                         
Borough Council of Kings Lynn and West Norfolk,E07000146,31/03/19,Disabled Facilties Grant      ,CHAS D ALLFLATT LTD                     ,100315      ,25-Mar-19,5099.46,0,Works                         
Borough Council of Kings Lynn and West Norfolk,E07000146,31/03/19,Adapt Grant                   ,CHAS D ALLFLATT LTD                     ,100315      ,25-Mar-19,4651.21,0,Works                         
Borough Council of Kings Lynn and West Norfolk,E07000146,31/03/19,Christmas Lights Replacement  ,E AKERS                                 ,100500      ,21-Jan-19,856,0,Equipment/Materials           
Borough Council of Kings Lynn and West Norfolk,E07000146,31/03/19,Open Cemeteries               ,CEMETERY DEVLOPMENT SERVICES LTD        ,147791      ,25-Mar-19,5850,0,Professional Fees             
Borough Council of Kings Lynn and West Norfolk,E07000146,31/03/19,Housing Options Programme     ,THE GRANGE HOTEL                        ,124746      ,10-Jan-19,583.33,0,Temporary Accommodation       
Borough Council of Kings Lynn and West Norfolk,E07000146,31/03/19,Housing Options Programme     ,THE GRANGE HOTEL                        ,124746      ,10-Jan-19,583.33,0,Temporary Accommodation       
Borough Council of Kings Lynn and West Norfolk,E07000146,31/03/19,Cost of Collection - CTax     ,ROYAL MAIL GROUP LTD                    ,101369      ,11-Feb-19,1093.6,0,Postages                      
Borough Council of Kings Lynn and West Norfolk,E07000146,31/03/19,50302                         ,ROYAL MAIL GROUP LTD                    ,101369      ,18-Feb-19,786.9,0,Postages                      
Borough Council of Kings Lynn and West Norfolk,E07000146,31/03/19,Financial Services            ,ROYAL MAIL GROUP LTD                    ,101369      ,18-Feb-19,786.9,0,Postages                      
Borough Council of Kings Lynn and West Norfolk,E07000146,31/03/19,Cost of Collection - CTax     ,ROYAL MAIL GROUP LTD                    ,101369      ,18-Feb-19,1314.8,0,Postages                      
Borough Council of Kings Lynn and West Norfolk,E07000146,31/03/19,Benefit Administration        ,ROYAL MAIL GROUP LTD                    ,101369      ,18-Mar-19,1037.56,0,Postages                      
Borough Council of Kings Lynn and West Norfolk,E07000146,31/03/19,Cost of Collection - CTax     ,ROYAL MAIL GROUP LTD                    ,101369      ,18-Mar-19,559.85,0,Postages                      
Borough Council of Kings Lynn and West Norfolk,E07000146,31/03/19,50302                         ,ROYAL MAIL GROUP LTD                    ,101369      ,18-Mar-19,2775.82,0,Postages                      
Borough Council of Kings Lynn and West Norfolk,E07000146,31/03/19,Financial Services            ,ROYAL MAIL GROUP LTD                    ,101369      ,18-Mar-19,2775.82,0,Postages                      
Borough Council of Kings Lynn and West Norfolk,E07000146,31/03/19,Handyperson Scheme Kings Lynn ,A SMITH CONTRACTORS                     ,115351      ,17-Jan-19,600,0,Contractor Payments           
Borough Council of Kings Lynn and West Norfolk,E07000146,31/03/19,Cashless Park YT(Gt Ya off St),GREAT YARMOUTH BOROUGH COUNCIL          ,100713      ,14-Jan-19,5164.6,0,Agency                        
Borough Council of Kings Lynn and West Norfolk,E07000146,31/03/19,Parking Operations - Borough  ,LE STRANGE ESTATE                       ,100920      ,07-Jan-19,2641.5,0,Rent                          
Borough Council of Kings Lynn and West Norfolk,E07000146,31/03/19,Adapt Grant                   ,CLOSOMAT LTD                            ,101557      ,14-Mar-19,4100,0,Works                         
Borough Council of Kings Lynn and West Norfolk,E07000146,31/03/19,Adapt Grant                   ,CLOSOMAT LTD                            ,101557      ,25-Mar-19,4085,0,Works                         
Borough Council of Kings Lynn and West Norfolk,E07000146,31/03/19,BCKLWN Control Account        ,W NFK GILBERT & SULLIVAN OPERATIC SOC   ,105982      ,07-Mar-19,1484.52,0,VAT Output                    
Borough Council of Kings Lynn and West Norfolk,E07000146,31/03/19,KL Arts Centre                ,W NFK GILBERT & SULLIVAN OPERATIC SOC   ,105982      ,07-Mar-19,7422.58,0,Hirings Ticketed              
Borough Council of Kings Lynn and West Norfolk,E07000146,31/03/19,ICT                           ,DOCUMENT OUTPUT SOLUTIONS UK LTD        ,122914      ,07-Feb-19,870,0,Computer Software Maintenance 
Borough Council of Kings Lynn and West Norfolk,E07000146,31/03/19,ICT                           ,DOCUMENT OUTPUT SOLUTIONS UK LTD        ,122914      ,07-Feb-19,1918,0,Computer Software Maintenance 
Borough Council of Kings Lynn and West Norfolk,E07000146,31/03/19,Recycling Composting          ,GREENWORLD SALES LTD T/A GREENWORLD     ,127400      ,18-Feb-19,1147.27,0,Waste Processing Cost         
Borough Council of Kings Lynn and West Norfolk,E07000146,31/03/19,National Assist Act Burials   ,THORNALLEY FUNERAL SERVICES LTD         ,125811      ,10-Jan-19,1626,0,Burial Fees-Nat.Ass.Act       
Borough Council of Kings Lynn and West Norfolk,E07000146,31/03/19,North Lynn Industrial Est     ,WEAAR LTD                               ,130750      ,21-Jan-19,2400,0,General Repairs               
Borough Council of Kings Lynn and West Norfolk,E07000146,31/03/19,Phase 5 Town Centre KL        ,WEAAR LTD                               ,130750      ,21-Feb-19,4950,0,General Repairs               
Borough Council of Kings Lynn and West Norfolk,E07000146,31/03/19,Community Projects CRS        ,WESTACRE ARTS FOUNDATION LTD            ,136910      ,11-Feb-19,600,0,Service Level Agreements      
Borough Council of Kings Lynn and West Norfolk,E07000146,31/03/19,Community Projects CRS        ,WESTACRE ARTS FOUNDATION LTD            ,136910      ,11-Feb-19,3865,0,Service Level Agreements      
Borough Council of Kings Lynn and West Norfolk,E07000146,31/03/19,Wash East Coast - CIC         ,ENVIRONMENT AGENCY                      ,100570      ,10-Jan-19,52774.32,0,Professional Fees             
Borough Council of Kings Lynn and West Norfolk,E07000146,31/03/19,MHP HLF Project               ,ENVIRONMENT AGENCY                      ,100570      ,07-Mar-19,1666,0,External Fees/Consultancy     
Borough Council of Kings Lynn and West Norfolk,E07000146,31/03/19,H&M New Store                 ,VANCOUVER GP LTD                        ,142742      ,28-Feb-19,209984.42,0,Works                         
Borough Council of Kings Lynn and West Norfolk,E07000146,31/03/19,Regis Place Unit1-Non Inv Care,ARTISAN (UK) DEVELOPMENTS LTD           ,135411      ,04-Feb-19,703.8,0,Repairs - Services Charges    
Borough Council of Kings Lynn and West Norfolk,E07000146,31/03/19,Regis Place Unit 2-WN Vol     ,ARTISAN (UK) DEVELOPMENTS LTD           ,135411      ,04-Feb-19,558.99,0,Repairs - Services Charges    
Borough Council of Kings Lynn and West Norfolk,E07000146,31/03/19,Discover KL Distribution      ,BEST 4 PROMOTIONS NORFOLK               ,136650      ,25-Mar-19,1897,0,Discover KL Distribution      
Borough Council of Kings Lynn and West Norfolk,E07000146,31/03/19,NORA                          ,WILD FRONTIER ECOLOGY LTD               ,134050      ,25-Mar-19,550,0,External Fees/Consultancy     
Borough Council of Kings Lynn and West Norfolk,E07000146,31/03/19,Supplier Holding Account      ,LAWN BOY (FARM SERVICES)                ,100919      ,14-Feb-19,662.07,0,Materials                     
Borough Council of Kings Lynn and West Norfolk,E07000146,31/03/19,LILY PHASE 4                  ,WEST NORFOLK MIND                       ,120828      ,18-Mar-19,740,0,Lily Advisor Payments         
Borough Council of Kings Lynn and West Norfolk,E07000146,31/03/19,50127                         ,PHF TRAINING LTD                        ,125036      ,07-Feb-19,1250,0,In-House Training             
Borough Council of Kings Lynn and West Norfolk,E07000146,31/03/19,Training Holding Account      ,PHF TRAINING LTD                        ,125036      ,07-Feb-19,1250,0,In-House Training             
Borough Council of Kings Lynn and West Norfolk,E07000146,31/03/19,Corporate Insurance           ,ZURICH INSURANCE PLC                    ,101688      ,25-Mar-19,19301.14,0,ZM Premium                    
Borough Council of Kings Lynn and West Norfolk,E07000146,31/03/19,Corporate Insurance           ,ZURICH INSURANCE PLC                    ,101688      ,25-Mar-19,271196.56,0,ZM Premium                    
Borough Council of Kings Lynn and West Norfolk,E07000146,31/03/19,50127                         ,PLAY INSPECTION COMPANY LTD             ,137036      ,31-Jan-19,1100,0,Specialised/Cpd Training      
Borough Council of Kings Lynn and West Norfolk,E07000146,31/03/19,Training Holding Account      ,PLAY INSPECTION COMPANY LTD             ,137036      ,31-Jan-19,1100,0,Specialised/Cpd Training      
Borough Council of Kings Lynn and West Norfolk,E07000146,31/03/19,General Properties            ,NEVILLE GODFREY LTD                     ,101117      ,24-Jan-19,1425,0,General Repairs               
Borough Council of Kings Lynn and West Norfolk,E07000146,31/03/19,12301                         ,NEVILLE GODFREY LTD                     ,101117      ,24-Jan-19,1425,0,General Repairs               
Borough Council of Kings Lynn and West Norfolk,E07000146,31/03/19,Parking Operations - Borough  ,NEVILLE GODFREY LTD                     ,101117      ,04-Feb-19,1295,0,General Repairs               
Borough Council of Kings Lynn and West Norfolk,E07000146,31/03/19,Air Quality                   ,GRADKO INTERNATIONAL LTD                ,121423      ,07-Mar-19,2862,0,Tools And Equipment           
Borough Council of Kings Lynn and West Norfolk,E07000146,31/03/19,Open Cemeteries               ,CENTRAL ENGLAND CO-OPERATIVE LTD        ,143833      ,07-Feb-19,560.08,0,Tech Off Repairs              
Borough Council of Kings Lynn and West Norfolk,E07000146,31/03/19,ICT                           ,TECTRADE COMPUTERS LIMITED              ,123794      ,21-Jan-19,4709.25,0,Computer Software Maintenance 
Borough Council of Kings Lynn and West Norfolk,E07000146,31/03/19,50127                         ,UNIVERSITY OF DERBY                     ,122990      ,07-Mar-19,2100,0,Qualification Training        
Borough Council of Kings Lynn and West Norfolk,E07000146,31/03/19,Training Holding Account      ,UNIVERSITY OF DERBY                     ,122990      ,07-Mar-19,2100,0,Qualification Training        
Borough Council of Kings Lynn and West Norfolk,E07000146,31/03/19,50127                         ,UNIVERSITY OF DERBY                     ,122990      ,07-Mar-19,2100,0,Qualification Training        
Borough Council of Kings Lynn and West Norfolk,E07000146,31/03/19,Training Holding Account      ,UNIVERSITY OF DERBY                     ,122990      ,07-Mar-19,2100,0,Qualification Training        
Borough Council of Kings Lynn and West Norfolk,E07000146,31/03/19,Corporate                     ,CABINET OFFICE                          ,145788      ,11-Mar-19,2300,0,Audit Fee                     
Borough Council of Kings Lynn and West Norfolk,E07000146,31/03/19,Dev & Estate Capital Receipts ,DAVID TRUNDLEY DESIGN SERVS LTD         ,103063      ,10-Jan-19,1000,0,Disposal Cost Architect       
Borough Council of Kings Lynn and West Norfolk,E07000146,31/03/19,Parking Operations - Borough  ,METRIC GROUP LTD                        ,101041      ,25-Feb-19,8650,0,Gen Rep KL P&D                
Borough Council of Kings Lynn and West Norfolk,E07000146,31/03/19,Revs & Bens System Replacement,CIVICA  UK LTD                          ,128548      ,21-Feb-19,8000,0,Computer Equip (Hardware)     
Borough Council of Kings Lynn and West Norfolk,E07000146,31/03/19,Revs & Bens System Replacement,CIVICA  UK LTD                          ,128548      ,21-Feb-19,8000,0,Computer Equip (Hardware)     
Borough Council of Kings Lynn and West Norfolk,E07000146,31/03/19,Revs & Bens System Replacement,CIVICA  UK LTD                          ,128548      ,21-Feb-19,8000,0,Computer Equip (Hardware)     
Borough Council of Kings Lynn and West Norfolk,E07000146,31/03/19,Cost of Collection - NDR      ,CIVICA  UK LTD                          ,128548      ,07-Mar-19,1906,0,Professional Fees             
Borough Council of Kings Lynn and West Norfolk,E07000146,31/03/19,Domestic Refuse               ,NORSE ENVIRONMENTAL WASTE SVCS          ,102093      ,21-Mar-19,23985.64,0,Waste Processing Cost         
Borough Council of Kings Lynn and West Norfolk,E07000146,31/03/19,Disabled Facilties Grant      ,GASWISE SERVICES LTD.                   ,100677      ,14-Feb-19,7814.25,0,Works                         
Borough Council of Kings Lynn and West Norfolk,E07000146,31/03/19,Sports Grounds North          ,RIGBY TAYLOR LTD                        ,101349      ,25-Mar-19,580,0,Materials                     
Borough Council of Kings Lynn and West Norfolk,E07000146,31/03/19,Sports Grounds Central        ,RIGBY TAYLOR LTD                        ,101349      ,25-Mar-19,580,0,Materials                     
Borough Council of Kings Lynn and West Norfolk,E07000146,31/03/19,Sports Grounds South          ,RIGBY TAYLOR LTD                        ,101349      ,25-Mar-19,580,0,Materials                     
Borough Council of Kings Lynn and West Norfolk,E07000146,31/03/19,Hardwick Industrial Est       ,CADENT GAS LTD                          ,146650      ,14-Jan-19,675.78,0,General Repairs               
Borough Council of Kings Lynn and West Norfolk,E07000146,31/03/19,Ceiling Repairs Town Hall     ,CLIVEDEN CONSERVATION                   ,146680      ,25-Feb-19,3690.5,0,Works                         
Borough Council of Kings Lynn and West Norfolk,E07000146,31/03/19,BCKLWN Control Account        ,NEWLYN PLC                              ,143655      ,07-Mar-19,1536.32,0,VAT Input (VAT Only Invoice)  
Borough Council of Kings Lynn and West Norfolk,E07000146,31/03/19,Lease Car Revenue Account     ,COMMERCIAL SERVICES TRADING LTD         ,121564      ,21-Feb-19,1834.79,0,Leasing                       
Borough Council of Kings Lynn and West Norfolk,E07000146,31/03/19,Lease Car Revenue Account     ,COMMERCIAL SERVICES TRADING LTD         ,121564      ,21-Feb-19,2065,0,Leasing                       
Borough Council of Kings Lynn and West Norfolk,E07000146,31/03/19,Broad St conversion to Houses ,VINCI CONSTRUCTION UK LTD               ,146957      ,10-Jan-19,48122.67,0,Professional Fees             
Borough Council of Kings Lynn and West Norfolk,E07000146,31/03/19,GM Central Area               ,THURLOW NUNN STANDEN LTD                ,101547      ,11-Feb-19,816.31,0,Materials                     
Borough Council of Kings Lynn and West Norfolk,E07000146,31/03/19,Market Contribution Tesco     ,RAY LINGE MARKET STALLS LTD             ,147166      ,11-Mar-19,1360,0,Works                         
Borough Council of Kings Lynn and West Norfolk,E07000146,31/03/19,Parking Operations - Borough  ,PENTY CONTRACTORS LTD                   ,101244      ,18-Feb-19,1450,0,Gen Rep KL P&D                
Borough Council of Kings Lynn and West Norfolk,E07000146,31/03/19,Adapt Grant                   ,STANNAH LIFT SERVICES LTD               ,101479      ,21-Jan-19,2678,0,Works                         
Borough Council of Kings Lynn and West Norfolk,E07000146,31/03/19,Phase -Lynnsport 4 /5 Contract,LOVELL PARTNERSHIPS LTD                 ,143432      ,04-Feb-19,15887.65,0,Works                         
Borough Council of Kings Lynn and West Norfolk,E07000146,31/03/19,CCTV                          ,FOCUS SECURITY (EAST ANGLIA) LTD        ,136665      ,17-Jan-19,560.58,0,General Repairs               
Borough Council of Kings Lynn and West Norfolk,E07000146,31/03/19,Street Sweeping               ,PEACEFUL PETS LTD                       ,120185      ,21-Mar-19,880,0,Animal Removal                
Borough Council of Kings Lynn and West Norfolk,E07000146,31/03/19,General Properties            ,C G GODFREY LIMITED                     ,101717      ,24-Jan-19,2625,0,General Repairs               
Borough Council of Kings Lynn and West Norfolk,E07000146,31/03/19,12301                         ,C G GODFREY LIMITED                     ,101717      ,24-Jan-19,2625,0,General Repairs               
Borough Council of Kings Lynn and West Norfolk,E07000146,31/03/19,Lynnsport General Account     ,C G GODFREY LIMITED                     ,101717      ,21-Feb-19,2449.5,0,Sewerage/Cesspool Emptying    
Borough Council of Kings Lynn and West Norfolk,E07000146,31/03/19,Adapt Grant                   ,FREEBRIDGE COMMUNITY HOUSING            ,127987      ,11-Feb-19,4027.63,0,Works                         
Borough Council of Kings Lynn and West Norfolk,E07000146,31/03/19,Disabled Facilties Grant      ,FREEBRIDGE COMMUNITY HOUSING            ,127987      ,25-Mar-19,7135.21,0,Works                         
Borough Council of Kings Lynn and West Norfolk,E07000146,31/03/19,Mintlyn Crematorium           ,TELESHORE UK LTD T/A GEMINI CCS LTD     ,107802      ,21-Feb-19,520.8,0,Tools And Equipment           
Borough Council of Kings Lynn and West Norfolk,E07000146,31/03/19,Mintlyn Crematorium           ,ICCM                                    ,122872      ,21-Feb-19,502,0,Professional Fees             
Borough Council of Kings Lynn and West Norfolk,E07000146,31/03/19,Townscape Heritage Initiative ,ML CLEAVER                              ,147248      ,28-Jan-19,693.09,0,THI Priority Grant Projects   
Borough Council of Kings Lynn and West Norfolk,E07000146,31/03/19,BCKLWN Control Account        ,ROSSENDALES LTD                         ,101364      ,14-Jan-19,684,0,VAT Input (VAT Only Invoice)  
Borough Council of Kings Lynn and West Norfolk,E07000146,31/03/19,BCKLWN Control Account        ,ROSSENDALES LTD                         ,101364      ,14-Jan-19,1005.72,0,VAT Input (VAT Only Invoice)  
Borough Council of Kings Lynn and West Norfolk,E07000146,31/03/19,Trade Refuse                  ,NORFOLK COUNTY COUNCIL                  ,101142      ,04-Feb-19,19666.25,0,NCC Trade Waste Disposal      
Borough Council of Kings Lynn and West Norfolk,E07000146,31/03/19,Lynnsport & Leisure Park      ,NORFOLK COUNTY COUNCIL                  ,101142      ,18-Feb-19,4400,0,Special Events                
Borough Council of Kings Lynn and West Norfolk,E07000146,31/03/19,Head of Legal Services        ,NORFOLK COUNTY COUNCIL                  ,101142      ,18-Mar-19,1157.1,0,Commissioning Ext. Legal fees 
Borough Council of Kings Lynn and West Norfolk,E07000146,31/03/19,Homestay & Genesis            ,HOMES GROUP LTD                         ,147570      ,17-Jan-19,25000,0,Agency                        
Borough Council of Kings Lynn and West Norfolk,E07000146,31/03/19,Air Quality                   ,JD COOLING SYSTEMS LTD                  ,119491      ,18-Feb-19,1369,0,Servicing                     
Borough Council of Kings Lynn and West Norfolk,E07000146,31/03/19,Leisure Management Costs      ,LOOMIS UK LTD                           ,140581      ,10-Jan-19,559.5,0,Security Services Charge      
Borough Council of Kings Lynn and West Norfolk,E07000146,31/03/19,Parking Operations - Borough  ,LOOMIS UK LTD                           ,140581      ,10-Jan-19,996.83,0,Security Services Charge      
Borough Council of Kings Lynn and West Norfolk,E07000146,31/03/19,Broad St conversion to Houses ,M ROGERSON LTD                          ,147642      ,28-Feb-19,4074,0,Works                         
Borough Council of Kings Lynn and West Norfolk,E07000146,31/03/19,KC OFFICE ACCOMMODATION RENTAL,AMR ELECTRICAL SERVICES LTD             ,126614      ,11-Mar-19,1876.4,0,Repairs - Services Charges    
Borough Council of Kings Lynn and West Norfolk,E07000146,31/03/19,KC OFFICE ACCOMMODATION RENTAL,AMR ELECTRICAL SERVICES LTD             ,126614      ,11-Mar-19,511.44,0,Repairs - Services Charges    
Borough Council of Kings Lynn and West Norfolk,E07000146,31/03/19,Careline                      ,YOUR LOCAL PAPER LTD                    ,141051      ,14-Mar-19,640,0,Advertising                   
Borough Council of Kings Lynn and West Norfolk,E07000146,31/03/19,Adapt Grant                   ,FOSTER PROPERTY MAINTENANCE LTD         ,124851      ,21-Mar-19,4771.85,0,Works                         
Borough Council of Kings Lynn and West Norfolk,E07000146,31/03/19,ICT                           ,ADEPT TECHNOLOGY GROUP PLC              ,135085      ,28-Feb-19,900,0,Communications                
Borough Council of Kings Lynn and West Norfolk,E07000146,31/03/19,ICT                           ,ADEPT TECHNOLOGY GROUP PLC              ,135085      ,28-Feb-19,2056,0,Communications                
Borough Council of Kings Lynn and West Norfolk,E07000146,31/03/19,Head of Legal Services        ,NORTH NORFOLK DISTRICT COUNCIL          ,101156      ,25-Mar-19,840,0,Commissioning Ext. Legal fees 
Borough Council of Kings Lynn and West Norfolk,E07000146,31/03/19,Food Hygiene/H&S Sals/Sup cost,HAVAS PEOPLE LIMITED                    ,100966      ,14-Feb-19,1011.08,0,Recruitment                   
Borough Council of Kings Lynn and West Norfolk,E07000146,31/03/19,Food Hygiene/H&S Sals/Sup cost,HAVAS PEOPLE LIMITED                    ,100966      ,18-Feb-19,1136.2,0,Recruitment                   
Borough Council of Kings Lynn and West Norfolk,E07000146,31/03/19,Recycling Commercial          ,KIER SERVICES ENVIRONMENTAL             ,141535      ,04-Feb-19,760.94,0,Contracted Services           
Borough Council of Kings Lynn and West Norfolk,E07000146,31/03/19,Domestic Refuse               ,KIER SERVICES ENVIRONMENTAL             ,141535      ,04-Feb-19,2852.22,0,Contracted Services           
Borough Council of Kings Lynn and West Norfolk,E07000146,31/03/19,Domestic Refuse               ,KIER SERVICES ENVIRONMENTAL             ,141535      ,04-Feb-19,2977.93,0,Contracted Services           
Borough Council of Kings Lynn and West Norfolk,E07000146,31/03/19,Domestic Refuse               ,KIER SERVICES ENVIRONMENTAL             ,141535      ,04-Feb-19,78801.15,0,Contracted Services           
Borough Council of Kings Lynn and West Norfolk,E07000146,31/03/19,Dry Box Collection Scheme     ,KIER SERVICES ENVIRONMENTAL             ,141535      ,04-Feb-19,80297.55,0,Contracted Services           
Borough Council of Kings Lynn and West Norfolk,E07000146,31/03/19,Dry Box Collection Scheme     ,KIER SERVICES ENVIRONMENTAL             ,141535      ,04-Feb-19,3021.33,0,Contracted Services           
Borough Council of Kings Lynn and West Norfolk,E07000146,31/03/19,Recycling Composting          ,KIER SERVICES ENVIRONMENTAL             ,141535      ,04-Feb-19,31095.19,0,Contracted Services           
Borough Council of Kings Lynn and West Norfolk,E07000146,31/03/19,Domestic Refuse               ,KIER SERVICES ENVIRONMENTAL             ,141535      ,04-Feb-19,3807.66,0,Clinical & Medical Waste      
Borough Council of Kings Lynn and West Norfolk,E07000146,31/03/19,Food Waste                    ,KIER SERVICES ENVIRONMENTAL             ,141535      ,04-Feb-19,27367.84,0,Contracted Services           
Borough Council of Kings Lynn and West Norfolk,E07000146,31/03/19,Recycling Composting          ,KIER SERVICES ENVIRONMENTAL             ,141535      ,04-Feb-19,15824.59,0,Waste Processing Cost         
Borough Council of Kings Lynn and West Norfolk,E07000146,31/03/19,Trade Refuse                  ,KIER SERVICES ENVIRONMENTAL             ,141535      ,04-Feb-19,9065.59,0,Contracted Services           
Borough Council of Kings Lynn and West Norfolk,E07000146,31/03/19,Food Waste                    ,KIER SERVICES ENVIRONMENTAL             ,141535      ,04-Feb-19,561.78,0,Contracted Services           
Borough Council of Kings Lynn and West Norfolk,E07000146,31/03/19,Food Waste                    ,KIER SERVICES ENVIRONMENTAL             ,141535      ,04-Feb-19,1883.53,0,Contracted Services           
Borough Council of Kings Lynn and West Norfolk,E07000146,31/03/19,Food Waste                    ,KIER SERVICES ENVIRONMENTAL             ,141535      ,04-Feb-19,23018.6,0,Waste Processing Cost         
Borough Council of Kings Lynn and West Norfolk,E07000146,31/03/19,Food Waste                    ,KIER SERVICES ENVIRONMENTAL             ,141535      ,28-Jan-19,561.78,0,Contracted Services           
Borough Council of Kings Lynn and West Norfolk,E07000146,31/03/19,Domestic Refuse               ,KIER SERVICES ENVIRONMENTAL             ,141535      ,28-Jan-19,3807.66,0,Clinical & Medical Waste      
Borough Council of Kings Lynn and West Norfolk,E07000146,31/03/19,Dry Box Collection Scheme     ,KIER SERVICES ENVIRONMENTAL             ,141535      ,28-Jan-19,80297.55,0,Contracted Services           
Borough Council of Kings Lynn and West Norfolk,E07000146,31/03/19,Dry Box Collection Scheme     ,KIER SERVICES ENVIRONMENTAL             ,141535      ,28-Jan-19,3021.33,0,Contracted Services           
Borough Council of Kings Lynn and West Norfolk,E07000146,31/03/19,Recycling Composting          ,KIER SERVICES ENVIRONMENTAL             ,141535      ,28-Jan-19,31095.19,0,Contracted Services           
Borough Council of Kings Lynn and West Norfolk,E07000146,31/03/19,Food Waste                    ,KIER SERVICES ENVIRONMENTAL             ,141535      ,28-Jan-19,27367.84,0,Contracted Services           
Borough Council of Kings Lynn and West Norfolk,E07000146,31/03/19,Trade Refuse                  ,KIER SERVICES ENVIRONMENTAL             ,141535      ,28-Jan-19,9065.59,0,Contracted Services           
Borough Council of Kings Lynn and West Norfolk,E07000146,31/03/19,Recycling Commercial          ,KIER SERVICES ENVIRONMENTAL             ,141535      ,28-Jan-19,760.94,0,Contracted Services           
Borough Council of Kings Lynn and West Norfolk,E07000146,31/03/19,Recycling Composting          ,KIER SERVICES ENVIRONMENTAL             ,141535      ,28-Jan-19,15824.59,0,Waste Processing Cost         
Borough Council of Kings Lynn and West Norfolk,E07000146,31/03/19,Domestic Refuse               ,KIER SERVICES ENVIRONMENTAL             ,141535      ,28-Jan-19,2852.22,0,Contracted Services           
Borough Council of Kings Lynn and West Norfolk,E07000146,31/03/19,Food Waste                    ,KIER SERVICES ENVIRONMENTAL             ,141535      ,28-Jan-19,1883.53,0,Contracted Services           
Borough Council of Kings Lynn and West Norfolk,E07000146,31/03/19,Domestic Refuse               ,KIER SERVICES ENVIRONMENTAL             ,141535      ,28-Jan-19,2977.93,0,Contracted Services           
Borough Council of Kings Lynn and West Norfolk,E07000146,31/03/19,Domestic Refuse               ,KIER SERVICES ENVIRONMENTAL             ,141535      ,28-Jan-19,78801.15,0,Contracted Services           
Borough Council of Kings Lynn and West Norfolk,E07000146,31/03/19,Food Waste                    ,KIER SERVICES ENVIRONMENTAL             ,141535      ,28-Jan-19,23018.6,0,Waste Processing Cost         
Borough Council of Kings Lynn and West Norfolk,E07000146,31/03/19,Food Waste                    ,KIER SERVICES ENVIRONMENTAL             ,141535      ,04-Mar-19,27367.84,0,Contracted Services           
Borough Council of Kings Lynn and West Norfolk,E07000146,31/03/19,Domestic Refuse               ,KIER SERVICES ENVIRONMENTAL             ,141535      ,04-Mar-19,2977.93,0,Contracted Services           
Borough Council of Kings Lynn and West Norfolk,E07000146,31/03/19,Recycling Composting          ,KIER SERVICES ENVIRONMENTAL             ,141535      ,04-Mar-19,31095.19,0,Contracted Services           
Borough Council of Kings Lynn and West Norfolk,E07000146,31/03/19,Dry Box Collection Scheme     ,KIER SERVICES ENVIRONMENTAL             ,141535      ,04-Mar-19,3021.33,0,Contracted Services           
Borough Council of Kings Lynn and West Norfolk,E07000146,31/03/19,Dry Box Collection Scheme     ,KIER SERVICES ENVIRONMENTAL             ,141535      ,04-Mar-19,80297.55,0,Contracted Services           
Borough Council of Kings Lynn and West Norfolk,E07000146,31/03/19,Domestic Refuse               ,KIER SERVICES ENVIRONMENTAL             ,141535      ,04-Mar-19,2852.22,0,Contracted Services           
Borough Council of Kings Lynn and West Norfolk,E07000146,31/03/19,Domestic Refuse               ,KIER SERVICES ENVIRONMENTAL             ,141535      ,04-Mar-19,78801.15,0,Contracted Services           
Borough Council of Kings Lynn and West Norfolk,E07000146,31/03/19,Domestic Refuse               ,KIER SERVICES ENVIRONMENTAL             ,141535      ,04-Mar-19,3807.66,0,Clinical & Medical Waste      
Borough Council of Kings Lynn and West Norfolk,E07000146,31/03/19,Food Waste                    ,KIER SERVICES ENVIRONMENTAL             ,141535      ,04-Mar-19,561.78,0,Contracted Services           
Borough Council of Kings Lynn and West Norfolk,E07000146,31/03/19,Food Waste                    ,KIER SERVICES ENVIRONMENTAL             ,141535      ,04-Mar-19,1883.53,0,Contracted Services           
Borough Council of Kings Lynn and West Norfolk,E07000146,31/03/19,Trade Refuse                  ,KIER SERVICES ENVIRONMENTAL             ,141535      ,04-Mar-19,9065.59,0,Contracted Services           
Borough Council of Kings Lynn and West Norfolk,E07000146,31/03/19,Recycling Commercial          ,KIER SERVICES ENVIRONMENTAL             ,141535      ,04-Mar-19,760.94,0,Contracted Services           
Borough Council of Kings Lynn and West Norfolk,E07000146,31/03/19,Recycling Composting          ,KIER SERVICES ENVIRONMENTAL             ,141535      ,04-Mar-19,15824.59,0,Waste Processing Cost         
Borough Council of Kings Lynn and West Norfolk,E07000146,31/03/19,Food Waste                    ,KIER SERVICES ENVIRONMENTAL             ,141535      ,04-Mar-19,23018.6,0,Waste Processing Cost         
Borough Council of Kings Lynn and West Norfolk,E07000146,31/03/19,Dry Box Collection Scheme     ,KIER SERVICES ENVIRONMENTAL             ,141535      ,25-Mar-19,10492.61,0,Contracted Services           
Borough Council of Kings Lynn and West Norfolk,E07000146,31/03/19,Town Centre Manager           ,DOWNHAM MARKET CHRISTMAS LIGHTS LTD     ,147826      ,07-Mar-19,800,0,Operational Costs  Downham Mkt
Borough Council of Kings Lynn and West Norfolk,E07000146,31/03/19,50127                         ,CEFAS                                   ,147828      ,21-Mar-19,1650,0,In-House Training             
Borough Council of Kings Lynn and West Norfolk,E07000146,31/03/19,Training Holding Account      ,CEFAS                                   ,147828      ,21-Mar-19,1650,0,In-House Training             
Borough Council of Kings Lynn and West Norfolk,E07000146,31/03/19,50302                         ,UNIT 4 BUSINESS SOFTWARE LTD            ,147829      ,07-Mar-19,10000,0,IT Developments/Enhancements  
Borough Council of Kings Lynn and West Norfolk,E07000146,31/03/19,Financial Services            ,UNIT 4 BUSINESS SOFTWARE LTD            ,147829      ,07-Mar-19,10000,0,IT Developments/Enhancements  
Borough Council of Kings Lynn and West Norfolk,E07000146,31/03/19,50127                         ,SPEAK FIRST LTD                         ,147692      ,25-Mar-19,1556.21,0,In-House Training             
Borough Council of Kings Lynn and West Norfolk,E07000146,31/03/19,Training Holding Account      ,SPEAK FIRST LTD                         ,147692      ,25-Mar-19,1556.21,0,In-House Training             
Borough Council of Kings Lynn and West Norfolk,E07000146,31/03/19,Electricity Direct Recharge Ac,BRITISH GAS BUSINESS                    ,100216      ,21-Feb-19,9835.04,0,Electricity Bulk Billing      
Borough Council of Kings Lynn and West Norfolk,E07000146,31/03/19,Parking Operations - Borough  ,BRITISH PARKING ASSOCIATION             ,100218      ,28-Feb-19,897,0,Subscriptions                 
Borough Council of Kings Lynn and West Norfolk,E07000146,31/03/19,Telephones                    ,BRITISH TELECOMMUNICATIONS PLC          ,100222      ,18-Mar-19,553.14,0,Telephones Recharged          
Borough Council of Kings Lynn and West Norfolk,E07000146,31/03/19,Care & Repair - Home Impro Agy,SEVEN RESOURCING LTD                    ,145043      ,21-Feb-19,864.32,0,Agency Staff                  
Borough Council of Kings Lynn and West Norfolk,E07000146,31/03/19,Downham Market Sports Centre  ,CORONA ENERGY RETAIL 4 LTD              ,131838      ,25-Feb-19,1162.02,0,Gas                           
Borough Council of Kings Lynn and West Norfolk,E07000146,31/03/19,St James General Account      ,CORONA ENERGY RETAIL 4 LTD              ,131838      ,25-Feb-19,2871.57,0,Gas                           
Borough Council of Kings Lynn and West Norfolk,E07000146,31/03/19,Mintlyn Crematorium           ,CORONA ENERGY RETAIL 4 LTD              ,131838      ,25-Mar-19,3368.73,0,Gas                           
Borough Council of Kings Lynn and West Norfolk,E07000146,31/03/19,The Walks                     ,FENLAND LEISURE PRODUCTS LTD            ,117418      ,04-Mar-19,585.54,0,Materials                     
Borough Council of Kings Lynn and West Norfolk,E07000146,31/03/19,Public Cleansing              ,JOHNSTON SWEEPERS LTD                   ,121881      ,31-Jan-19,972.4,0,Contract Repairs              
Borough Council of Kings Lynn and West Norfolk,E07000146,31/03/19,Resort Seafront               ,1-2 CALL DRAINAGE & GROUNDWORK LTD      ,131800      ,25-Feb-19,1650,0,General Repairs               
Borough Council of Kings Lynn and West Norfolk,E07000146,31/03/19,The Walks                     ,1-2 CALL DRAINAGE & GROUNDWORK LTD      ,131800      ,18-Mar-19,2960,0,General Repairs               
Borough Council of Kings Lynn and West Norfolk,E07000146,31/03/19,GM Central Area               ,BARTRAM MOWERS LTD                      ,100158      ,11-Feb-19,858.2,0,Materials                     
Borough Council of Kings Lynn and West Norfolk,E07000146,31/03/19,Adapt Grant                   ,CHAS D ALLFLATT LTD                     ,100315      ,11-Feb-19,657.47,0,Works                         
Borough Council of Kings Lynn and West Norfolk,E07000146,31/03/19,Adapt Grant                   ,CHAS D ALLFLATT LTD                     ,100315      ,28-Feb-19,3403.77,0,Works                         
Borough Council of Kings Lynn and West Norfolk,E07000146,31/03/19,Disabled Facilties Grant      ,CHAS D ALLFLATT LTD                     ,100315      ,07-Mar-19,3711.42,0,Works                         
Borough Council of Kings Lynn and West Norfolk,E07000146,31/03/19,Adapt Grant                   ,CHAS D ALLFLATT LTD                     ,100315      ,14-Mar-19,3878.6,0,Works                         
Borough Council of Kings Lynn and West Norfolk,E07000146,31/03/19,Adapt Grant                   ,CHAS D ALLFLATT LTD                     ,100315      ,21-Mar-19,3126.24,0,Works                         
Borough Council of Kings Lynn and West Norfolk,E07000146,31/03/19,Collusion from 2018           ,E AKERS                                 ,100500      ,21-Jan-19,775,0,Professional Fees             
Borough Council of Kings Lynn and West Norfolk,E07000146,31/03/19,CCTV                          ,E AKERS                                 ,100500      ,24-Jan-19,780,0,General Repairs               
Borough Council of Kings Lynn and West Norfolk,E07000146,31/03/19,Mintlyn Crematorium           ,FACULTATIEVE TECHNOLOGIESLTD            ,125759      ,10-Jan-19,3565.3,0,Maint Plant & Equip           
Borough Council of Kings Lynn and West Norfolk,E07000146,31/03/19,Mintlyn Crematorium           ,FACULTATIEVE TECHNOLOGIESLTD            ,125759      ,25-Feb-19,940.39,0,Trade Waste                   
Borough Council of Kings Lynn and West Norfolk,E07000146,31/03/19,Cashless Park YT(Gt Ya off St),GREAT YARMOUTH BOROUGH COUNCIL          ,100713      ,18-Mar-19,5699.6,0,Agency                        
Borough Council of Kings Lynn and West Norfolk,E07000146,31/03/19,Town Centre Manager           ,KINGS & BARNHAMS                        ,100875      ,11-Mar-19,16676.79,0,Christmas Lighting            
Borough Council of Kings Lynn and West Norfolk,E07000146,31/03/19,Radio Phones                  ,HIGHPOINT RADIO COMMUNICATIONS LTD.     ,109066      ,06-Mar-19,1950,0,Rent                          
Borough Council of Kings Lynn and West Norfolk,E07000146,31/03/19,LILY PHASE 4                  ,WEST NORFOLK DEAF ASSOCIATION           ,112058      ,07-Mar-19,500,0,Grants                        
Borough Council of Kings Lynn and West Norfolk,E07000146,31/03/19,Corporate Communications      ,NLA MEDIA ACCESS LTD                    ,117305      ,07-Feb-19,1086,0,Professional Fees             
Borough Council of Kings Lynn and West Norfolk,E07000146,31/03/19,LILY PHASE 4                  ,WEST NORFOLK BEFRIENDING                ,126133      ,14-Mar-19,645,0,Lily Advisor Payments         
Borough Council of Kings Lynn and West Norfolk,E07000146,31/03/19,Careline                      ,SUPRA UK LTD                            ,134960      ,10-Jan-19,1698,0,Items Purchased For Resale    
Borough Council of Kings Lynn and West Norfolk,E07000146,31/03/19,50302                         ,CIPFA BUSINESS LTD                      ,135122      ,14-Mar-19,3610,0,Seminars/Training             
Borough Council of Kings Lynn and West Norfolk,E07000146,31/03/19,Financial Services            ,CIPFA BUSINESS LTD                      ,135122      ,14-Mar-19,3610,0,Seminars/Training             
Borough Council of Kings Lynn and West Norfolk,E07000146,31/03/19,The Walks                     ,PROLUDIC LTD                            ,133400      ,28-Feb-19,527.88,0,Play Area Maintenance         
Borough Council of Kings Lynn and West Norfolk,E07000146,31/03/19,Parks & Open Spaces           ,NORFOLK TREES                           ,134365      ,21-Mar-19,9800,0,Tree Work/Storm Damage etc    
Borough Council of Kings Lynn and West Norfolk,E07000146,31/03/19,Shared Service                ,EAST OF ENGLAND LGA                     ,136515      ,21-Jan-19,6200,0,Consultants Fees              
Borough Council of Kings Lynn and West Norfolk,E07000146,31/03/19,ICT                           ,THE TECHNOLOGY FORGE LTD                ,136219      ,25-Mar-19,1774,0,Computer Software Maintenance 
Borough Council of Kings Lynn and West Norfolk,E07000146,31/03/19,Habitat Regulations           ,EASTERN IFCA                            ,138100      ,14-Feb-19,2500,0,Small Projects                
Borough Council of Kings Lynn and West Norfolk,E07000146,31/03/19,Kings Lynn Bus Station        ,VANCOUVER GP LTD                        ,142742      ,25-Mar-19,1875.03,0,Rent                          
Borough Council of Kings Lynn and West Norfolk,E07000146,31/03/19,Kings Lynn Bus Station        ,VANCOUVER GP LTD                        ,142742      ,25-Mar-19,1000,0,Rent                          
Borough Council of Kings Lynn and West Norfolk,E07000146,31/03/19,Townscape Heritage Initiative ,HIGH STREET NEWS (KINGS LYNN) LTD       ,141889      ,14-Jan-19,630,0,THI Priority Grant Projects   
Borough Council of Kings Lynn and West Norfolk,E07000146,31/03/19,Unit 36 Hardwick Ind Estate   ,JBC ROOFING LTD                         ,121133      ,11-Mar-19,12724.52,0,Works                         
Borough Council of Kings Lynn and West Norfolk,E07000146,31/03/19,Disabled Facilties Grant      ,ANGLIA STAIRLIFTS LTD                   ,139700      ,20-Mar-19,5850,0,Works                         
Borough Council of Kings Lynn and West Norfolk,E07000146,31/03/19,Valentine Road Hunstanton     ,NORSE COMMERCIAL SERVICES LTD           ,134973      ,21-Jan-19,49847.64,0,General Repairs               
Borough Council of Kings Lynn and West Norfolk,E07000146,31/03/19,Adapt Grant                   ,BROADLAND HOUSING GROUP                 ,100227      ,04-Mar-19,579.31,0,Works                         
Borough Council of Kings Lynn and West Norfolk,E07000146,31/03/19,Resort Seafront               ,GLASDON U.K LTD                         ,100693      ,04-Feb-19,853.68,0,Beach Safety                  
Borough Council of Kings Lynn and West Norfolk,E07000146,31/03/19,Corporate Insurance           ,ZURICH INSURANCE PLC                    ,101688      ,25-Mar-19,7999.42,0,ZM Shops & Factory            
Borough Council of Kings Lynn and West Norfolk,E07000146,31/03/19,ICT                           ,SNAP SURVEYS LIMITED                    ,132112      ,28-Feb-19,699,0,Computer Software Maintenance 
Borough Council of Kings Lynn and West Norfolk,E07000146,31/03/19,Register of Electors          ,ELECTORAL REFORM SERVICES               ,125241      ,24-Jan-19,529.65,0,Stationery & Office Supplies  
Borough Council of Kings Lynn and West Norfolk,E07000146,31/03/19,Nelson Quay Redevelopment     ,AECOM LTD                               ,127375      ,21-Jan-19,206300.38,0,External Fees/Consultancy     
Borough Council of Kings Lynn and West Norfolk,E07000146,31/03/19,Kings Lynn Mart               ,N P S S SECURITY SERVICES               ,144185      ,25-Mar-19,5088.08,0,Professional Fees             
Borough Council of Kings Lynn and West Norfolk,E07000146,31/03/19,50127                         ,UNIVERSITY OF DERBY                     ,122990      ,07-Mar-19,2100,0,Qualification Training        
Borough Council of Kings Lynn and West Norfolk,E07000146,31/03/19,Training Holding Account      ,UNIVERSITY OF DERBY                     ,122990      ,07-Mar-19,2100,0,Qualification Training        
Borough Council of Kings Lynn and West Norfolk,E07000146,31/03/19,50127                         ,UNIVERSITY OF DERBY                     ,122990      ,07-Mar-19,2100,0,Qualification Training        
Borough Council of Kings Lynn and West Norfolk,E07000146,31/03/19,Training Holding Account      ,UNIVERSITY OF DERBY                     ,122990      ,07-Mar-19,2100,0,Qualification Training        
Borough Council of Kings Lynn and West Norfolk,E07000146,31/03/19,Planning Control              ,HAYMARKET MEDIA GROUP LTD               ,141387      ,14-Feb-19,2150,0,Subscriptions                 
Borough Council of Kings Lynn and West Norfolk,E07000146,31/03/19,Public Cleansing              ,FORD & SLATER DAF KINGS LYNN            ,100682      ,04-Mar-19,978.98,0,Contract Repairs              
Borough Council of Kings Lynn and West Norfolk,E07000146,31/03/19,Dev & Estate Capital Receipts ,DAVID TRUNDLEY DESIGN SERVS LTD         ,103063      ,10-Jan-19,1395,0,Disposal Cost Architect       
Borough Council of Kings Lynn and West Norfolk,E07000146,31/03/19,Welfare Reform Funding        ,CIVICA  UK LTD                          ,128548      ,07-Feb-19,11830.98,0,Professional Fees             
Borough Council of Kings Lynn and West Norfolk,E07000146,31/03/19,Dry Box Collection Scheme     ,NORSE ENVIRONMENTAL WASTE SVCS          ,102093      ,31-Jan-19,591.46,0,Waste Processing Cost         
Borough Council of Kings Lynn and West Norfolk,E07000146,31/03/19,Dry Box Collection Scheme     ,NORSE ENVIRONMENTAL WASTE SVCS          ,102093      ,07-Feb-19,986.06,0,Waste Processing Cost         
Borough Council of Kings Lynn and West Norfolk,E07000146,31/03/19,Dry Box Collection Scheme     ,NORSE ENVIRONMENTAL WASTE SVCS          ,102093      ,07-Feb-19,24496.95,0,Waste Processing Cost         
Borough Council of Kings Lynn and West Norfolk,E07000146,31/03/19,Dry Box Collection Scheme     ,NORSE ENVIRONMENTAL WASTE SVCS          ,102093      ,21-Feb-19,24687.77,0,Waste Processing Cost         
Borough Council of Kings Lynn and West Norfolk,E07000146,31/03/19,Dry Box Collection Scheme     ,NORSE ENVIRONMENTAL WASTE SVCS          ,102093      ,21-Mar-19,798.01,0,Waste Processing Cost         
Borough Council of Kings Lynn and West Norfolk,E07000146,31/03/19,Postage Services Kings Court  ,POSTAGE BY PHONE                        ,101299      ,31-Jan-19,5001.03,0,Postages                      
Borough Council of Kings Lynn and West Norfolk,E07000146,31/03/19,Nora Phase 4 - BCKLWN Costs   ,WSP UK LTD                              ,146574      ,04-Feb-19,525,0,External Fees/Consultancy     
Borough Council of Kings Lynn and West Norfolk,E07000146,31/03/19,Nora Phase 4 - BCKLWN Costs   ,WSP UK LTD                              ,146574      ,04-Feb-19,1700,0,External Fees/Consultancy     
Borough Council of Kings Lynn and West Norfolk,E07000146,31/03/19,Nora Phase 4 - BCKLWN Costs   ,WSP UK LTD                              ,146574      ,04-Feb-19,11550,0,External Fees/Consultancy     
Borough Council of Kings Lynn and West Norfolk,E07000146,31/03/19,Nora Phase 4 - BCKLWN Costs   ,WSP UK LTD                              ,146574      ,04-Feb-19,825,0,Works                         
Borough Council of Kings Lynn and West Norfolk,E07000146,31/03/19,NORA                          ,ASHFIELD JAPANESE KNOTWEED LTD          ,144105      ,21-Feb-19,2250,0,Works                         
Borough Council of Kings Lynn and West Norfolk,E07000146,31/03/19,Community Projects CS         ,COMMUNITY ACTION NORFOLK                ,145473      ,24-Jan-19,10161.5,0,Service Level Agreements      
Borough Council of Kings Lynn and West Norfolk,E07000146,31/03/19,BCKLWN Control Account        ,NEWLYN PLC                              ,143655      ,14-Feb-19,996.03,0,VAT Input (VAT Only Invoice)  
Borough Council of Kings Lynn and West Norfolk,E07000146,31/03/19,Project Mmgt / Marketing      ,AHR BUILDING CONSULTANCY LTD            ,146946      ,25-Mar-19,62578.62,0,Professional Fees             
Borough Council of Kings Lynn and West Norfolk,E07000146,31/03/19,Townscape Heritage Initiative ,PENISTON LTD                            ,128609      ,11-Mar-19,5493.67,0,THI Priority Grant Projects   
Borough Council of Kings Lynn and West Norfolk,E07000146,31/03/19,GM Central Area               ,THURLOW NUNN STANDEN LTD                ,101547      ,25-Mar-19,808.84,0,Materials                     
Borough Council of Kings Lynn and West Norfolk,E07000146,31/03/19,Adapt Grant                   ,T M BROWNE LTD                          ,131470      ,18-Feb-19,4726.82,0,Works                         
Borough Council of Kings Lynn and West Norfolk,E07000146,31/03/19,Disabled Facilties Grant      ,T M BROWNE LTD                          ,131470      ,11-Mar-19,4681.67,0,Works                         
Borough Council of Kings Lynn and West Norfolk,E07000146,31/03/19,L/sport Fire Doors            ,ENHANCE                                 ,129539      ,18-Mar-19,6800.95,0,Works                         
Borough Council of Kings Lynn and West Norfolk,E07000146,31/03/19,KC OFFICE ACCOMMODATION RENTAL,MANPOWER DIRECT UK                      ,147078      ,31-Jan-19,5583.93,0,Contract Security             
Borough Council of Kings Lynn and West Norfolk,E07000146,31/03/19,KC OFFICE ACCOMMODATION RENTAL,MANPOWER DIRECT UK                      ,147078      ,07-Mar-19,6575.39,0,Contract Security             
Borough Council of Kings Lynn and West Norfolk,E07000146,31/03/19,Improving Attainment          ,DIOCESE OF NORWICH EDUCATION ACADEMIES  ,147093      ,18-Feb-19,600,0,Small Projects                
Borough Council of Kings Lynn and West Norfolk,E07000146,31/03/19,Parking Operations - Borough  ,PENTY CONTRACTORS LTD                   ,101244      ,24-Jan-19,550,0,Gen Rep Hunstanton            
Borough Council of Kings Lynn and West Norfolk,E07000146,31/03/19,NORA Phase 3                  ,G C BAXTER & ASSOCIATES LTD             ,105203      ,25-Feb-19,764.03,0,External Fees/Consultancy     
Borough Council of Kings Lynn and West Norfolk,E07000146,31/03/19,Phase 1 -  Marsh Lane         ,LOVELL PARTNERSHIPS LTD                 ,143432      ,04-Feb-19,61636.7,0,Works                         
Borough Council of Kings Lynn and West Norfolk,E07000146,31/03/19,CCTV                          ,FOCUS SECURITY (EAST ANGLIA) LTD        ,136665      ,07-Jan-19,575,0,General Repairs               
Borough Council of Kings Lynn and West Norfolk,E07000146,31/03/19,CCTV Breckland                ,FOCUS SECURITY (EAST ANGLIA) LTD        ,136665      ,07-Jan-19,575,0,Maint Plant & Equip           
Borough Council of Kings Lynn and West Norfolk,E07000146,31/03/19,CCTV                          ,FOCUS SECURITY (EAST ANGLIA) LTD        ,136665      ,24-Jan-19,1091.4,0,General Repairs               
Borough Council of Kings Lynn and West Norfolk,E07000146,31/03/19,CCTV Multistorey              ,FOCUS SECURITY (EAST ANGLIA) LTD        ,136665      ,11-Feb-19,549.61,0,Equipment/Materials           
Borough Council of Kings Lynn and West Norfolk,E07000146,31/03/19,CCTV Multistorey              ,FOCUS SECURITY (EAST ANGLIA) LTD        ,136665      ,28-Feb-19,884.12,0,Works                         
Borough Council of Kings Lynn and West Norfolk,E07000146,31/03/19,Hardwick Industrial Est       ,C G GODFREY LIMITED                     ,101717      ,28-Jan-19,7333.23,0,General Repairs               
Borough Council of Kings Lynn and West Norfolk,E07000146,31/03/19,STW Refurb/Connect Pub Sewer  ,C G GODFREY LIMITED                     ,101717      ,14-Feb-19,940,0,Works                         
Borough Council of Kings Lynn and West Norfolk,E07000146,31/03/19,Flitcham Industrial Est       ,C G GODFREY LIMITED                     ,101717      ,14-Feb-19,500,0,Sewerage/Cesspool Emptying    
Borough Council of Kings Lynn and West Norfolk,E07000146,31/03/19,Cashless Park KZ (KLWN off St),CHIPSIDE LTD                            ,146272      ,21-Jan-19,503.31,0,Bank Charges                  
Borough Council of Kings Lynn and West Norfolk,E07000146,31/03/19,Adapt Grant                   ,FREEBRIDGE COMMUNITY HOUSING            ,127987      ,25-Mar-19,2930.17,0,Works                         
Borough Council of Kings Lynn and West Norfolk,E07000146,31/03/19,Stories of Lynn               ,UCC COFFEE UK LTD                       ,133142      ,25-Mar-19,1440,0,Alarm Maintenance             
Borough Council of Kings Lynn and West Norfolk,E07000146,31/03/19,Mintlyn Crematorium           ,TELESHORE UK LTD T/A GEMINI CCS LTD     ,107802      ,17-Jan-19,570.4,0,Tools And Equipment           
Borough Council of Kings Lynn and West Norfolk,E07000146,31/03/19,Head of Legal Services        ,NORFOLK COUNTY COUNCIL                  ,101142      ,28-Jan-19,2845.9,0,Commissioning Ext. Legal fees 
Borough Council of Kings Lynn and West Norfolk,E07000146,31/03/19,Trade Refuse                  ,NORFOLK COUNTY COUNCIL                  ,101142      ,04-Feb-19,25524.15,0,NCC Trade Waste Disposal      
Borough Council of Kings Lynn and West Norfolk,E07000146,31/03/19,Head of Legal Services        ,NORFOLK COUNTY COUNCIL                  ,101142      ,18-Feb-19,2397.2,0,Commissioning Ext. Legal fees 
Borough Council of Kings Lynn and West Norfolk,E07000146,31/03/19,Parking Operations - Borough  ,NORFOLK COUNTY COUNCIL                  ,101142      ,18-Feb-19,1855.26,0,Winter Maintenance            
Borough Council of Kings Lynn and West Norfolk,E07000146,31/03/19,Townscape Heritage Initiative ,TOWERGATE INSURANCE LTD                 ,147039      ,14-Feb-19,8000,0,THI Critical Grant Projects   
Borough Council of Kings Lynn and West Norfolk,E07000146,31/03/19,Corn Exc Bar Tills+Bar Chiller,JD COOLING SYSTEMS LTD                  ,119491      ,17-Jan-19,4349,0,Works                         
Borough Council of Kings Lynn and West Norfolk,E07000146,31/03/19,Nelson Quay Redevelopment     ,PARSONS CONSULTING ENGINEERS LTD        ,147424      ,07-Feb-19,600,0,External Fees/Consultancy     
Borough Council of Kings Lynn and West Norfolk,E07000146,31/03/19,CCTV                          ,QUALITY ESSENTIAL DISTRIBUTON LTD       ,147658      ,17-Jan-19,826.5,0,General Repairs               
Borough Council of Kings Lynn and West Norfolk,E07000146,31/03/19,CCTV Multistorey              ,QUALITY ESSENTIAL DISTRIBUTON LTD       ,147658      ,17-Jan-19,14717.5,0,Equipment/Materials           
Borough Council of Kings Lynn and West Norfolk,E07000146,31/03/19,CCTV Depot                    ,QUALITY ESSENTIAL DISTRIBUTON LTD       ,147658      ,17-Jan-19,4313.75,0,Equipment/Materials           
Borough Council of Kings Lynn and West Norfolk,E07000146,31/03/19,CCTV Crem                     ,QUALITY ESSENTIAL DISTRIBUTON LTD       ,147658      ,17-Jan-19,6851.25,0,Equipment/Materials           
Borough Council of Kings Lynn and West Norfolk,E07000146,31/03/19,Kings Court Kings Lynn        ,AMR ELECTRICAL SERVICES LTD             ,126614      ,25-Mar-19,815,0,General Repairs               
Borough Council of Kings Lynn and West Norfolk,E07000146,31/03/19,ICT                           ,ADEPT TECHNOLOGY GROUP PLC              ,135085      ,28-Jan-19,3914.5,0,Telephones Recharged          
Borough Council of Kings Lynn and West Norfolk,E07000146,31/03/19,ICT                           ,ADEPT TECHNOLOGY GROUP PLC              ,135085      ,28-Jan-19,509.89,0,Telephones Recharged          
Borough Council of Kings Lynn and West Norfolk,E07000146,31/03/19,Head of Legal Services        ,NORTH NORFOLK DISTRICT COUNCIL          ,101156      ,11-Mar-19,900,0,Commissioning Ext. Legal fees 
Borough Council of Kings Lynn and West Norfolk,E07000146,31/03/19,NNDC Penalty Notice Processing,NORTH NORFOLK DISTRICT COUNCIL          ,101156      ,18-Mar-19,5776.33,0,Agency                        
Borough Council of Kings Lynn and West Norfolk,E07000146,31/03/19,50127                         ,NORTH NORFOLK DISTRICT COUNCIL          ,101156      ,25-Mar-19,808.3,0,In-House Training             
Borough Council of Kings Lynn and West Norfolk,E07000146,31/03/19,Training Holding Account      ,NORTH NORFOLK DISTRICT COUNCIL          ,101156      ,25-Mar-19,808.3,0,In-House Training             
Borough Council of Kings Lynn and West Norfolk,E07000146,31/03/19,Disabled Facilties Grant      ,NORSE EASTERN LTD                       ,138393      ,18-Mar-19,4045,0,Works                         
Borough Council of Kings Lynn and West Norfolk,E07000146,31/03/19,Housing Standards             ,HAVAS PEOPLE LIMITED                    ,100966      ,14-Feb-19,1011.08,0,Recruitment                   
Borough Council of Kings Lynn and West Norfolk,E07000146,31/03/19,Domestic Refuse               ,KIER SERVICES ENVIRONMENTAL             ,141535      ,31-Jan-19,2335.76,0,Delivery/Carriage Charge      
Borough Council of Kings Lynn and West Norfolk,E07000146,31/03/19,West Winch Growth Area        ,GERALD EVE LLP                          ,147839      ,25-Mar-19,15946,0,Professional Fees             
Borough Council of Kings Lynn and West Norfolk,E07000146,31/03/19,71567                         ,GERALD EVE LLP                          ,147839      ,25-Mar-19,15946,0,Professional Fees             
Borough Council of Kings Lynn and West Norfolk,E07000146,31/03/19,BCKLWN Debtors Control        ,COMPLETE CARPENTRY PLUS LTD             ,147840      ,18-Mar-19,637.5,0,Control Account Ledger 4      
Borough Council of Kings Lynn and West Norfolk,E07000146,31/03/19,CCTV                          ,OPENVIEW SECURITY SOLUTIONS LTD         ,145424      ,31-Jan-19,757.5,0,General Repairs               
Borough Council of Kings Lynn and West Norfolk,E07000146,31/03/19,CCTV                          ,OPENVIEW SECURITY SOLUTIONS LTD         ,145424      ,31-Jan-19,639.1,0,General Repairs               
Borough Council of Kings Lynn and West Norfolk,E07000146,31/03/19,NEWS Depot                    ,MARATHON SERVICES LIMITED               ,101003      ,17-Jan-19,1499.69,0,Contract Cleaning             
Borough Council of Kings Lynn and West Norfolk,E07000146,31/03/19,NEWS Depot                    ,MARATHON SERVICES LIMITED               ,101003      ,11-Mar-19,1412.15,0,Contract Cleaning             
Borough Council of Kings Lynn and West Norfolk,E07000146,31/03/19,Depot Infestation Works       ,PICK & BANHAM                           ,101271      ,18-Feb-19,628,0,Rechargeable Works            
Borough Council of Kings Lynn and West Norfolk,E07000146,31/03/19,Electricity Direct Recharge Ac,BRITISH GAS BUSINESS                    ,100216      ,28-Feb-19,9345.93,0,Electricity Bulk Billing      
Borough Council of Kings Lynn and West Norfolk,E07000146,31/03/19,Electricity Direct Recharge Ac,BRITISH GAS BUSINESS                    ,100216      ,28-Feb-19,9414.86,0,Electricity Bulk Billing      
Borough Council of Kings Lynn and West Norfolk,E07000146,31/03/19,Telephones                    ,BRITISH TELECOMMUNICATIONS PLC          ,100222      ,17-Jan-19,661.66,0,Telephones Recharged          
Borough Council of Kings Lynn and West Norfolk,E07000146,31/03/19,Telephones                    ,BRITISH TELECOMMUNICATIONS PLC          ,100222      ,18-Mar-19,1250.92,0,Broadband Charge              
Borough Council of Kings Lynn and West Norfolk,E07000146,31/03/19,Care & Repair - Home Impro Agy,SEVEN RESOURCING LTD                    ,145043      ,10-Jan-19,1090.14,0,Agency Staff                  
Borough Council of Kings Lynn and West Norfolk,E07000146,31/03/19,Care & Repair - Home Impro Agy,SEVEN RESOURCING LTD                    ,145043      ,31-Jan-19,576.1,0,Agency Staff                  
Borough Council of Kings Lynn and West Norfolk,E07000146,31/03/19,Care & Repair - Home Impro Agy,SEVEN RESOURCING LTD                    ,145043      ,21-Mar-19,842.08,0,Agency Staff                  
Borough Council of Kings Lynn and West Norfolk,E07000146,31/03/19,Care & Repair - Home Impro Agy,SEVEN RESOURCING LTD                    ,145043      ,25-Mar-19,846.58,0,Agency Staff                  
Borough Council of Kings Lynn and West Norfolk,E07000146,31/03/19,Street Sweeping               ,BACO-COMPAK (NORFOLK) LTD               ,100137      ,11-Feb-19,1019.4,0,Hazardous Waste Disposal      
Borough Council of Kings Lynn and West Norfolk,E07000146,31/03/19,Downham Market Sports Centre  ,CORONA ENERGY RETAIL 4 LTD              ,131838      ,24-Jan-19,2015.93,0,Gas                           
Borough Council of Kings Lynn and West Norfolk,E07000146,31/03/19,Kings Court Kings Lynn        ,CORONA ENERGY RETAIL 4 LTD              ,131838      ,25-Feb-19,1415.76,0,Gas                           
Borough Council of Kings Lynn and West Norfolk,E07000146,31/03/19,Enterprise Works - North Lynn ,CORONA ENERGY RETAIL 4 LTD              ,131838      ,25-Feb-19,530.26,0,Gas                           
Borough Council of Kings Lynn and West Norfolk,E07000146,31/03/19,Oasis General Account         ,CORONA ENERGY RETAIL 4 LTD              ,131838      ,25-Feb-19,4239.94,0,Gas                           
Borough Council of Kings Lynn and West Norfolk,E07000146,31/03/19,Oasis General Account         ,CORONA ENERGY RETAIL 4 LTD              ,131838      ,25-Mar-19,3446.78,0,Gas                           
Borough Council of Kings Lynn and West Norfolk,E07000146,31/03/19,Adapt Grant                   ,CHAS D ALLFLATT LTD                     ,100315      ,17-Jan-19,3557.11,0,Works                         
Borough Council of Kings Lynn and West Norfolk,E07000146,31/03/19,Disabled Facilties Grant      ,CHAS D ALLFLATT LTD                     ,100315      ,17-Jan-19,3991.95,0,Works                         
Borough Council of Kings Lynn and West Norfolk,E07000146,31/03/19,Adapt Grant                   ,CHAS D ALLFLATT LTD                     ,100315      ,17-Jan-19,4094.19,0,Works                         
Borough Council of Kings Lynn and West Norfolk,E07000146,31/03/19,Disabled Facilties Grant      ,CHAS D ALLFLATT LTD                     ,100315      ,17-Jan-19,9043.69,0,Works                         
Borough Council of Kings Lynn and West Norfolk,E07000146,31/03/19,Adapt Grant                   ,CHAS D ALLFLATT LTD                     ,100315      ,24-Jan-19,3708.06,0,Works                         
Borough Council of Kings Lynn and West Norfolk,E07000146,31/03/19,Adapt Grant                   ,CHAS D ALLFLATT LTD                     ,100315      ,11-Feb-19,3680.12,0,Works                         
Borough Council of Kings Lynn and West Norfolk,E07000146,31/03/19,Handyperson Scheme Kings Lynn ,CHAS D ALLFLATT LTD                     ,100315      ,18-Feb-19,2827.81,0,Contractor Payments           
Borough Council of Kings Lynn and West Norfolk,E07000146,31/03/19,Adapt Grant                   ,CHAS D ALLFLATT LTD                     ,100315      ,28-Feb-19,869.56,0,Works                         
Borough Council of Kings Lynn and West Norfolk,E07000146,31/03/19,Disabled Facilties Grant      ,CHAS D ALLFLATT LTD                     ,100315      ,11-Mar-19,6500,0,Works                         
Borough Council of Kings Lynn and West Norfolk,E07000146,31/03/19,Adapt Grant                   ,CHAS D ALLFLATT LTD                     ,100315      ,21-Mar-19,4830.21,0,Works                         
Borough Council of Kings Lynn and West Norfolk,E07000146,31/03/19,Adapt Grant                   ,CHAS D ALLFLATT LTD                     ,100315      ,21-Mar-19,2281.73,0,Works                         
Borough Council of Kings Lynn and West Norfolk,E07000146,31/03/19,Learning Catalyst             ,EMAT T/A SOUTHERY ACADEMY               ,147757      ,28-Jan-19,828.4,0,Partnerships                  
Borough Council of Kings Lynn and West Norfolk,E07000146,31/03/19,Townscape Heritage Initiative ,NORFOLK BUILDING CO                     ,147786      ,21-Mar-19,9900,0,THI Priority Grant Projects   
Borough Council of Kings Lynn and West Norfolk,E07000146,31/03/19,"St Nicholas Close, Gayton     ",JON ETCHELLS CONSULTING                 ,147790      ,14-Feb-19,5044,0,Consultants Fees              
Borough Council of Kings Lynn and West Norfolk,E07000146,31/03/19,Gayton Road Cemetary Extension,CEMETERY DEVLOPMENT SERVICES LTD        ,147791      ,21-Feb-19,4200,0,Works                         
Borough Council of Kings Lynn and West Norfolk,E07000146,31/03/19,Housing Options Programme     ,THE GRANGE HOTEL                        ,124746      ,10-Jan-19,583.33,0,Temporary Accommodation       
Borough Council of Kings Lynn and West Norfolk,E07000146,31/03/19,The Walks                     ,RIDGEONS LTD                            ,101348      ,21-Mar-19,963.23,0,Materials                     
Borough Council of Kings Lynn and West Norfolk,E07000146,31/03/19,Postage Services Kings Court  ,ROYAL MAIL GROUP LTD                    ,101369      ,14-Feb-19,791.53,0,Postages                      
Borough Council of Kings Lynn and West Norfolk,E07000146,31/03/19,Register of Electors          ,ROYAL MAIL GROUP LTD                    ,101369      ,07-Mar-19,501.46,0,Postages                      
Borough Council of Kings Lynn and West Norfolk,E07000146,31/03/19,BCKLWN Control Account        ,ROSSENDALES LTD                         ,101364      ,25-Mar-19,1923.37,0,VAT Input (VAT Only Invoice)  
Borough Council of Kings Lynn and West Norfolk,E07000146,31/03/19,BCKLWN Control Account        ,ROSSENDALES LTD                         ,101364      ,25-Mar-19,722.88,0,VAT Input (VAT Only Invoice)  
Borough Council of Kings Lynn and West Norfolk,E07000146,31/03/19,Parks & Open Spaces           ,CAVELL & LIND LTD                       ,102653      ,11-Mar-19,841.5,0,HAVs medicals                 
Borough Council of Kings Lynn and West Norfolk,E07000146,31/03/19,Kings Court Kings Lynn        ,MILLAR WEST                             ,101066      ,14-Jan-19,3008.3,0,Repairs - Services Charges    
Borough Council of Kings Lynn and West Norfolk,E07000146,31/03/19,Air Quality                   ,AIR LIQUIDE UK LTD                      ,108811      ,07-Feb-19,746.02,0,Servicing                     
Borough Council of Kings Lynn and West Norfolk,E07000146,31/03/19,LILY PHASE 4                  ,WEST NORFOLK DEAF ASSOCIATION           ,112058      ,24-Jan-19,1000,0,Lily Advisor Payments         
Borough Council of Kings Lynn and West Norfolk,E07000146,31/03/19,Street Naming                 ,MIDLAND SIGNS (LEICS) T/A G & G SIGNS   ,114094      ,07-Feb-19,1866.51,0,General Repairs               
Borough Council of Kings Lynn and West Norfolk,E07000146,31/03/19,Resort Seafront               ,C H S AMUSEMENTS LTD                    ,115391      ,11-Mar-19,550,0,Miscellaneous Rents           
Borough Council of Kings Lynn and West Norfolk,E07000146,31/03/19,Brochure & lead generation    ,TAKE ONE MEDIA LTD                      ,121327      ,04-Feb-19,1807,0,Distribution                  
Borough Council of Kings Lynn and West Norfolk,E07000146,31/03/19,Brochure & lead generation    ,BELMONT PRESS LTD                       ,122176      ,04-Feb-19,6625,0,West Norfolk holiday guide    
Borough Council of Kings Lynn and West Norfolk,E07000146,31/03/19,Community Projects CS         ,WEST NORFOLK BEFRIENDING                ,126133      ,24-Jan-19,1050,0,Service Level Agreements      
Borough Council of Kings Lynn and West Norfolk,E07000146,31/03/19,Parking Operations - Borough  ,DESIGNA UK LTD                          ,127215      ,07-Feb-19,6660,0,Maint Contr St James          
Borough Council of Kings Lynn and West Norfolk,E07000146,31/03/19,50127                         ,INSTITUTE OF LICENSING (EVENTS) LTD     ,132560      ,04-Feb-19,935,0,Specialised/Cpd Training      
Borough Council of Kings Lynn and West Norfolk,E07000146,31/03/19,Training Holding Account      ,INSTITUTE OF LICENSING (EVENTS) LTD     ,132560      ,04-Feb-19,935,0,Specialised/Cpd Training      
Borough Council of Kings Lynn and West Norfolk,E07000146,31/03/19,Handyperson Scheme Kings Lynn ,SUPRA UK LTD                            ,134960      ,14-Feb-19,849,0,Items Purchased For Resale    
Borough Council of Kings Lynn and West Norfolk,E07000146,31/03/19,Bus Shelters                  ,WESTCOTEC LTD                           ,141998      ,25-Mar-19,837.43,0,General Repairs               
Borough Council of Kings Lynn and West Norfolk,E07000146,31/03/19,Kings Lynn Bus Station        ,VANCOUVER GP LTD                        ,142742      ,11-Feb-19,1994.62,0,Rent                          
Borough Council of Kings Lynn and West Norfolk,E07000146,31/03/19,North Lynn Industrial Est     ,DOWNHAM DOOR SERVICES                   ,100481      ,24-Jan-19,1725,0,General Repairs               
Borough Council of Kings Lynn and West Norfolk,E07000146,31/03/19,ICT                           ,NTA MONITOR LTD                         ,140550      ,10-Jan-19,2250,0,Computer Software Maintenance 
Borough Council of Kings Lynn and West Norfolk,E07000146,31/03/19,ICT                           ,NTA MONITOR LTD                         ,140550      ,10-Jan-19,3375,0,Computer Software Maintenance 
Borough Council of Kings Lynn and West Norfolk,E07000146,31/03/19,Nelson Quay Redevelopment     ,WILD FRONTIER ECOLOGY LTD               ,134050      ,14-Jan-19,600,0,External Fees/Consultancy     
Borough Council of Kings Lynn and West Norfolk,E07000146,31/03/19,MHP HLF Project               ,BARCHAM TREES PLC                       ,100144      ,14-Jan-19,807,0,Equipment/Materials           
Borough Council of Kings Lynn and West Norfolk,E07000146,31/03/19,Phase 3-Lynnsport 1-BCKLWN    ,MIDDLETON AGGREGATES LTD                ,101054      ,07-Feb-19,2000,0,Works                         
Borough Council of Kings Lynn and West Norfolk,E07000146,31/03/19,Flexi homeless Support Grant  ,BROADLAND HOUSING GROUP                 ,100227      ,04-Mar-19,3000,0,Contributions                 
Borough Council of Kings Lynn and West Norfolk,E07000146,31/03/19,50132                         ,BROWN & CO                              ,133641      ,14-Feb-19,2500,0,Professional Fees             
Borough Council of Kings Lynn and West Norfolk,E07000146,31/03/19,Property Services             ,BROWN & CO                              ,133641      ,14-Feb-19,2500,0,Professional Fees             
Borough Council of Kings Lynn and West Norfolk,E07000146,31/03/19,Economic Partnership Working  ,NORFOLK CHAMBER OF COMMERCE & INDUSTRY  ,118585      ,10-Jan-19,1665,0,LEP FUNDING                   
Borough Council of Kings Lynn and West Norfolk,E07000146,31/03/19,Housing Options Programme     ,RUSSET HOUSE HOTEL LTD                  ,106144      ,28-Jan-19,783.33,0,Temporary Accommodation       
Borough Council of Kings Lynn and West Norfolk,E07000146,31/03/19,Air Quality                   ,MARTIN CRANFIELD ASSOCIATES LTD         ,130334      ,21-Feb-19,7883.62,0,Professional Fees             
Borough Council of Kings Lynn and West Norfolk,E07000146,31/03/19,Parks & Open Spaces           ,ZURICH INSURANCE PLC                    ,101688      ,24-Jan-19,500,0,Insurance Excess              
Borough Council of Kings Lynn and West Norfolk,E07000146,31/03/19,Corporate Insurance           ,ZURICH INSURANCE PLC                    ,101688      ,25-Mar-19,511,0,ZM Premium                    
Borough Council of Kings Lynn and West Norfolk,E07000146,31/03/19,Licensing Sals & support costs,IDOX SOFTWARE LTD                       ,132346      ,11-Feb-19,1900,0,Consultants Fees              
Borough Council of Kings Lynn and West Norfolk,E07000146,31/03/19,Internet Development          ,SITEIMPROVE LTD                         ,135724      ,14-Feb-19,3336.82,0,Computer Software Maintenance 
Borough Council of Kings Lynn and West Norfolk,E07000146,31/03/19,Management Expenses           ,TRADITION (UK) LIMITED                  ,101563      ,04-Mar-19,1438.36,0,Brokerage                     
Borough Council of Kings Lynn and West Norfolk,E07000146,31/03/19,Corporate                     ,REDCENTRIC SOLUTIONS LTD                ,143387      ,24-Jan-19,1870,0,Stationery & Office Supplies  
Borough Council of Kings Lynn and West Norfolk,E07000146,31/03/19,Corporate                     ,REDCENTRIC SOLUTIONS LTD                ,143387      ,04-Mar-19,1870,0,Stationery & Office Supplies  
Borough Council of Kings Lynn and West Norfolk,E07000146,31/03/19,Urban Open Spaces             ,ELVEDEN FARMS LTD.                      ,107866      ,24-Jan-19,5410,0,Christmas Trees               
Borough Council of Kings Lynn and West Norfolk,E07000146,31/03/19,Urban Open Spaces             ,ELVEDEN FARMS LTD.                      ,107866      ,24-Jan-19,720,0,Christmas Trees               
Borough Council of Kings Lynn and West Norfolk,E07000146,31/03/19,OPE- Hunstanton Housing Sites ,CHAPLIN FARRANT LIMITED                 ,123551      ,28-Feb-19,787.5,0,Professional Fees             
Borough Council of Kings Lynn and West Norfolk,E07000146,31/03/19,Internet Development          ,JADU LTD                                ,144357      ,24-Jan-19,5535,0,Computer Software Maintenance 
Borough Council of Kings Lynn and West Norfolk,E07000146,31/03/19,Internet Development          ,JADU LTD                                ,144357      ,24-Jan-19,9300,0,Computer Software Maintenance 
Borough Council of Kings Lynn and West Norfolk,E07000146,31/03/19,Supplier Holding Account      ,PAUL JOHNSON MTR SERVICES LTD           ,104221      ,14-Feb-19,6939.71,0,Materials                     
Borough Council of Kings Lynn and West Norfolk,E07000146,31/03/19,Supplier Holding Account      ,PAUL JOHNSON MTR SERVICES LTD           ,104221      ,11-Mar-19,4525.21,0,Materials                     
Borough Council of Kings Lynn and West Norfolk,E07000146,31/03/19,West Winch Growth Area        ,MOTT MACDONALD LIMITED                  ,101083      ,25-Feb-19,18557.59,0,Professional Fees             
Borough Council of Kings Lynn and West Norfolk,E07000146,31/03/19,ICT                           ,IEG4 LTD                                ,145518      ,25-Feb-19,5222,0,Computer Software Maintenance 
Borough Council of Kings Lynn and West Norfolk,E07000146,31/03/19,Public Cleansing              ,LYNN COMMERCIALS  (1989) LTD            ,107430      ,11-Feb-19,663.23,0,Contract Repairs              
Borough Council of Kings Lynn and West Norfolk,E07000146,31/03/19,Sports Grounds South          ,COLLIER TURF CARE LTD                   ,100362      ,31-Jan-19,587.74,0,Materials                     
Borough Council of Kings Lynn and West Norfolk,E07000146,31/03/19,Sports Grounds Central        ,COLLIER TURF CARE LTD                   ,100362      ,31-Jan-19,587.74,0,Materials                     
Borough Council of Kings Lynn and West Norfolk,E07000146,31/03/19,Sports Grounds North          ,COLLIER TURF CARE LTD                   ,100362      ,31-Jan-19,587.75,0,Materials                     
Borough Council of Kings Lynn and West Norfolk,E07000146,31/03/19,Dev & Estate Capital Receipts ,DAVID TRUNDLEY DESIGN SERVS LTD         ,103063      ,24-Jan-19,500,0,Disposal Cost Architect       
Borough Council of Kings Lynn and West Norfolk,E07000146,31/03/19,Corporate Insurance           ,BLACKWALL GREEN                         ,145975      ,14-Feb-19,12894.31,0,ZM Premium                    
Borough Council of Kings Lynn and West Norfolk,E07000146,31/03/19,"St Nicholas Close, Gayton     ",MR TIMOTHY LEADER                       ,143485      ,14-Mar-19,7000,0,Consultants Fees              
Borough Council of Kings Lynn and West Norfolk,E07000146,31/03/19,Parking Operations - Borough  ,METRIC GROUP LTD                        ,101041      ,25-Mar-19,2921.52,0,Maint Contr St James          
Borough Council of Kings Lynn and West Norfolk,E07000146,31/03/19,Parking Operations - Borough  ,METRIC GROUP LTD                        ,101041      ,25-Mar-19,2368.8,0,Maint Contr Hunstanton        
Borough Council of Kings Lynn and West Norfolk,E07000146,31/03/19,Dry Box Collection Scheme     ,NORSE ENVIRONMENTAL WASTE SVCS          ,102093      ,31-Jan-19,23631.59,0,Waste Processing Cost         
Borough Council of Kings Lynn and West Norfolk,E07000146,31/03/19,Adapt Grant                   ,GASWISE SERVICES LTD.                   ,100677      ,24-Jan-19,4652.22,0,Works                         
Borough Council of Kings Lynn and West Norfolk,E07000146,31/03/19,Postage Services Kings Court  ,POSTAGE BY PHONE                        ,101299      ,17-Jan-19,5011.45,0,Postages                      
Borough Council of Kings Lynn and West Norfolk,E07000146,31/03/19,Hanse from 2018               ,SAM JASON COOK                          ,146428      ,21-Feb-19,810,0,Professional Fees             
Borough Council of Kings Lynn and West Norfolk,E07000146,31/03/19,Vehicle Recharge On Account   ,WORLDLINE IT SERVICESUK LTD RE FUELGENIE,135817      ,14-Mar-19,8006.3,0,Petrol                        
Borough Council of Kings Lynn and West Norfolk,E07000146,31/03/19,BCKLWN Control Account        ,NEWLYN PLC                              ,143655      ,17-Jan-19,842.43,0,VAT Input (VAT Only Invoice)  
Borough Council of Kings Lynn and West Norfolk,E07000146,31/03/19,Improving Attainment          ,EMAT T/A KING EDWARD VII ACADEMY        ,146879      ,21-Feb-19,2033,0,Small Projects                
Borough Council of Kings Lynn and West Norfolk,E07000146,31/03/19,Trafalgar (DM)  Industrial Est,COMPLETE ELECTRICAL SOLUTION NORFOLK LTD,146995      ,14-Mar-19,1355.22,0,General Repairs               
Borough Council of Kings Lynn and West Norfolk,E07000146,31/03/19,50121                         ,IT GOVERNANCE LTD                       ,147026      ,04-Feb-19,950,0,E-learning                    
Borough Council of Kings Lynn and West Norfolk,E07000146,31/03/19,Personnel Services            ,IT GOVERNANCE LTD                       ,147026      ,04-Feb-19,950,0,E-learning                    
Borough Council of Kings Lynn and West Norfolk,E07000146,31/03/19,Learning Catalyst             ,DIOCESE OF NORWICH EDUCATION ACADEMIES  ,147093      ,18-Feb-19,3020,0,Small Projects                
Borough Council of Kings Lynn and West Norfolk,E07000146,31/03/19,Disabled Facilties Grant      ,STANNAH LIFT SERVICES LTD               ,101479      ,28-Feb-19,5998,0,Works                         
Borough Council of Kings Lynn and West Norfolk,E07000146,31/03/19,NORA Phase 3                  ,LOVELL PARTNERSHIPS LTD                 ,143432      ,04-Feb-19,258700.25,0,Works                         
Borough Council of Kings Lynn and West Norfolk,E07000146,31/03/19,Arts Centre Complex           ,CORE TECHNOLOGY PROJECTS LTD            ,143597      ,07-Feb-19,1590,0,Equipment/Materials           
Borough Council of Kings Lynn and West Norfolk,E07000146,31/03/19,AV in meeting rooms           ,CORE TECHNOLOGY PROJECTS LTD            ,143597      ,11-Mar-19,1320,0,Computer Equip (Hardware)     
Borough Council of Kings Lynn and West Norfolk,E07000146,31/03/19,Oasis Filter Media            ,STERLING HYDROTECH LTD                  ,137682      ,24-Jan-19,7796,0,Works                         
Borough Council of Kings Lynn and West Norfolk,E07000146,31/03/19,Cashless Park KZ (KLWN off St),CHIPSIDE LTD                            ,146272      ,21-Feb-19,1143.17,0,Transaction Fee               
Borough Council of Kings Lynn and West Norfolk,E07000146,31/03/19,Disabled Facilties Grant      ,FREEBRIDGE COMMUNITY HOUSING            ,127987      ,11-Feb-19,7639.59,0,Works                         
Borough Council of Kings Lynn and West Norfolk,E07000146,31/03/19,Disabled Facilties Grant      ,FREEBRIDGE COMMUNITY HOUSING            ,127987      ,18-Feb-19,12210.38,0,Works                         
Borough Council of Kings Lynn and West Norfolk,E07000146,31/03/19,Disabled Facilties Grant      ,FREEBRIDGE COMMUNITY HOUSING            ,127987      ,28-Feb-19,3902.36,0,Works                         
Borough Council of Kings Lynn and West Norfolk,E07000146,31/03/19,Adapt Grant                   ,FREEBRIDGE COMMUNITY HOUSING            ,127987      ,21-Mar-19,2890.36,0,Works                         
Borough Council of Kings Lynn and West Norfolk,E07000146,31/03/19,Heritage Action Zone          ,AR URBANISM                             ,147296      ,04-Feb-19,8707,0,FEASIBILITY STUDY             
Borough Council of Kings Lynn and West Norfolk,E07000146,31/03/19,Townscape Heritage Initiative ,ALAN HOMES (NORFOLK) LTD                ,147418      ,14-Feb-19,25920.11,0,THI Priority Grant Projects   
Borough Council of Kings Lynn and West Norfolk,E07000146,31/03/19,Explorer Trails Project       ,WOLF DIGITAL MARKETING                  ,147258      ,28-Feb-19,4500,0,Social media marketing        
Borough Council of Kings Lynn and West Norfolk,E07000146,31/03/19,Parking Operations - Borough  ,NORFOLK COUNTY COUNCIL                  ,101142      ,14-Jan-19,892.1,0,Maintenance Contracts         
Borough Council of Kings Lynn and West Norfolk,E07000146,31/03/19,Roads / Infrastructure        ,NORFOLK COUNTY COUNCIL                  ,101142      ,07-Feb-19,105891.7,0,External Fees/Consultancy     
Borough Council of Kings Lynn and West Norfolk,E07000146,31/03/19,Parking Operations - Borough  ,LOOMIS UK LTD                           ,140581      ,14-Feb-19,996.83,0,Security Services Charge      
Borough Council of Kings Lynn and West Norfolk,E07000146,31/03/19,Leisure Management Costs      ,LOOMIS UK LTD                           ,140581      ,14-Feb-19,559.5,0,Security Services Charge      
Borough Council of Kings Lynn and West Norfolk,E07000146,31/03/19,Leisure Management Costs      ,LOOMIS UK LTD                           ,140581      ,14-Mar-19,559.5,0,Security Services Charge      
Borough Council of Kings Lynn and West Norfolk,E07000146,31/03/19,Parking Operations - Borough  ,LOOMIS UK LTD                           ,140581      ,14-Mar-19,996.83,0,Security Services Charge      
Borough Council of Kings Lynn and West Norfolk,E07000146,31/03/19,The Walks                     ,CGM GROUP (EAST ANGLIA) LTD             ,100401      ,11-Feb-19,510,0,General Repairs               
Borough Council of Kings Lynn and West Norfolk,E07000146,31/03/19,ICT                           ,CLARANET LTD                            ,119601      ,18-Mar-19,4196.4,0,Communications                
Borough Council of Kings Lynn and West Norfolk,E07000146,31/03/19,Head of Legal Services        ,NORTH NORFOLK DISTRICT COUNCIL          ,101156      ,11-Feb-19,500,0,Commissioning Ext. Legal fees 
Borough Council of Kings Lynn and West Norfolk,E07000146,31/03/19,"Manor House,52 HighSt,NWold NL",NORTH NORFOLK DISTRICT COUNCIL          ,101156      ,14-Mar-19,850,0,Rechargeable Works            
Borough Council of Kings Lynn and West Norfolk,E07000146,31/03/19,Refuse & Recyc Mgmt           ,KIER SERVICES ENVIRONMENTAL             ,141535      ,31-Jan-19,1095.72,0,Advertising                   
Borough Council of Kings Lynn and West Norfolk,E07000146,31/03/19,Domestic Refuse               ,KIER SERVICES ENVIRONMENTAL             ,141535      ,18-Feb-19,1926.25,0,Delivery/Carriage Charge      
Borough Council of Kings Lynn and West Norfolk,E07000146,31/03/19,Domestic Refuse               ,KIER SERVICES ENVIRONMENTAL             ,141535      ,31-Jan-19,2217.17,0,Delivery/Carriage Charge      
Borough Council of Kings Lynn and West Norfolk,E07000146,31/03/19,Dry Box Collection Scheme     ,KIER SERVICES ENVIRONMENTAL             ,141535      ,25-Mar-19,80297.55,0,Contracted Services           
Borough Council of Kings Lynn and West Norfolk,E07000146,31/03/19,Domestic Refuse               ,KIER SERVICES ENVIRONMENTAL             ,141535      ,25-Mar-19,78801.15,0,Contracted Services           
Borough Council of Kings Lynn and West Norfolk,E07000146,31/03/19,Recycling Composting          ,KIER SERVICES ENVIRONMENTAL             ,141535      ,25-Mar-19,31095.19,0,Contracted Services           
Borough Council of Kings Lynn and West Norfolk,E07000146,31/03/19,Food Waste                    ,KIER SERVICES ENVIRONMENTAL             ,141535      ,25-Mar-19,27367.84,0,Contracted Services           
Borough Council of Kings Lynn and West Norfolk,E07000146,31/03/19,Dry Box Collection Scheme     ,KIER SERVICES ENVIRONMENTAL             ,141535      ,25-Mar-19,3021.33,0,Contracted Services           
Borough Council of Kings Lynn and West Norfolk,E07000146,31/03/19,Domestic Refuse               ,KIER SERVICES ENVIRONMENTAL             ,141535      ,25-Mar-19,3807.66,0,Clinical & Medical Waste      
Borough Council of Kings Lynn and West Norfolk,E07000146,31/03/19,Trade Refuse                  ,KIER SERVICES ENVIRONMENTAL             ,141535      ,25-Mar-19,9065.59,0,Contracted Services           
Borough Council of Kings Lynn and West Norfolk,E07000146,31/03/19,Domestic Refuse               ,KIER SERVICES ENVIRONMENTAL             ,141535      ,25-Mar-19,2852.22,0,Contracted Services           
Borough Council of Kings Lynn and West Norfolk,E07000146,31/03/19,Domestic Refuse               ,KIER SERVICES ENVIRONMENTAL             ,141535      ,25-Mar-19,2977.93,0,Contracted Services           
Borough Council of Kings Lynn and West Norfolk,E07000146,31/03/19,Dry Box Collection Scheme     ,KIER SERVICES ENVIRONMENTAL             ,141535      ,25-Mar-19,3021.33,0,Contracted Services           
Borough Council of Kings Lynn and West Norfolk,E07000146,31/03/19,Trade Refuse                  ,KIER SERVICES ENVIRONMENTAL             ,141535      ,25-Mar-19,9065.59,0,Contracted Services           
Borough Council of Kings Lynn and West Norfolk,E07000146,31/03/19,Domestic Refuse               ,KIER SERVICES ENVIRONMENTAL             ,141535      ,25-Mar-19,78801.15,0,Contracted Services           
Borough Council of Kings Lynn and West Norfolk,E07000146,31/03/19,Domestic Refuse               ,KIER SERVICES ENVIRONMENTAL             ,141535      ,25-Mar-19,2977.93,0,Contracted Services           
Borough Council of Kings Lynn and West Norfolk,E07000146,31/03/19,Domestic Refuse               ,KIER SERVICES ENVIRONMENTAL             ,141535      ,25-Mar-19,2852.22,0,Contracted Services           
Borough Council of Kings Lynn and West Norfolk,E07000146,31/03/19,Domestic Refuse               ,KIER SERVICES ENVIRONMENTAL             ,141535      ,25-Mar-19,3807.66,0,Clinical & Medical Waste      
Borough Council of Kings Lynn and West Norfolk,E07000146,31/03/19,Dry Box Collection Scheme     ,KIER SERVICES ENVIRONMENTAL             ,141535      ,25-Mar-19,80297.55,0,Contracted Services           
Borough Council of Kings Lynn and West Norfolk,E07000146,31/03/19,Food Waste                    ,KIER SERVICES ENVIRONMENTAL             ,141535      ,25-Mar-19,27367.84,0,Contracted Services           
Borough Council of Kings Lynn and West Norfolk,E07000146,31/03/19,Recycling Composting          ,KIER SERVICES ENVIRONMENTAL             ,141535      ,25-Mar-19,31095.19,0,Contracted Services           
Borough Council of Kings Lynn and West Norfolk,E07000146,31/03/19,Recycling Commercial          ,KIER SERVICES ENVIRONMENTAL             ,141535      ,25-Mar-19,760.94,0,Contracted Services           
Borough Council of Kings Lynn and West Norfolk,E07000146,31/03/19,Recycling Composting          ,KIER SERVICES ENVIRONMENTAL             ,141535      ,25-Mar-19,15824.59,0,Waste Processing Cost         
Borough Council of Kings Lynn and West Norfolk,E07000146,31/03/19,Food Waste                    ,KIER SERVICES ENVIRONMENTAL             ,141535      ,25-Mar-19,1883.53,0,Contracted Services           
Borough Council of Kings Lynn and West Norfolk,E07000146,31/03/19,Food Waste                    ,KIER SERVICES ENVIRONMENTAL             ,141535      ,25-Mar-19,561.78,0,Contracted Services           
Borough Council of Kings Lynn and West Norfolk,E07000146,31/03/19,Food Waste                    ,KIER SERVICES ENVIRONMENTAL             ,141535      ,25-Mar-19,23018.6,0,Waste Processing Cost         
Borough Council of Kings Lynn and West Norfolk,E07000146,31/03/19,Parks & Open Spaces           ,GOLDEN TREE SURGEONS LTD                ,145155      ,21-Feb-19,680,0,Tree Work/Storm Damage etc    
Borough Council of Kings Lynn and West Norfolk,E07000146,31/03/19,NEWS Depot                    ,MARATHON SERVICES LIMITED               ,101003      ,11-Feb-19,1555.63,0,Contract Cleaning             
Borough Council of Kings Lynn and West Norfolk,E07000146,31/03/19,KL Arts Centre                ,ALIVE MANAGEMENT LTD                    ,143925      ,21-Jan-19,4266.7,0,Recharge Maint (Fr AML A910)  
Borough Council of Kings Lynn and West Norfolk,E07000146,31/03/19,KL Arts Centre                ,ALIVE MANAGEMENT LTD                    ,143925      ,21-Jan-19,1270,0,Recharge Maint (Fr AML A910)  
Borough Council of Kings Lynn and West Norfolk,E07000146,31/03/19,South Lynn Community Centre   ,ALIVE MANAGEMENT LTD                    ,143925      ,21-Jan-19,561,0,Comm Centres Staff (AML A915) 
Borough Council of Kings Lynn and West Norfolk,E07000146,31/03/19,Broad St conversion to Houses ,MARLOWE FIRE & SECURITY LTD             ,141479      ,21-Mar-19,525,0,Professional Fees             
Borough Council of Kings Lynn and West Norfolk,E07000146,31/03/19,Care & Repair - Home Impro Agy,SEVEN RESOURCING LTD                    ,145043      ,07-Feb-19,866.89,0,Agency Staff                  
Borough Council of Kings Lynn and West Norfolk,E07000146,31/03/19,Lynnsport General Account     ,CORONA ENERGY RETAIL 4 LTD              ,131838      ,25-Feb-19,2231.29,0,Gas                           
Borough Council of Kings Lynn and West Norfolk,E07000146,31/03/19,Corn Exchange                 ,CORONA ENERGY RETAIL 4 LTD              ,131838      ,25-Feb-19,1687.07,0,Gas                           
Borough Council of Kings Lynn and West Norfolk,E07000146,31/03/19,Dutton Sports Pavillion       ,CORONA ENERGY RETAIL 4 LTD              ,131838      ,25-Feb-19,642.58,0,Gas                           
Borough Council of Kings Lynn and West Norfolk,E07000146,31/03/19,St James General Account      ,CORONA ENERGY RETAIL 4 LTD              ,131838      ,25-Mar-19,2461.74,0,Gas                           
Borough Council of Kings Lynn and West Norfolk,E07000146,31/03/19,KL Arts Centre                ,CORONA ENERGY RETAIL 4 LTD              ,131838      ,25-Mar-19,1062.39,0,Gas                           
Borough Council of Kings Lynn and West Norfolk,E07000146,31/03/19,KL Arts Centre                ,KINGS LYNN FESTIVAL LTD                 ,100877      ,14-Mar-19,3625,0,Hirings Ticketed              
Borough Council of Kings Lynn and West Norfolk,E07000146,31/03/19,BCKLWN Control Account        ,KINGS LYNN FESTIVAL LTD                 ,100877      ,14-Mar-19,725,0,VAT Output                    
Borough Council of Kings Lynn and West Norfolk,E07000146,31/03/19,Housing Options Programme     ,ESPO                                    ,100581      ,25-Mar-19,1240,0,Furniture                     
Borough Council of Kings Lynn and West Norfolk,E07000146,31/03/19,Unit 36 Hardwick Ind Estate   ,1-2 CALL DRAINAGE & GROUNDWORK LTD      ,131800      ,21-Jan-19,9150,0,Works                         
Borough Council of Kings Lynn and West Norfolk,E07000146,31/03/19,Parking Operations - Borough  ,1-2 CALL DRAINAGE & GROUNDWORK LTD      ,131800      ,14-Feb-19,650,0,Gen Rep KL P&D                
Borough Council of Kings Lynn and West Norfolk,E07000146,31/03/19,Adapt Grant                   ,CHAS D ALLFLATT LTD                     ,100315      ,24-Jan-19,4218.25,0,Works                         
Borough Council of Kings Lynn and West Norfolk,E07000146,31/03/19,Disabled Facilties Grant      ,CHAS D ALLFLATT LTD                     ,100315      ,11-Feb-19,6506.84,0,Works                         
Borough Council of Kings Lynn and West Norfolk,E07000146,31/03/19,Adapt Grant                   ,CHAS D ALLFLATT LTD                     ,100315      ,18-Feb-19,557.46,0,Works                         
Borough Council of Kings Lynn and West Norfolk,E07000146,31/03/19,Disabled Facilties Grant      ,CHAS D ALLFLATT LTD                     ,100315      ,04-Mar-19,2023.1,0,Works                         
Borough Council of Kings Lynn and West Norfolk,E07000146,31/03/19,Adapt Grant                   ,CHAS D ALLFLATT LTD                     ,100315      ,28-Feb-19,3718.93,0,Works                         
Borough Council of Kings Lynn and West Norfolk,E07000146,31/03/19,Disabled Facilties Grant      ,CHAS D ALLFLATT LTD                     ,100315      ,28-Feb-19,7386.05,0,Works                         
Borough Council of Kings Lynn and West Norfolk,E07000146,31/03/19,Parking Operations - Borough  ,E AKERS                                 ,100500      ,18-Feb-19,930,0,Gen Rep St James              
Borough Council of Kings Lynn and West Norfolk,E07000146,31/03/19,50127                         ,PETER MILLIGAN CREATIONS                ,147752      ,28-Jan-19,832.4,0,In-House Training             
Borough Council of Kings Lynn and West Norfolk,E07000146,31/03/19,Training Holding Account      ,PETER MILLIGAN CREATIONS                ,147752      ,28-Jan-19,832.4,0,In-House Training             
Borough Council of Kings Lynn and West Norfolk,E07000146,31/03/19,Cost of Collection - CTax     ,ROYAL MAIL GROUP LTD                    ,101369      ,11-Feb-19,565.01,0,Postages                      
Borough Council of Kings Lynn and West Norfolk,E07000146,31/03/19,Cost of Collection - CTax     ,ROYAL MAIL GROUP LTD                    ,101369      ,25-Feb-19,610.45,0,Postages                      
Borough Council of Kings Lynn and West Norfolk,E07000146,31/03/19,Postage Services Kings Court  ,ROYAL MAIL GROUP LTD                    ,101369      ,21-Mar-19,780.28,0,Postages                      
Borough Council of Kings Lynn and West Norfolk,E07000146,31/03/19,BCKLWN Control Account        ,ROSSENDALES LTD                         ,101364      ,21-Mar-19,1507.45,0,VAT Input (VAT Only Invoice)  
Borough Council of Kings Lynn and West Norfolk,E07000146,31/03/19,Corporate                     ,ERNST & YOUNG                           ,100576      ,07-Feb-19,9874,0,Audit Fee                     
Borough Council of Kings Lynn and West Norfolk,E07000146,31/03/19,Disabled Facilties Grant      ,ELY BUILDING & MAINTENANCE SERVICES LTD ,106268      ,11-Mar-19,4507.69,0,Works                         
Borough Council of Kings Lynn and West Norfolk,E07000146,31/03/19,Day visitor awareness         ,TAKE ONE MEDIA LTD                      ,121327      ,25-Mar-19,2633,0,Distribution                  
Borough Council of Kings Lynn and West Norfolk,E07000146,31/03/19,LILY PHASE 4                  ,WEST NORFOLK BEFRIENDING                ,126133      ,24-Jan-19,1000,0,Lily Advisor Payments         
Borough Council of Kings Lynn and West Norfolk,E07000146,31/03/19,North Lynn Industrial Est     ,WEAAR LTD                               ,130750      ,31-Jan-19,1250,0,General Repairs               
Borough Council of Kings Lynn and West Norfolk,E07000146,31/03/19,North Lynn Industrial Est     ,WEAAR LTD                               ,130750      ,31-Jan-19,4750,0,Repairs - Services Charges    
Borough Council of Kings Lynn and West Norfolk,E07000146,31/03/19,NORA                          ,ASHFIELD SOLUTIONS LTD                  ,129177      ,18-Feb-19,1389,0,External Fees/Consultancy     
Borough Council of Kings Lynn and West Norfolk,E07000146,31/03/19,Website & social media mktng  ,NEW VISION GROUP LTD                    ,135836      ,25-Mar-19,1660,0,"DMS licences, data steward    "
Borough Council of Kings Lynn and West Norfolk,E07000146,31/03/19,Website & social media mktng  ,NEW VISION GROUP LTD                    ,135836      ,25-Mar-19,2152,0,"DMS licences, data steward    "
Borough Council of Kings Lynn and West Norfolk,E07000146,31/03/19,Website & social media mktng  ,NEW VISION GROUP LTD                    ,135836      ,25-Mar-19,1640,0,"DMS licences, data steward    "
Borough Council of Kings Lynn and West Norfolk,E07000146,31/03/19,Trade Refuse                  ,UK CONTAINER MAINTENANCE LTD            ,137174      ,14-Mar-19,1034,0,General Repairs               
Borough Council of Kings Lynn and West Norfolk,E07000146,31/03/19,Trade Bins                    ,UK CONTAINER MAINTENANCE LTD            ,137174      ,14-Mar-19,1050.65,0,Equipment/Materials           
Borough Council of Kings Lynn and West Norfolk,E07000146,31/03/19,Refuse - Black Bins           ,UK CONTAINER MAINTENANCE LTD            ,137174      ,14-Mar-19,1050.65,0,Equipment/Materials           
Borough Council of Kings Lynn and West Norfolk,E07000146,31/03/19,Refuse - Black Bins           ,UK CONTAINER MAINTENANCE LTD            ,137174      ,14-Mar-19,1050.65,0,Equipment/Materials           
Borough Council of Kings Lynn and West Norfolk,E07000146,31/03/19,Refuse - Black Bins           ,UK CONTAINER MAINTENANCE LTD            ,137174      ,14-Mar-19,1050.65,0,Equipment/Materials           
Borough Council of Kings Lynn and West Norfolk,E07000146,31/03/19,Trade Bins                    ,UK CONTAINER MAINTENANCE LTD            ,137174      ,14-Mar-19,1050.65,0,Equipment/Materials           
Borough Council of Kings Lynn and West Norfolk,E07000146,31/03/19,MHP HLF Project               ,WESTCOTEC LTD                           ,141998      ,07-Mar-19,6338.58,0,Works                         
Borough Council of Kings Lynn and West Norfolk,E07000146,31/03/19,Adapt Grant                   ,PREFERRED ACCESS RAMP SYSTEMS LTD       ,142402      ,14-Mar-19,2156,0,Works                         
Borough Council of Kings Lynn and West Norfolk,E07000146,31/03/19,ICT                           ,MPS  NETWORKSPLC                        ,136347      ,31-Jan-19,600,0,Maint Plant & Equip           
Borough Council of Kings Lynn and West Norfolk,E07000146,31/03/19,Community Projects CS         ,RELATE LTD                              ,124026      ,04-Mar-19,3400,0,Service Level Agreements      
Borough Council of Kings Lynn and West Norfolk,E07000146,31/03/19,REGENERATION PROJECTS         ,KJN LANDSCAPES                          ,100891      ,17-Jan-19,1200,0,Grounds Mtce - Contractor     
Borough Council of Kings Lynn and West Norfolk,E07000146,31/03/19,Mintlyn Crematorium           ,FED. OF BURIAL & CREMATION AUTHORITIES  ,100618      ,28-Jan-19,888.8,0,Subscriptions                 
Borough Council of Kings Lynn and West Norfolk,E07000146,31/03/19,Leisure Options               ,BIRKETTS LLP                            ,136597      ,10-Jan-19,500.5,0,Professional Fees             
Borough Council of Kings Lynn and West Norfolk,E07000146,31/03/19,LILY PHASE 4                  ,WEST NORFOLK MIND                       ,120828      ,18-Mar-19,1000,0,Lily Advisor Payments         
Borough Council of Kings Lynn and West Norfolk,E07000146,31/03/19,Housing Standards             ,IDOX SOFTWARE LTD                       ,132346      ,25-Feb-19,1900,0,Computer Equipment            
Borough Council of Kings Lynn and West Norfolk,E07000146,31/03/19,Local Land Charges            ,IDOX SOFTWARE LTD                       ,132346      ,25-Mar-19,950,0,Miscellaneous                 
Borough Council of Kings Lynn and West Norfolk,E07000146,31/03/19,CCTV                          ,UPGRADE OPTIONS LTD                     ,129722      ,11-Feb-19,698,0,Computer Equipment            
Borough Council of Kings Lynn and West Norfolk,E07000146,31/03/19,OPE- Hunstanton Housing Sites ,CHAPLIN FARRANT LIMITED                 ,123551      ,28-Feb-19,813.75,0,External Fees/Consultancy     
Borough Council of Kings Lynn and West Norfolk,E07000146,31/03/19,Community Projects CRS        ,S.W.A.N YOUTH OPPORTUNITIES PROJECT     ,144059      ,24-Jan-19,2500,0,Service Level Agreements      
Borough Council of Kings Lynn and West Norfolk,E07000146,31/03/19,Disabled Facilties Grant      ,COLIN DAWSON WINDOWS LIMITED            ,100359      ,06-Mar-19,2820,0,Works                         
Borough Council of Kings Lynn and West Norfolk,E07000146,31/03/19,Corporate                     ,GUARANTEE PROTECTION INSURANCE LTD      ,100773      ,25-Mar-19,1022.9,0,Miscellaneous                 
Borough Council of Kings Lynn and West Norfolk,E07000146,31/03/19,50127                         ,UNIVERSITY OF DERBY                     ,122990      ,07-Mar-19,2100,0,Qualification Training        
Borough Council of Kings Lynn and West Norfolk,E07000146,31/03/19,Training Holding Account      ,UNIVERSITY OF DERBY                     ,122990      ,07-Mar-19,2100,0,Qualification Training        
Borough Council of Kings Lynn and West Norfolk,E07000146,31/03/19,Nature Areas                  ,NORFOLK WILDLIFE TRUST                  ,131477      ,14-Jan-19,7352.5,0,External Fees/Consultancy     
Borough Council of Kings Lynn and West Norfolk,E07000146,31/03/19,Community Projects CS         ,SHELTER                                 ,105656      ,24-Jan-19,8911,0,Service Level Agreements      
Borough Council of Kings Lynn and West Norfolk,E07000146,31/03/19,NORA                          ,MOTT MACDONALD LIMITED                  ,101083      ,24-Jan-19,2002.6,0,External Fees/Consultancy     
Borough Council of Kings Lynn and West Norfolk,E07000146,31/03/19,Public Cleansing Vehicles     ,FORD & SLATER DAF KINGS LYNN            ,100682      ,28-Jan-19,39850,0,Equipment/Materials           
Borough Council of Kings Lynn and West Norfolk,E07000146,31/03/19,Domestic Refuse               ,NORSE ENVIRONMENTAL WASTE SVCS          ,102093      ,21-Feb-19,28387.52,0,Waste Processing Cost         
Borough Council of Kings Lynn and West Norfolk,E07000146,31/03/19,North Lynn Industrial Est     ,SMITH BUILDING SERVICES LTD             ,101443      ,17-Jan-19,550,0,Repairs - Services Charges    
Borough Council of Kings Lynn and West Norfolk,E07000146,31/03/19,Sealskinz M18FG03             ,SMITH BUILDING SERVICES LTD             ,101443      ,11-Feb-19,3750.74,0,Rechargeable Works            
Borough Council of Kings Lynn and West Norfolk,E07000146,31/03/19,Kings Lynn Bus Station        ,SMITH BUILDING SERVICES LTD             ,101443      ,28-Feb-19,635,0,General Repairs               
Borough Council of Kings Lynn and West Norfolk,E07000146,31/03/19,Planning Policy - Dept Costs  ,ANN SKIPPERS PLANNING                   ,146556      ,07-Mar-19,1650,0,Professional Fees             
Borough Council of Kings Lynn and West Norfolk,E07000146,31/03/19,Depot Infestation Works       ,BROWNS REMOVALS & STORAGE               ,146688      ,14-Feb-19,800,0,Rechargeable Works            
Borough Council of Kings Lynn and West Norfolk,E07000146,31/03/19,BCKLWN Control Account        ,NEWLYN PLC                              ,143655      ,17-Jan-19,1748.5,0,VAT Input (VAT Only Invoice)  
Borough Council of Kings Lynn and West Norfolk,E07000146,31/03/19,Telephones                    ,VODAFONE (CORPORATE) LTD                ,102257      ,07-Feb-19,539.89,0,Mobile Phone Usage & Top-up   
Borough Council of Kings Lynn and West Norfolk,E07000146,31/03/19,GM Central Area               ,THURLOW NUNN STANDEN LTD                ,101547      ,04-Mar-19,708.21,0,Materials                     
Borough Council of Kings Lynn and West Norfolk,E07000146,31/03/19,Improving Attainment          ,WEST NORFOLK ACADEMIES TRUST            ,147163      ,07-Jan-19,9185.84,0,Small Projects                
Borough Council of Kings Lynn and West Norfolk,E07000146,31/03/19,Enterprise Zone               ,NEW ANGLIA LOCAL ENTERPRISE PTN LTD     ,139591      ,14-Mar-19,10197.34,0,Miscellaneous                 
Borough Council of Kings Lynn and West Norfolk,E07000146,31/03/19,Enterprise Zone               ,NEW ANGLIA LOCAL ENTERPRISE PTN LTD     ,139591      ,14-Mar-19,7824.36,0,Miscellaneous                 
Borough Council of Kings Lynn and West Norfolk,E07000146,31/03/19,Resort Seafront               ,PENTY CONTRACTORS LTD                   ,101244      ,04-Feb-19,500,0,General Repairs               
Borough Council of Kings Lynn and West Norfolk,E07000146,31/03/19,Resort Seafront               ,PENTY CONTRACTORS LTD                   ,101244      ,21-Feb-19,655,0,Beach Safety                  
Borough Council of Kings Lynn and West Norfolk,E07000146,31/03/19,Adapt Grant                   ,STANNAH LIFT SERVICES LTD               ,101479      ,24-Jan-19,2280,0,Works                         
Borough Council of Kings Lynn and West Norfolk,E07000146,31/03/19,Adapt Grant                   ,STANNAH LIFT SERVICES LTD               ,101479      ,14-Mar-19,1149.87,0,Works                         
Borough Council of Kings Lynn and West Norfolk,E07000146,31/03/19,Phase 1 -  Marsh Lane         ,LOVELL PARTNERSHIPS LTD                 ,143432      ,11-Mar-19,451432.88,0,Works                         
Borough Council of Kings Lynn and West Norfolk,E07000146,31/03/19,BID Debtors                   ,BID REFUNDS                             ,BID18       ,28-Jan-19,1046,0,Postings/Transactions         
Borough Council of Kings Lynn and West Norfolk,E07000146,31/03/19,Street Sweeping               ,PEACEFUL PETS LTD                       ,120185      ,17-Jan-19,770,0,Animal Removal                
Borough Council of Kings Lynn and West Norfolk,E07000146,31/03/19,Street Sweeping               ,PEACEFUL PETS LTD                       ,120185      ,18-Feb-19,770,0,Animal Removal                
Borough Council of Kings Lynn and West Norfolk,E07000146,31/03/19,Cashless Park KZ (KLWN off St),CHIPSIDE LTD                            ,146272      ,21-Jan-19,1151.83,0,Transaction Fee               
Borough Council of Kings Lynn and West Norfolk,E07000146,31/03/19,Adapt Grant                   ,FREEBRIDGE COMMUNITY HOUSING            ,127987      ,25-Mar-19,4266.38,0,Works                         
Borough Council of Kings Lynn and West Norfolk,E07000146,31/03/19,Heritage Action Zone          ,AR URBANISM                             ,147296      ,07-Feb-19,44707,0,FEASIBILITY STUDY             
Borough Council of Kings Lynn and West Norfolk,E07000146,31/03/19,Mintlyn Crematorium           ,ICCM                                    ,122872      ,04-Feb-19,1004,0,Professional Fees             
Borough Council of Kings Lynn and West Norfolk,E07000146,31/03/19,BCKLWN Control Account        ,ROSSENDALES LTD                         ,101364      ,21-Feb-19,743.03,0,VAT Input (VAT Only Invoice)  
Borough Council of Kings Lynn and West Norfolk,E07000146,31/03/19,BCKLWN Control Account        ,ROSSENDALES LTD                         ,101364      ,14-Mar-19,998.3,0,VAT Input (VAT Only Invoice)  
Borough Council of Kings Lynn and West Norfolk,E07000146,31/03/19,Car Park Promotions           ,NORFOLK COUNTY COUNCIL                  ,101142      ,18-Feb-19,5000,0,Promotional Activities        
Borough Council of Kings Lynn and West Norfolk,E07000146,31/03/19,Local Land Charges            ,NORFOLK COUNTY COUNCIL                  ,101142      ,18-Feb-19,5652.9,0,Agency                        
Borough Council of Kings Lynn and West Norfolk,E07000146,31/03/19,Kings Court Kings Lynn        ,AMR ELECTRICAL SERVICES LTD             ,126614      ,11-Mar-19,6657.57,0,General Repairs               
Borough Council of Kings Lynn and West Norfolk,E07000146,31/03/19,Cost of Collection - CTax     ,ROYAL MAIL GROUP LTD                    ,101369      ,21-Jan-19,1747.14,0,Postages                      
Borough Council of Kings Lynn and West Norfolk,E07000146,31/03/19,50302                         ,ROYAL MAIL GROUP LTD                    ,101369      ,21-Jan-19,582.22,0,Postages                      
Borough Council of Kings Lynn and West Norfolk,E07000146,31/03/19,Financial Services            ,ROYAL MAIL GROUP LTD                    ,101369      ,21-Jan-19,582.22,0,Postages                      
Borough Council of Kings Lynn and West Norfolk,E07000146,31/03/19,NNDC Penalty Notice Processing,NORTH NORFOLK DISTRICT COUNCIL          ,101156      ,21-Jan-19,6731,0,Agency                        
Borough Council of Kings Lynn and West Norfolk,E07000146,31/03/19,Community Housing Fund        ,NORTH NORFOLK DISTRICT COUNCIL          ,101156      ,11-Feb-19,3729.57,0,Professional Fees             
Borough Council of Kings Lynn and West Norfolk,E07000146,31/03/19,Head of Legal Services        ,NORTH NORFOLK DISTRICT COUNCIL          ,101156      ,11-Mar-19,950,0,Commissioning Ext. Legal fees 
Borough Council of Kings Lynn and West Norfolk,E07000146,31/03/19,Head of Legal Services        ,NORTH NORFOLK DISTRICT COUNCIL          ,101156      ,11-Mar-19,800,0,Commissioning Ext. Legal fees 
Borough Council of Kings Lynn and West Norfolk,E07000146,31/03/19,Head of Legal Services        ,NORTH NORFOLK DISTRICT COUNCIL          ,101156      ,25-Mar-19,60089,0,Contracted Services           
Borough Council of Kings Lynn and West Norfolk,E07000146,31/03/19,Head of Legal Services        ,NORTH NORFOLK DISTRICT COUNCIL          ,101156      ,25-Mar-19,27312.5,0,Commissioning Ext. Legal fees 
Borough Council of Kings Lynn and West Norfolk,E07000146,31/03/19,35 Premier Inn Hunstanton     ,SURVEY SOLUTIONS (EASTERN)              ,147316      ,24-Jan-19,1875,0,Planning Fees                 
Borough Council of Kings Lynn and West Norfolk,E07000146,31/03/19,Dry Box Collection Scheme     ,KIER SERVICES ENVIRONMENTAL             ,141535      ,31-Jan-19,10492.61,0,Contracted Services           
Borough Council of Kings Lynn and West Norfolk,E07000146,31/03/19,Dry Box Collection Scheme     ,KIER SERVICES ENVIRONMENTAL             ,141535      ,04-Mar-19,10492.61,0,Contracted Services           
Borough Council of Kings Lynn and West Norfolk,E07000146,31/03/19,Public Cleansing              ,AQUAM WATER SERVICES LTD                ,147842      ,25-Mar-19,1620,0,Tools And Equipment           
Borough Council of Kings Lynn and West Norfolk,E07000146,31/03/19,CCTV Breckland                ,FLOW COMMUNICATIONS UK LTD              ,145444      ,11-Feb-19,1241.92,0,Maint Plant & Equip           
Borough Council of Kings Lynn and West Norfolk,E07000146,31/03/19,50127                         ,PET INDUSTRY FEDERATION                 ,147693      ,17-Jan-19,990,0,Qualification Training        
Borough Council of Kings Lynn and West Norfolk,E07000146,31/03/19,Training Holding Account      ,PET INDUSTRY FEDERATION                 ,147693      ,17-Jan-19,990,0,Qualification Training        
Borough Council of Kings Lynn and West Norfolk,E07000146,31/03/19,Dog Warden and Services       ,DOGOTEL KENNELS & CATTERY               ,140387      ,14-Mar-19,600,0,Contracted Services           
Borough Council of Kings Lynn and West Norfolk,E07000146,31/03/19,Dog Warden and Services       ,DOGOTEL KENNELS & CATTERY               ,140387      ,14-Mar-19,655.67,0,Contracted Services           
Borough Council of Kings Lynn and West Norfolk,E07000146,31/03/19,Marriotts Warehouse           ,MCE HEATCOOL                            ,140420      ,25-Mar-19,1025.14,0,General Repairs               
Borough Council of Kings Lynn and West Norfolk,E07000146,31/03/19,Telephones                    ,BRITISH TELECOMMUNICATIONS PLC          ,100222      ,21-Jan-19,1414.92,0,Broadband Charge              
Borough Council of Kings Lynn and West Norfolk,E07000146,31/03/19,Telephones                    ,BRITISH TELECOMMUNICATIONS PLC          ,100222      ,21-Feb-19,1168.92,0,Broadband Charge              
Borough Council of Kings Lynn and West Norfolk,E07000146,31/03/19,Parish/Borough Coun. Elections,ANTALIS  LTD.                           ,117917      ,11-Mar-19,660,0,Stationery & Office Supplies  
Borough Council of Kings Lynn and West Norfolk,E07000146,31/03/19,Care & Repair - Home Impro Agy,SEVEN RESOURCING LTD                    ,145043      ,14-Feb-19,1170.09,0,Agency Staff                  
Borough Council of Kings Lynn and West Norfolk,E07000146,31/03/19,Care & Repair - Home Impro Agy,SEVEN RESOURCING LTD                    ,145043      ,14-Mar-19,853.07,0,Agency Staff                  
Borough Council of Kings Lynn and West Norfolk,E07000146,31/03/19,Care & Repair - Home Impro Agy,SEVEN RESOURCING LTD                    ,145043      ,07-Mar-19,842.98,0,Agency Staff                  
Borough Council of Kings Lynn and West Norfolk,E07000146,31/03/19,Depot Infestation Works       ,CARTER ACCOMMODATION LTD                ,145045      ,11-Mar-19,651.2,0,Rechargeable Works            
Borough Council of Kings Lynn and West Norfolk,E07000146,31/03/19,KL Arts Centre                ,CORONA ENERGY RETAIL 4 LTD              ,131838      ,25-Feb-19,1382.53,0,Gas                           
Borough Council of Kings Lynn and West Norfolk,E07000146,31/03/19,50302                         ,CREDITSAFE BUSINESS SOLUTIONS LTD       ,133465      ,24-Jan-19,675,0,Subscriptions                 
Borough Council of Kings Lynn and West Norfolk,E07000146,31/03/19,Financial Services            ,CREDITSAFE BUSINESS SOLUTIONS LTD       ,133465      ,24-Jan-19,675,0,Subscriptions                 
Borough Council of Kings Lynn and West Norfolk,E07000146,31/03/19,AV in meeting rooms           ,1-2 CALL DRAINAGE & GROUNDWORK LTD      ,131800      ,14-Feb-19,600,0,Computer Equip (Hardware)     
Borough Council of Kings Lynn and West Norfolk,E07000146,31/03/19,Disabled Facilties Grant      ,CHAS D ALLFLATT LTD                     ,100315      ,17-Jan-19,2155.46,0,Works                         
Borough Council of Kings Lynn and West Norfolk,E07000146,31/03/19,Adapt Grant                   ,CHAS D ALLFLATT LTD                     ,100315      ,24-Jan-19,3776.55,0,Works                         
Borough Council of Kings Lynn and West Norfolk,E07000146,31/03/19,Disabled Facilties Grant      ,CHAS D ALLFLATT LTD                     ,100315      ,28-Feb-19,3340.68,0,Works                         
Borough Council of Kings Lynn and West Norfolk,E07000146,31/03/19,Disabled Facilties Grant      ,CHAS D ALLFLATT LTD                     ,100315      ,11-Mar-19,4565.62,0,Works                         
Borough Council of Kings Lynn and West Norfolk,E07000146,31/03/19,Handyperson Scheme Kings Lynn ,CHAS D ALLFLATT LTD                     ,100315      ,14-Mar-19,2128.14,0,Contractor Payments           
Borough Council of Kings Lynn and West Norfolk,E07000146,31/03/19,Adapt Grant                   ,CHAS D ALLFLATT LTD                     ,100315      ,21-Mar-19,1844.74,0,Works                         
Borough Council of Kings Lynn and West Norfolk,E07000146,31/03/19,CCTV                          ,E AKERS                                 ,100500      ,14-Feb-19,600,0,General Repairs               
Borough Council of Kings Lynn and West Norfolk,E07000146,31/03/19,"St Nicholas Close, Gayton     ",JON ETCHELLS CONSULTING                 ,147790      ,14-Mar-19,2085.9,0,Consultants Fees              
Borough Council of Kings Lynn and West Norfolk,E07000146,31/03/19,Cost of Collection - CTax     ,ROYAL MAIL GROUP LTD                    ,101369      ,25-Mar-19,792.75,0,Postages                      
Borough Council of Kings Lynn and West Norfolk,E07000146,31/03/19,Mintlyn Crematorium           ,FACULTATIEVE TECHNOLOGIESLTD            ,125759      ,25-Mar-19,1663.56,0,Maint Plant & Equip           
Borough Council of Kings Lynn and West Norfolk,E07000146,31/03/19,KL Arts Centre                ,ALIVE MANAGEMENT LTD                    ,143925      ,25-Mar-19,4391.14,0,Recharge Maint (Fr AML A910)  
Borough Council of Kings Lynn and West Norfolk,E07000146,31/03/19,South Lynn Community Centre   ,ALIVE MANAGEMENT LTD                    ,143925      ,25-Mar-19,576.9,0,Comm Centres Staff (AML A915) 
Borough Council of Kings Lynn and West Norfolk,E07000146,31/03/19,50303                         ,FENLAND DISTRICT COUNCIL                ,100625      ,31-Jan-19,6314.38,0,Contracted Services           
Borough Council of Kings Lynn and West Norfolk,E07000146,31/03/19,Internal Audit                ,FENLAND DISTRICT COUNCIL                ,100625      ,31-Jan-19,6314.38,0,Contracted Services           
Borough Council of Kings Lynn and West Norfolk,E07000146,31/03/19,Improving Attainment          ,SPRINGWOOD HIGH SCHOOL ACADEMY TRUST    ,104838      ,06-Mar-19,2418,0,Small Projects                
Borough Council of Kings Lynn and West Norfolk,E07000146,31/03/19,Hardwick Industrial Est       ,SOUTH HOLLAND DISTRICT COUNCIL          ,106763      ,14-Mar-19,730,0,Energy Certificate Statutory  
Borough Council of Kings Lynn and West Norfolk,E07000146,31/03/19,Adapt Grant                   ,ELY BUILDING & MAINTENANCE SERVICES LTD ,106268      ,11-Feb-19,3515.65,0,Works                         
Borough Council of Kings Lynn and West Norfolk,E07000146,31/03/19,Corporate Insurance           ,ZURICH MANAGEMENT SERVICES LTD          ,122083      ,18-Mar-19,4750,0,Miscellaneous                 
Borough Council of Kings Lynn and West Norfolk,E07000146,31/03/19,LILY PHASE 4                  ,WEST NORFOLK BEFRIENDING                ,126133      ,18-Mar-19,515,0,Lily Advisor Payments         
Borough Council of Kings Lynn and West Norfolk,E07000146,31/03/19,ICT                           ,FORDWAY SOLUTIONS LTD                   ,129206      ,31-Jan-19,961.74,0,Computer Hardware Maintenance 
Borough Council of Kings Lynn and West Norfolk,E07000146,31/03/19,Princess Theatre Main Account ,WEAAR LTD                               ,130750      ,31-Jan-19,1450,0,General Repairs               
Borough Council of Kings Lynn and West Norfolk,E07000146,31/03/19,NORA                          ,ASHFIELD SOLUTIONS LTD                  ,129177      ,18-Feb-19,1872,0,External Fees/Consultancy     
Borough Council of Kings Lynn and West Norfolk,E07000146,31/03/19,Corn Exchange -Internal Dec   ,PENISTON CARPET & FLOORING LTD          ,133876      ,31-Jan-19,1526.53,0,Works                         
Borough Council of Kings Lynn and West Norfolk,E07000146,31/03/19,Fairstead Community Centre    ,GEZE UK LTD                             ,133672      ,11-Feb-19,573,0,Maintenance Contracts         
Borough Council of Kings Lynn and West Norfolk,E07000146,31/03/19,South Lynn Community Centre   ,GEZE UK LTD                             ,133672      ,25-Feb-19,2115.2,0,General Repairs               
Borough Council of Kings Lynn and West Norfolk,E07000146,31/03/19,ICT                           ,INNOVISE SOFTWARE LTD                   ,137521      ,07-Feb-19,750,0,Computer Software Maintenance 
Borough Council of Kings Lynn and West Norfolk,E07000146,31/03/19,Bus Shelters                  ,WESTCOTEC LTD                           ,141998      ,14-Mar-19,958.6,0,General Repairs               
Borough Council of Kings Lynn and West Norfolk,E07000146,31/03/19,Kings Lynn Bus Station        ,VANCOUVER GP LTD                        ,142742      ,25-Mar-19,8480,0,Rent                          
Borough Council of Kings Lynn and West Norfolk,E07000146,31/03/19,Disabled Facilties Grant      ,NORFOLK STAIRLIFTS                      ,141686      ,25-Mar-19,5285,0,Works                         
Borough Council of Kings Lynn and West Norfolk,E07000146,31/03/19,North Lynn Industrial Est     ,DOWNHAM DOOR SERVICES                   ,100481      ,24-Jan-19,1595,0,General Repairs               
Borough Council of Kings Lynn and West Norfolk,E07000146,31/03/19,Enterprise Works - North Lynn ,DOWNHAM DOOR SERVICES                   ,100481      ,28-Feb-19,1795,0,General Repairs               
Borough Council of Kings Lynn and West Norfolk,E07000146,31/03/19,Decrim - Operational          ,PATROL                                  ,139511      ,21-Feb-19,2832.9,0,Miscellaneous                 
Borough Council of Kings Lynn and West Norfolk,E07000146,31/03/19,Housing Options Programme     ,RUSSET HOUSE HOTEL LTD                  ,106144      ,14-Jan-19,1416.67,0,Temporary Accommodation       
Borough Council of Kings Lynn and West Norfolk,E07000146,31/03/19,Air Quality                   ,MARTIN CRANFIELD ASSOCIATES LTD         ,130334      ,18-Mar-19,7883.62,0,Professional Fees             
Borough Council of Kings Lynn and West Norfolk,E07000146,31/03/19,Corporate Insurance           ,ZURICH INSURANCE PLC                    ,101688      ,25-Mar-19,4858.34,0,ZM Premium                    
Borough Council of Kings Lynn and West Norfolk,E07000146,31/03/19,Playareas General             ,PLAY INSPECTION COMPANY LTD             ,137036      ,25-Mar-19,3350,0,Play Area Maintenance         
Borough Council of Kings Lynn and West Norfolk,E07000146,31/03/19,Corporate                     ,REDCENTRIC SOLUTIONS LTD                ,143387      ,31-Jan-19,1870,0,Stationery & Office Supplies  
Borough Council of Kings Lynn and West Norfolk,E07000146,31/03/19,50127                         ,CWA ENTERPRISES LTD                     ,121118      ,14-Feb-19,1440,0,In-House Training             
Borough Council of Kings Lynn and West Norfolk,E07000146,31/03/19,Training Holding Account      ,CWA ENTERPRISES LTD                     ,121118      ,14-Feb-19,1440,0,In-House Training             
Borough Council of Kings Lynn and West Norfolk,E07000146,31/03/19,50127                         ,UNIVERSITY OF DERBY                     ,122990      ,07-Mar-19,2100,0,Qualification Training        
Borough Council of Kings Lynn and West Norfolk,E07000146,31/03/19,Training Holding Account      ,UNIVERSITY OF DERBY                     ,122990      ,07-Mar-19,2100,0,Qualification Training        
Borough Council of Kings Lynn and West Norfolk,E07000146,31/03/19,50127                         ,UNIVERSITY OF DERBY                     ,122990      ,07-Mar-19,2100,0,Qualification Training        
Borough Council of Kings Lynn and West Norfolk,E07000146,31/03/19,Training Holding Account      ,UNIVERSITY OF DERBY                     ,122990      ,07-Mar-19,2100,0,Qualification Training        
Borough Council of Kings Lynn and West Norfolk,E07000146,31/03/19,50127                         ,UNIVERSITY OF DERBY                     ,122990      ,07-Mar-19,2100,0,Qualification Training        
Borough Council of Kings Lynn and West Norfolk,E07000146,31/03/19,Training Holding Account      ,UNIVERSITY OF DERBY                     ,122990      ,07-Mar-19,2100,0,Qualification Training        
Borough Council of Kings Lynn and West Norfolk,E07000146,31/03/19,Supplier Holding Account      ,PAUL JOHNSON MTR SERVICES LTD           ,104221      ,17-Jan-19,2415.99,0,Materials                     
Borough Council of Kings Lynn and West Norfolk,E07000146,31/03/19,Public Cleansing              ,ECO REMOVAL SYSTEM                      ,145406      ,25-Mar-19,2995,0,Tools And Equipment           
Borough Council of Kings Lynn and West Norfolk,E07000146,31/03/19,Community Projects CRS        ,ST JOHN AMBULANCE                       ,101470      ,11-Mar-19,1874.75,0,Service Level Agreements      
Borough Council of Kings Lynn and West Norfolk,E07000146,31/03/19,Public Cleansing Vehicles     ,FORD & SLATER DAF KINGS LYNN            ,100682      ,28-Jan-19,48950,0,Equipment/Materials           
Borough Council of Kings Lynn and West Norfolk,E07000146,31/03/19,Public Cleansing Vehicles     ,FORD & SLATER DAF KINGS LYNN            ,100682      ,28-Jan-19,705,0,Equipment/Materials           
Borough Council of Kings Lynn and West Norfolk,E07000146,31/03/19,"St Nicholas Close, Gayton     ",MR TIMOTHY LEADER                       ,143485      ,14-Feb-19,1485,0,Consultants Fees              
Borough Council of Kings Lynn and West Norfolk,E07000146,31/03/19,Parking Operations - Borough  ,METRIC GROUP LTD                        ,101041      ,07-Jan-19,2499.75,0,Maint Contr Hunstanton        
Borough Council of Kings Lynn and West Norfolk,E07000146,31/03/19,Parking Operations - Borough  ,METRIC GROUP LTD                        ,101041      ,07-Jan-19,2802.75,0,Maint Contr St James          
Borough Council of Kings Lynn and West Norfolk,E07000146,31/03/19,ICT                           ,SWITCHSHOP LTD                          ,124299      ,07-Jan-19,1380,0,Computer Hardware Maintenance 
Borough Council of Kings Lynn and West Norfolk,E07000146,31/03/19,ICT                           ,SWITCHSHOP LTD                          ,124299      ,14-Feb-19,1321,0,Communications                
Borough Council of Kings Lynn and West Norfolk,E07000146,31/03/19,Revs & Bens System Replacement,CIVICA  UK LTD                          ,128548      ,18-Mar-19,8000,0,Computer Equip (Hardware)     
Borough Council of Kings Lynn and West Norfolk,E07000146,31/03/19,Domestic Refuse               ,NORSE ENVIRONMENTAL WASTE SVCS          ,102093      ,21-Feb-19,27407.1,0,Waste Processing Cost         
Borough Council of Kings Lynn and West Norfolk,E07000146,31/03/19,Dry Box Collection Scheme     ,NORSE ENVIRONMENTAL WASTE SVCS          ,102093      ,21-Feb-19,621.85,0,Waste Processing Cost         
Borough Council of Kings Lynn and West Norfolk,E07000146,31/03/19,Dry Box Collection Scheme     ,NORSE ENVIRONMENTAL WASTE SVCS          ,102093      ,21-Feb-19,12500,0,Waste Processing Cost         
Borough Council of Kings Lynn and West Norfolk,E07000146,31/03/19,ICT                           ,COMMS EXPRESS LTD                       ,146136      ,14-Jan-19,867,0,Communications                
Borough Council of Kings Lynn and West Norfolk,E07000146,31/03/19,Vehicle Recharge On Account   ,WORLDLINE IT SERVICESUK LTD RE FUELGENIE,135817      ,14-Feb-19,9744.15,0,Petrol                        
Borough Council of Kings Lynn and West Norfolk,E07000146,31/03/19,Lease Car Revenue Account     ,COMMERCIAL SERVICES TRADING LTD         ,121564      ,28-Jan-19,1740,0,Leasing                       
